{"text_format":"1","workbook":"xlsx","n_sheets":11,"sheets":["Base","Entrada","Ejemplo","Categoria 1","Categoria 2","Categoria 3","Categoria 4","Categoria 5","Categoria 6","Categoria 7","Categoria 8"],"not_rendered":{"charts":9,"images":1,"macros":1,"external_links":1,"defined_names":0,"comments":1,"pivot_tables":0},"unopened":[],"bounds":{"document_bytes":16777216,"sheet_cells":100000,"rows_first":2000,"rows_last":500,"rows_between":2000,"halvings":0,"cell_chars":16384,"cell_head_chars":4096},"cells_cut":0,"cells_raw":0,"read":"whole","date_system":"1900"}

{"sheet":"Base","index":0,"n_rows":12,"n_cols":9,"rows_kept":12,"cut":false,"hidden":true,"merged":[]}
["Categoría animal"]
["Mamones Macho procedentes de vacas lecheras",346,null,null,"Validación entrada",{"$f":"DATE(B12-1,1,1)","v":"2024-01-01"},{"$f":"F2","v":45292},{"$f":"DATE(B12,12,31)","v":"2025-12-31"},{"$f":"H2","v":46022}]
["Mamones Hembra procedentes de vacas lecheras",337,null,null,"Validación salida",{"$f":"DATE(B12,1,1)","v":"2025-01-01"},{"$f":"F3","v":45658},{"$f":"DATE(B12+1,12,31)","v":"2026-12-31"},{"$f":"H3","v":46387}]
["Mamones Macho procedentes de vacas nodriza",346]
["Mamones Hembra procedentes de vacas nodriza",337]
["Pasteros Macho procedentes de vacas nodriza",185]
["Pasteros Hembra procedentes de vacas nodriza",165]
["Hembras adultas de descarte o desvieje"]
["Cebones/Bueyes/Sementales de desvieje"]
[]
[]
["Año de declaración: ",{"$f":"Entrada!G5","v":2025}]

{"sheet":"Entrada","index":1,"n_rows":28,"n_cols":12,"rows_kept":28,"cut":false,"hidden":false,"merged":[[1,4,3,7],[27,1,28,5],[14,2,14,7],[4,2,4,5],[16,2,16,7],[18,2,25,7],[5,1,6,7]]}
[]
[null,null,null,null,"Archivo para agrupar lotes de vacuno de cebo, según categoría productiva"]
[]
[]
[null,null,"Indique el año de declaración: ",null,null,null,2025]
[null,{"$f":"\"(En cada año n se hace la declaración del año n - 1. Por ejemplo, en el año \"&L6&\" se debe indicar que el año de declaración es el \"&L7&\")\"","v":"(En cada año n se hace la declaración del año n - 1. Por ejemplo, en el año 2026 se debe indicar que el año de declaración es el 2025)"},null,null,null,null,null,null,null,null,null,{"$f":"YEAR(TODAY())","v":2026}]
[null,null,null,null,null,null,null,null,null,null,null,{"$f":"L6-1","v":2025}]
[]
[null,"En las hojas siguientes (una para cada categoría productiva) debe indicar:"]
[]
[null,null,"- El periodo productivo medio de la categoría productiva"]
[null,null,"- nº de animales que entran en cada lote"]
[null,null,"- nº de animales vivos que finalizan en cada lote"]
[null,null,"- Fecha de entrada de cada lote"]
[null,"NOTA:",{"$f":"\"Si se desconoce el nº de animales vivos que finalizarán el lote porque su engorde llega más allá del año de declaración, considere el nº de animales que tenga a 31/12/\"&G5","v":"Si se desconoce el nº de animales vivos que finalizarán el lote porque su engorde llega más allá del año de declaración, considere el nº de animales que tenga a 31/12/2025"}]
[]
[null,"NOTA:","Lote es el grupo de animales que van entrando de forma escalonada a los corrales"]
[]
[null,"NOTA:","El periodo productivo medio es la duración total desde que entra un animal dentro de cada alojamiento hasta que se lleva a sacrificio. Esto es, la duración del periodo productivo es el número de días que por término medio los animales de esa linea productiva permanecen en la granja desde que entran hasta que salen de ese alojamiento, de modo que el periodo es por ciclo productivo y no por año natural. Por ejemplo, los Mamones Macho procedentes de vacas lecheras tienen un periodo productivo alrededor de los 11 meses (desde 1 mes de vida hasta los 12 meses del sacrificio) y los Pasteros Macho procedentes de vacas nodriza tienen un periodo productivo alrededor de los 7 meses (desde los 6 meses de vida hasta los 13 meses del sacrificio )"]
[]
[]
[]
[]
[]
[]
[]
[]
[null,"Si desea borrar datos grabados anteriormente, pulse aquí\n¡Cuidado! Perderá toda la información"]

{"sheet":"Ejemplo","index":2,"n_rows":160,"n_cols":45,"rows_kept":160,"cut":false,"hidden":false,"merged":[[7,1,7,8],[7,12,7,24],[0,1,0,3],[0,18,0,23],[2,0,2,2],[2,3,2,8],[5,1,5,8],[4,13,4,17],[0,14,0,17]]}
[null,"Año de declaración: ",null,null,null,{"$f":"Base!B12","v":2025},null,null,null,null,null,null,null,null,"Datos a grabar en el paso 2 de ECOGAN",null,null,null,"Datos a grabar en el paso 4 de ECOGAN"]
[null,null,null,null,null,null,null,null,null,null,null,null,null,null,null,null,"nº total de animales que entran de esta categoría productiva:",{"$f":"AE160","v":125},null,null,null,null,"Periodo productivo total medio de la categoría productiva:",{"$f":"H4","v":350}]
["Categoría productiva: ",null,null,"Mamones Macho procedentes de vacas lecheras",null,null,null,null,null,null,null,null,null,null,null,null,"nº total de animales vivos que finalizan de esta categoría productiva:",{"$f":"AF160","v":122},null,null,null,null,"días medios presentes de la categoría productiva:",{"$f":"AR160","v":242}]
[null,null,null,null,null,"Indique el periodo productivo medio de la categoría productiva (días):",null,350,"*"]
[null,null,null,null,null,"Periodo productivo medio de referencia (días):",null,{"$f":"IFERROR(VLOOKUP(D3,Base!A2:B7,2,FALSE),\"sin dato\")","v":346},{"$f":"IF(H5=\"sin dato\",\"\",\"(\"&ROUND(H5*0.9,0) &\" - \"&ROUND(H5*1.1,0)&\")\")","v":"(311 - 381)"},null,null,null,null,"Si desea borrar datos grabados anteriormente, pulse aquí\n¡Cuidado! Perderá toda la información"]
["*","Número de días que por término medio los animales de una linea productiva permanecen en la granja desde que entran hasta que salen de ese alojamiento, de modo que el periodo es por ciclo productivo y no por año natural. "]
[null,null,null,null,null,null,null,null,null,null,null,null,{"$f":"Base!F2","v":45292},{"$f":"Base!H3","v":46387}]
["u","Lote es el grupo de animales que van entrando de forma escalonada a los corrales.",null,null,null,null,null,null,null,null,null,null,"Diagrama de entradas y salidas"]
["lote u","nº de animales que entran\nen cada lote","nº de animales vivos que finalizan\nen cada lote","Fecha de entrada                                                                                                                                                                                                                                                                del lote\n(dd/mm/aa)",null,"Fecha de\nfinalización                                                                                                                                                                                                                                  del lote\n(dd/mm/aa)",null,"Periodo productivo total\nmedio\n(días)",{"$f":"\"días presentes del lote\nen el año \" & F1","v":"días presentes del lote\nen el año 2025"},null,{"$f":"IF(H5=\"sin dato\",\"\",\"Fecha fin según fecha entrada y periodo de \"&H5&\" días\")","v":"Fecha fin según fecha entrada y periodo de 346 días"},null,null,null,null,null,null,null,null,null,null,null,null,null,null,null,null,null,null,null,null,null,null,null,"lote",null,null,"Fecha de entrada                                                                                                                                                                                                                                                                del lote","Periodo productivo total","Fecha de entrada                                                                                                                                                                                                                                                                del lote",{"$f":"\"días presentes del lote\nen el año \" & AL1","v":"días presentes del lote\nen el año "},null,null,{"$f":"\"días presentes del lote\nen el año \" & AO1","v":"días presentes del lote\nen el año "},"Periodo productivo total"]
[1,12,14,"2024-10-11",{"$f":"IF($D10 =\"\",\"\",IF(YEAR($D10)=$F$1,$D10,\"01/01/2025\"))","v":"01/01/2025"},{"$f":"IF(D10=\"\",\"\",D10+H10)","v":"2025-09-26"},{"$f":"IF($F10=\"\",\"\",IF(YEAR($F10)=$F$1,$F10,\"31/12/2025\"))","v":"2025-09-26"},{"$f":"IF(B10=0,\"\",$H$4)","v":350},{"$f":"IF(G10=\"\",\"\",_xlfn.DAYS(G10,E10))","v":268},null,{"$f":"IF(H$5=\"sin dato\",\"\",IF(D10=\"\",\"\",D10+$H$5))","v":"2025-09-22"},null,null,null,null,null,null,null,null,null,null,null,null,null,null,null,null,null,null,null,{"$f":"B10","v":12},14,{"$f":"(AE10+AF10)/2","v":13},{"$f":"IF($AG$160=0,0,AG10/$AG$160)","v":0.10483870967741936},{"$f":"\"Lote \"&A10","v":"Lote 1"},{"$f":"IF(B10=0,\"\",B10&\" animales\")","v":"12 animales"},"14 animales",{"$f":"IF(D10=\"\",\"\",D10)","v":"2024-10-11"},{"$f":"H10","v":350},{"$f":"IF(F10=\"\",\"\",F10)","v":"2025-09-26"},{"$f":"I10","v":268},{"$f":"IF(AO10=0,\"\",AO10& \" días\")","v":"268 días"},null,{"$f":"IF(AH10=0,0,AO10*AH10)","v":28.096774193548388},{"$f":"IF(AH10=0,0,AM10*AH10)","v":36.693548387096776}]
[2,8,8,"2025-03-05","2025-03-05",{"$f":"IF(D11=\"\",\"\",D11+H11)","v":"2026-02-18"},"31/12/2025",350,{"$f":"IF(G11=\"\",\"\",_xlfn.DAYS(G11,E11))","v":301},null,"2026-02-14",null,null,null,null,null,null,null,null,null,null,null,null,null,null,null,null,null,null,null,8,8,{"$f":"(AE11+AF11)/2","v":8},{"$f":"IF($AG$160=0,0,AG11/$AG$160)","v":6.4516129032258063E-2},"Lote 2","8 animales","8 animales","2025-03-05",350,"2026-02-18",301,{"$f":"IF(AO11=0,\"\",AO11& \" días\")","v":"301 días"},null,19.419354838709676,22.58064516129032]
[3,7,6,"2025-05-07","2025-05-07","2026-04-22","31/12/2025",350,238,null,"2026-04-18",null,null,null,null,null,null,null,null,null,null,null,null,null,null,null,null,null,null,null,7,6,6.5,5.2419354838709679E-2,"Lote 3","7 animales","6 animales","2025-05-07",350,"2026-04-22",238,"238 días",null,12.475806451612904,18.346774193548388]
[4,11,11,"2024-09-15","01/01/2025","2025-08-31","2025-08-31",350,242,null,"2025-08-27",null,null,null,null,null,null,null,null,null,null,null,null,null,null,null,null,null,null,null,11,11,11,8.8709677419354843E-2,"Lote 4","11 animales","11 animales","2024-09-15",350,"2025-08-31",242,"242 días",null,21.467741935483872,31.048387096774196]
[5,8,7,"2025-01-09","2025-01-09","2025-12-25","2025-12-25",350,350,null,"2025-12-21",null,null,null,null,null,null,null,null,null,null,null,null,null,null,null,null,null,null,null,8,7,7.5,6.0483870967741937E-2,"Lote 5","8 animales","7 animales","2025-01-09",350,"2025-12-25",350,"350 días",null,21.16935483870968,21.16935483870968]
[6,16,16,"2025-03-05","2025-03-05","2026-02-18","31/12/2025",350,301,null,"2026-02-14",null,null,null,null,null,null,null,null,null,null,null,null,null,null,null,null,null,null,null,16,16,16,0.12903225806451613,"Lote 6","16 animales","16 animales","2025-03-05",350,"2026-02-18",301,"301 días",null,38.838709677419352,45.161290322580641]
[7,6,6,"2025-12-12","2025-12-12","2026-11-27","31/12/2025",350,19,null,"2026-11-23",null,null,null,null,null,null,null,null,null,null,null,null,null,null,null,null,null,null,null,6,6,6,4.8387096774193547E-2,"Lote 7","6 animales","6 animales","2025-12-12",350,"2026-11-27",19,"19 días",null,0.91935483870967738,16.93548387096774]
[8,7,6,"2024-07-02","01/01/2025","2025-06-17","2025-06-17",350,167,null,"2025-06-13",null,null,null,null,null,null,null,null,null,null,null,null,null,null,null,null,null,null,null,7,6,6.5,5.2419354838709679E-2,"Lote 8","7 animales","6 animales","2024-07-02",350,"2025-06-17",167,"167 días",null,8.754032258064516,18.346774193548388]
[9,9,9,"2024-07-05","01/01/2025","2025-06-20","2025-06-20",350,170,null,"2025-06-16",null,null,null,null,null,null,null,null,null,null,null,null,null,null,null,null,null,null,null,9,9,9,7.2580645161290328E-2,"Lote 9","9 animales","9 animales","2024-07-05",350,"2025-06-20",170,"170 días",null,12.338709677419356,25.403225806451616]
[10,5,5,"2024-08-12","01/01/2025","2025-07-28","2025-07-28",350,208,null,"2025-07-24",null,null,null,null,null,null,null,null,null,null,null,null,null,null,null,null,null,null,null,5,5,5,4.0322580645161289E-2,"Lote 10","5 animales","5 animales","2024-08-12",350,"2025-07-28",208,"208 días",null,8.387096774193548,14.112903225806452]
[11,8,8,"2025-02-20","2025-02-20","2026-02-05","31/12/2025",350,314,null,"2026-02-01",null,null,null,null,null,null,null,null,null,null,null,null,null,null,null,null,null,null,null,8,8,8,6.4516129032258063E-2,"Lote 11","8 animales","8 animales","2025-02-20",350,"2026-02-05",314,"314 días",null,20.258064516129032,22.58064516129032]
[12,9,8,"2025-02-18","2025-02-18","2026-02-03","31/12/2025",350,316,null,"2026-01-30",null,null,null,null,null,null,null,null,null,null,null,null,null,null,null,null,null,null,null,9,8,8.5,6.8548387096774188E-2,"Lote 12","9 animales","8 animales","2025-02-18",350,"2026-02-03",316,"316 días",null,21.661290322580644,23.991935483870964]
[13,6,6,"2025-02-05","2025-02-05","2026-01-21","31/12/2025",350,329,null,"2026-01-17",null,null,null,null,null,null,null,null,null,null,null,null,null,null,null,null,null,null,null,6,6,6,4.8387096774193547E-2,"Lote 13","6 animales","6 animales","2025-02-05",350,"2026-01-21",329,"329 días",null,15.919354838709676,16.93548387096774]
[14,6,6,"2025-09-02","2025-09-02","2026-08-18","31/12/2025",350,120,null,"2026-08-14",null,null,null,null,null,null,null,null,null,null,null,null,null,null,null,null,null,null,null,6,6,6,4.8387096774193547E-2,"Lote 14","6 animales","6 animales","2025-09-02",350,"2026-08-18",120,"120 días",null,5.806451612903226,16.93548387096774]
[15,7,6,"2025-09-05","2025-09-05","2026-08-21","31/12/2025",350,117,null,"2026-08-17",null,null,null,null,null,null,null,null,null,null,null,null,null,null,null,null,null,null,null,7,6,6.5,5.2419354838709679E-2,"Lote 15","7 animales","6 animales","2025-09-05",350,"2026-08-21",117,"117 días",null,6.1330645161290329,18.346774193548388]
[16,null,null,null,"","","","","",null,"",null,null,null,null,null,null,null,null,null,null,null,null,null,null,null,null,null,null,null,0,0,0,0,"Lote 16","","","","","",""," días",null,0,0]
[17,null,null,null,"","","","","",null,"",null,null,null,null,null,null,null,null,null,null,null,null,null,null,null,null,null,null,null,0,0,0,0,"Lote 17","","","","","",""," días",null,0,0]
[18,null,null,null,"","","","","",null,"",null,null,null,null,null,null,null,null,null,null,null,null,null,null,null,null,null,null,null,0,0,0,0,"Lote 18","","","","","",""," días",null,0,0]
[19,null,null,null,"","","","","",null,"",null,null,null,null,null,null,null,null,null,null,null,null,null,null,null,null,null,null,null,0,0,0,0,"Lote 19","","","","","",""," días",null,0,0]
[20,null,null,null,"","","","","",null,"",null,null,null,null,null,null,null,null,null,null,null,null,null,null,null,null,null,null,null,0,0,0,0,"Lote 20","","","","","",""," días",null,0,0]
[21,null,null,null,"","","","","",null,"",null,null,null,null,null,null,null,null,null,null,null,null,null,null,null,null,null,null,null,0,0,0,0,"Lote 21","","","","","",""," días",null,0,0]
[22,null,null,null,"","","","","",null,"",null,null,null,null,null,null,null,null,null,null,null,null,null,null,null,null,null,null,null,0,0,0,0,"Lote 22","","","","","",""," días",null,0,0]
[23,null,null,null,"","","","","",null,"",null,null,null,null,null,null,null,null,null,null,null,null,null,null,null,null,null,null,null,0,0,0,0,"Lote 23","","","","","",""," días",null,0,0]
[24,null,null,null,"","","","","",null,"",null,null,null,null,null,null,null,null,null,null,null,null,null,null,null,null,null,null,null,0,0,0,0,"Lote 24","","","","","",""," días",null,0,0]
[25,null,null,null,"","","","","",null,"",null,null,null,null,null,null,null,null,null,null,null,null,null,null,null,null,null,null,null,0,0,0,0,"Lote 25","","","","","",""," días",null,0,0]
[26,null,null,null,"","","","","",null,"",null,null,null,null,null,null,null,null,null,null,null,null,null,null,null,null,null,null,null,0,0,0,0,"Lote 26","","","","","",""," días",null,0,0]
[27,null,null,null,"","","","","",null,"",null,null,null,null,null,null,null,null,null,null,null,null,null,null,null,null,null,null,null,0,0,0,0,"Lote 27","","","","","",""," días",null,0,0]
[28,null,null,null,"","","","","",null,"",null,null,null,null,null,null,null,null,null,null,null,null,null,null,null,null,null,null,null,0,0,0,0,"Lote 28","","","","","",""," días",null,0,0]
[29,null,null,null,"","","","","",null,"",null,null,null,null,null,null,null,null,null,null,null,null,null,null,null,null,null,null,null,0,0,0,0,"Lote 29","","","","","",""," días",null,0,0]
[30,null,null,null,"","","","","",null,"",null,null,null,null,null,null,null,null,null,null,null,null,null,null,null,null,null,null,null,0,0,0,0,"Lote 30","","","","","",""," días",null,0,0]
[31,null,null,null,"","","","","",null,"",null,null,null,null,null,null,null,null,null,null,null,null,null,null,null,null,null,null,null,0,0,0,0,"Lote 31","","","","","",""," días",null,0,0]
[32,null,null,null,"","","","","",null,"",null,null,null,null,null,null,null,null,null,null,null,null,null,null,null,null,null,null,null,0,0,0,0,"Lote 32","","","","","",""," días",null,0,0]
[33,null,null,null,"","","",{"$f":"IF(B42=0,\"\",$H$4)","v":""},"",null,{"$f":"IF(H$5=\"sin dato\",\"\",IF(D42=\"\",\"\",D42+$H$5))","v":""},null,null,null,null,null,null,null,null,null,null,null,null,null,null,null,null,null,null,null,{"$f":"B42","v":0},0,0,0,"Lote 33",{"$f":"IF(B42=0,\"\",B42&\" animales\")","v":""},"","","","",""," días",null,0,0]
[34,null,null,null,"","","","","",null,"",null,null,null,null,null,null,null,null,null,null,null,null,null,null,null,null,null,null,null,0,0,0,0,"Lote 34","","","","","",""," días",null,0,0]
[35,null,null,null,"","","","","",null,"",null,null,null,null,null,null,null,null,null,null,null,null,null,null,null,null,null,null,null,0,0,0,0,"Lote 35","","","","","",""," días",null,0,0]
[36,null,null,null,"","","","","",null,"",null,null,null,null,null,null,null,null,null,null,null,null,null,null,null,null,null,null,null,0,0,0,0,"Lote 36","","","","","",""," días",null,0,0]
[37,null,null,null,"","","","","",null,"",null,null,null,null,null,null,null,null,null,null,null,null,null,null,null,null,null,null,null,0,0,0,0,"Lote 37","","","","","",""," días",null,0,0]
[38,null,null,null,"","","","","",null,"",null,null,null,null,null,null,null,null,null,null,null,null,null,null,null,null,null,null,null,0,0,0,0,"Lote 38","","","","","",""," días",null,0,0]
[39,null,null,null,"","","","","",null,"",null,null,null,null,null,null,null,null,null,null,null,null,null,null,null,null,null,null,null,0,0,0,0,"Lote 39","","","","","",""," días",null,0,0]
[40,null,null,null,"","","","","",null,"",null,null,null,null,null,null,null,null,null,null,null,null,null,null,null,null,null,null,null,0,0,0,0,"Lote 40","","","","","",""," días",null,0,0]
[41,null,null,null,"","","","","",null,"",null,null,null,null,null,null,null,null,null,null,null,null,null,null,null,null,null,null,null,0,0,0,0,"Lote 41","","","","","",""," días",null,0,0]
[42,null,null,null,"","","","","",null,"",null,null,null,null,null,null,null,null,null,null,null,null,null,null,null,null,null,null,null,0,0,0,0,"Lote 42","","","","","",""," días",null,0,0]
[43,null,null,null,"","","","","",null,"",null,null,null,null,null,null,null,null,null,null,null,null,null,null,null,null,null,null,null,0,0,0,0,"Lote 43","","","","","",""," días",null,0,0]
[44,null,null,null,"","","","","",null,"",null,null,null,null,null,null,null,null,null,null,null,null,null,null,null,null,null,null,null,0,0,0,0,"Lote 44","","","","","",""," días",null,0,0]
[45,null,null,null,"","","","","",null,"",null,null,null,null,null,null,null,null,null,null,null,null,null,null,null,null,null,null,null,0,0,0,0,"Lote 45","","","","","",""," días",null,0,0]
[46,null,null,null,"","","","","",null,"",null,null,null,null,null,null,null,null,null,null,null,null,null,null,null,null,null,null,null,0,0,0,0,"Lote 46","","","","","",""," días",null,0,0]
[47,null,null,null,"","","","","",null,"",null,null,null,null,null,null,null,null,null,null,null,null,null,null,null,null,null,null,null,0,0,0,0,"Lote 47","","","","","",""," días",null,0,0]
[48,null,null,null,"","","","","",null,"",null,null,null,null,null,null,null,null,null,null,null,null,null,null,null,null,null,null,null,0,0,0,0,"Lote 48","","","","","",""," días",null,0,0]
[49,null,null,null,"","","","","",null,"",null,null,null,null,null,null,null,null,null,null,null,null,null,null,null,null,null,null,null,0,0,0,0,"Lote 49","","","","","",""," días",null,0,0]
[50,null,null,null,"","","","","",null,"",null,null,null,null,null,null,null,null,null,null,null,null,null,null,null,null,null,null,null,0,0,0,0,"Lote 50","","","","","",""," días",null,0,0]
[51,null,null,null,"","","","","",null,"",null,null,null,null,null,null,null,null,null,null,null,null,null,null,null,null,null,null,null,0,0,0,0,"Lote 51","","","","","",""," días",null,0,0]
[52,null,null,null,"","","","","",null,"",null,null,null,null,null,null,null,null,null,null,null,null,null,null,null,null,null,null,null,0,0,0,0,"Lote 52","","","","","",""," días",null,0,0]
[53,null,null,null,"","","","","",null,"",null,null,null,null,null,null,null,null,null,null,null,null,null,null,null,null,null,null,null,0,0,0,0,"Lote 53","","","","","",""," días",null,0,0]
[54,null,null,null,"","","","","",null,"",null,null,null,null,null,null,null,null,null,null,null,null,null,null,null,null,null,null,null,0,0,0,0,"Lote 54","","","","","",""," días",null,0,0]
[55,null,null,null,"","","","","",null,"",null,null,null,null,null,null,null,null,null,null,null,null,null,null,null,null,null,null,null,0,0,0,0,"Lote 55","","","","","",""," días",null,0,0]
[56,null,null,null,"","","","","",null,"",null,null,null,null,null,null,null,null,null,null,null,null,null,null,null,null,null,null,null,0,0,0,0,"Lote 56","","","","","",""," días",null,0,0]
[57,null,null,null,"","","","","",null,"",null,null,null,null,null,null,null,null,null,null,null,null,null,null,null,null,null,null,null,0,0,0,0,"Lote 57","","","","","",""," días",null,0,0]
[58,null,null,null,"","","","","",null,"",null,null,null,null,null,null,null,null,null,null,null,null,null,null,null,null,null,null,null,0,0,0,0,"Lote 58","","","","","",""," días",null,0,0]
[59,null,null,null,"","","","","",null,"",null,null,null,null,null,null,null,null,null,null,null,null,null,null,null,null,null,null,null,0,0,0,0,"Lote 59","","","","","",""," días",null,0,0]
[60,null,null,null,"","","","","",null,"",null,null,null,null,null,null,null,null,null,null,null,null,null,null,null,null,null,null,null,0,0,0,0,"Lote 60","","","","","",""," días",null,0,0]
[61,null,null,null,"","","","","",null,"",null,null,null,null,null,null,null,null,null,null,null,null,null,null,null,null,null,null,null,0,0,0,0,"Lote 61","","","","","",""," días",null,0,0]
[62,null,null,null,"","","","","",null,"",null,null,null,null,null,null,null,null,null,null,null,null,null,null,null,null,null,null,null,0,0,0,0,"Lote 62","","","","","",""," días",null,0,0]
[63,null,null,null,"","","","","",null,"",null,null,null,null,null,null,null,null,null,null,null,null,null,null,null,null,null,null,null,0,0,0,0,"Lote 63","","","","","",""," días",null,0,0]
[64,null,null,null,"","","","","",null,"",null,null,null,null,null,null,null,null,null,null,null,null,null,null,null,null,null,null,null,0,0,0,0,"Lote 64","","","","","",""," días",null,0,0]
[65,null,null,null,{"$f":"IF($D74 =\"\",\"\",IF(YEAR($D74)=$F$1,$D74,\"01/01/2025\"))","v":""},"",{"$f":"IF($F74=\"\",\"\",IF(YEAR($F74)=$F$1,$F74,\"31/12/2025\"))","v":""},{"$f":"IF(B74=0,\"\",$H$4)","v":""},"",null,{"$f":"IF(H$5=\"sin dato\",\"\",IF(D74=\"\",\"\",D74+$H$5))","v":""},null,null,null,null,null,null,null,null,null,null,null,null,null,null,null,null,null,null,null,{"$f":"B74","v":0},0,0,0,{"$f":"\"Lote \"&A74","v":"Lote 65"},{"$f":"IF(B74=0,\"\",B74&\" animales\")","v":""},"",{"$f":"IF(D74=\"\",\"\",D74)","v":""},{"$f":"H74","v":""},{"$f":"IF(F74=\"\",\"\",F74)","v":""},{"$f":"I74","v":""}," días",null,{"$f":"IF(AH74=0,0,AO74*AH74)","v":0},{"$f":"IF(AH74=0,0,AM74*AH74)","v":0}]
[66,null,null,null,"",{"$f":"IF(D75=\"\",\"\",D75+H75)","v":""},"","",{"$f":"IF(G75=\"\",\"\",_xlfn.DAYS(G75,E75))","v":""},null,"",null,null,null,null,null,null,null,null,null,null,null,null,null,null,null,null,null,null,null,0,0,{"$f":"(AE75+AF75)/2","v":0},{"$f":"IF($AG$160=0,0,AG75/$AG$160)","v":0},"Lote 66","","","","","","",{"$f":"IF(AO75=0,\"\",AO75& \" días\")","v":" días"},null,0,0]
[67,null,null,null,"","","","","",null,"",null,null,null,null,null,null,null,null,null,null,null,null,null,null,null,null,null,null,null,0,0,0,0,"Lote 67","","","","","",""," días",null,0,0]
[68,null,null,null,"","","","","",null,"",null,null,null,null,null,null,null,null,null,null,null,null,null,null,null,null,null,null,null,0,0,0,0,"Lote 68","","","","","",""," días",null,0,0]
[69,null,null,null,"","","","","",null,"",null,null,null,null,null,null,null,null,null,null,null,null,null,null,null,null,null,null,null,0,0,0,0,"Lote 69","","","","","",""," días",null,0,0]
[70,null,null,null,"","","","","",null,"",null,null,null,null,null,null,null,null,null,null,null,null,null,null,null,null,null,null,null,0,0,0,0,"Lote 70","","","","","",""," días",null,0,0]
[71,null,null,null,"","","","","",null,"",null,null,null,null,null,null,null,null,null,null,null,null,null,null,null,null,null,null,null,0,0,0,0,"Lote 71","","","","","",""," días",null,0,0]
[72,null,null,null,"","","","","",null,"",null,null,null,null,null,null,null,null,null,null,null,null,null,null,null,null,null,null,null,0,0,0,0,"Lote 72","","","","","",""," días",null,0,0]
[73,null,null,null,"","","","","",null,"",null,null,null,null,null,null,null,null,null,null,null,null,null,null,null,null,null,null,null,0,0,0,0,"Lote 73","","","","","",""," días",null,0,0]
[74,null,null,null,"","","","","",null,"",null,null,null,null,null,null,null,null,null,null,null,null,null,null,null,null,null,null,null,0,0,0,0,"Lote 74","","","","","",""," días",null,0,0]
[75,null,null,null,"","","","","",null,"",null,null,null,null,null,null,null,null,null,null,null,null,null,null,null,null,null,null,null,0,0,0,0,"Lote 75","","","","","",""," días",null,0,0]
[76,null,null,null,"","","","","",null,"",null,null,null,null,null,null,null,null,null,null,null,null,null,null,null,null,null,null,null,0,0,0,0,"Lote 76","","","","","",""," días",null,0,0]
[77,null,null,null,"","","","","",null,"",null,null,null,null,null,null,null,null,null,null,null,null,null,null,null,null,null,null,null,0,0,0,0,"Lote 77","","","","","",""," días",null,0,0]
[78,null,null,null,"","","","","",null,"",null,null,null,null,null,null,null,null,null,null,null,null,null,null,null,null,null,null,null,0,0,0,0,"Lote 78","","","","","",""," días",null,0,0]
[79,null,null,null,"","","","","",null,"",null,null,null,null,null,null,null,null,null,null,null,null,null,null,null,null,null,null,null,0,0,0,0,"Lote 79","","","","","",""," días",null,0,0]
[80,null,null,null,"","","","","",null,"",null,null,null,null,null,null,null,null,null,null,null,null,null,null,null,null,null,null,null,0,0,0,0,"Lote 80","","","","","",""," días",null,0,0]
[81,null,null,null,"","","","","",null,"",null,null,null,null,null,null,null,null,null,null,null,null,null,null,null,null,null,null,null,0,0,0,0,"Lote 81","","","","","",""," días",null,0,0]
[82,null,null,null,"","","","","",null,"",null,null,null,null,null,null,null,null,null,null,null,null,null,null,null,null,null,null,null,0,0,0,0,"Lote 82","","","","","",""," días",null,0,0]
[83,null,null,null,"","","","","",null,"",null,null,null,null,null,null,null,null,null,null,null,null,null,null,null,null,null,null,null,0,0,0,0,"Lote 83","","","","","",""," días",null,0,0]
[84,null,null,null,"","","","","",null,"",null,null,null,null,null,null,null,null,null,null,null,null,null,null,null,null,null,null,null,0,0,0,0,"Lote 84","","","","","",""," días",null,0,0]
[85,null,null,null,"","","","","",null,"",null,null,null,null,null,null,null,null,null,null,null,null,null,null,null,null,null,null,null,0,0,0,0,"Lote 85","","","","","",""," días",null,0,0]
[86,null,null,null,"","","","","",null,"",null,null,null,null,null,null,null,null,null,null,null,null,null,null,null,null,null,null,null,0,0,0,0,"Lote 86","","","","","",""," días",null,0,0]
[87,null,null,null,"","","","","",null,"",null,null,null,null,null,null,null,null,null,null,null,null,null,null,null,null,null,null,null,0,0,0,0,"Lote 87","","","","","",""," días",null,0,0]
[88,null,null,null,"","","","","",null,"",null,null,null,null,null,null,null,null,null,null,null,null,null,null,null,null,null,null,null,0,0,0,0,"Lote 88","","","","","",""," días",null,0,0]
[89,null,null,null,"","","","","",null,"",null,null,null,null,null,null,null,null,null,null,null,null,null,null,null,null,null,null,null,0,0,0,0,"Lote 89","","","","","",""," días",null,0,0]
[90,null,null,null,"","","","","",null,"",null,null,null,null,null,null,null,null,null,null,null,null,null,null,null,null,null,null,null,0,0,0,0,"Lote 90","","","","","",""," días",null,0,0]
[91,null,null,null,"","","","","",null,"",null,null,null,null,null,null,null,null,null,null,null,null,null,null,null,null,null,null,null,0,0,0,0,"Lote 91","","","","","",""," días",null,0,0]
[92,null,null,null,"","","","","",null,"",null,null,null,null,null,null,null,null,null,null,null,null,null,null,null,null,null,null,null,0,0,0,0,"Lote 92","","","","","",""," días",null,0,0]
[93,null,null,null,"","","","","",null,"",null,null,null,null,null,null,null,null,null,null,null,null,null,null,null,null,null,null,null,0,0,0,0,"Lote 93","","","","","",""," días",null,0,0]
[94,null,null,null,"","","","","",null,"",null,null,null,null,null,null,null,null,null,null,null,null,null,null,null,null,null,null,null,0,0,0,0,"Lote 94","","","","","",""," días",null,0,0]
[95,null,null,null,"","","","","",null,"",null,null,null,null,null,null,null,null,null,null,null,null,null,null,null,null,null,null,null,0,0,0,0,"Lote 95","","","","","",""," días",null,0,0]
[96,null,null,null,"","","","","",null,"",null,null,null,null,null,null,null,null,null,null,null,null,null,null,null,null,null,null,null,0,0,0,0,"Lote 96","","","","","",""," días",null,0,0]
[97,null,null,null,"","","",{"$f":"IF(B106=0,\"\",$H$4)","v":""},"",null,{"$f":"IF(H$5=\"sin dato\",\"\",IF(D106=\"\",\"\",D106+$H$5))","v":""},null,null,null,null,null,null,null,null,null,null,null,null,null,null,null,null,null,null,null,{"$f":"B106","v":0},0,0,0,"Lote 97",{"$f":"IF(B106=0,\"\",B106&\" animales\")","v":""},"","","","",""," días",null,0,0]
[98,null,null,null,"","","","","",null,"",null,null,null,null,null,null,null,null,null,null,null,null,null,null,null,null,null,null,null,0,0,0,0,"Lote 98","","","","","",""," días",null,0,0]
[99,null,null,null,"","","","","",null,"",null,null,null,null,null,null,null,null,null,null,null,null,null,null,null,null,null,null,null,0,0,0,0,"Lote 99","","","","","",""," días",null,0,0]
[100,null,null,null,"","","","","",null,"",null,null,null,null,null,null,null,null,null,null,null,null,null,null,null,null,null,null,null,0,0,0,0,"Lote 100","","","","","",""," días",null,0,0]
[101,null,null,null,"","","","","",null,"",null,null,null,null,null,null,null,null,null,null,null,null,null,null,null,null,null,null,null,0,0,0,0,"Lote 101","","","","","",""," días",null,0,0]
[102,null,null,null,"","","","","",null,"",null,null,null,null,null,null,null,null,null,null,null,null,null,null,null,null,null,null,null,0,0,0,0,"Lote 102","","","","","",""," días",null,0,0]
[103,null,null,null,"","","","","",null,"",null,null,null,null,null,null,null,null,null,null,null,null,null,null,null,null,null,null,null,0,0,0,0,"Lote 103","","","","","",""," días",null,0,0]
[104,null,null,null,"","","","","",null,"",null,null,null,null,null,null,null,null,null,null,null,null,null,null,null,null,null,null,null,0,0,0,0,"Lote 104","","","","","",""," días",null,0,0]
[105,null,null,null,"","","","","",null,"",null,null,null,null,null,null,null,null,null,null,null,null,null,null,null,null,null,null,null,0,0,0,0,"Lote 105","","","","","",""," días",null,0,0]
[106,null,null,null,"","","","","",null,"",null,null,null,null,null,null,null,null,null,null,null,null,null,null,null,null,null,null,null,0,0,0,0,"Lote 106","","","","","",""," días",null,0,0]
[107,null,null,null,"","","","","",null,"",null,null,null,null,null,null,null,null,null,null,null,null,null,null,null,null,null,null,null,0,0,0,0,"Lote 107","","","","","",""," días",null,0,0]
[108,null,null,null,"","","","","",null,"",null,null,null,null,null,null,null,null,null,null,null,null,null,null,null,null,null,null,null,0,0,0,0,"Lote 108","","","","","",""," días",null,0,0]
[109,null,null,null,"","","","","",null,"",null,null,null,null,null,null,null,null,null,null,null,null,null,null,null,null,null,null,null,0,0,0,0,"Lote 109","","","","","",""," días",null,0,0]
[110,null,null,null,"","","","","",null,"",null,null,null,null,null,null,null,null,null,null,null,null,null,null,null,null,null,null,null,0,0,0,0,"Lote 110","","","","","",""," días",null,0,0]
[111,null,null,null,"","","","","",null,"",null,null,null,null,null,null,null,null,null,null,null,null,null,null,null,null,null,null,null,0,0,0,0,"Lote 111","","","","","",""," días",null,0,0]
[112,null,null,null,"","","","","",null,"",null,null,null,null,null,null,null,null,null,null,null,null,null,null,null,null,null,null,null,0,0,0,0,"Lote 112","","","","","",""," días",null,0,0]
[113,null,null,null,"","","","","",null,"",null,null,null,null,null,null,null,null,null,null,null,null,null,null,null,null,null,null,null,0,0,0,0,"Lote 113","","","","","",""," días",null,0,0]
[114,null,null,null,"","","","","",null,"",null,null,null,null,null,null,null,null,null,null,null,null,null,null,null,null,null,null,null,0,0,0,0,"Lote 114","","","","","",""," días",null,0,0]
[115,null,null,null,"","","","","",null,"",null,null,null,null,null,null,null,null,null,null,null,null,null,null,null,null,null,null,null,0,0,0,0,"Lote 115","","","","","",""," días",null,0,0]
[116,null,null,null,"","","","","",null,"",null,null,null,null,null,null,null,null,null,null,null,null,null,null,null,null,null,null,null,0,0,0,0,"Lote 116","","","","","",""," días",null,0,0]
[117,null,null,null,"","","","","",null,"",null,null,null,null,null,null,null,null,null,null,null,null,null,null,null,null,null,null,null,0,0,0,0,"Lote 117","","","","","",""," días",null,0,0]
[118,null,null,null,"","","","","",null,"",null,null,null,null,null,null,null,null,null,null,null,null,null,null,null,null,null,null,null,0,0,0,0,"Lote 118","","","","","",""," días",null,0,0]
[119,null,null,null,"","","","","",null,"",null,null,null,null,null,null,null,null,null,null,null,null,null,null,null,null,null,null,null,0,0,0,0,"Lote 119","","","","","",""," días",null,0,0]
[120,null,null,null,"","","","","",null,"",null,null,null,null,null,null,null,null,null,null,null,null,null,null,null,null,null,null,null,0,0,0,0,"Lote 120","","","","","",""," días",null,0,0]
[121,null,null,null,"","","","","",null,"",null,null,null,null,null,null,null,null,null,null,null,null,null,null,null,null,null,null,null,0,0,0,0,"Lote 121","","","","","",""," días",null,0,0]
[122,null,null,null,"","","","","",null,"",null,null,null,null,null,null,null,null,null,null,null,null,null,null,null,null,null,null,null,0,0,0,0,"Lote 122","","","","","",""," días",null,0,0]
[123,null,null,null,"","","","","",null,"",null,null,null,null,null,null,null,null,null,null,null,null,null,null,null,null,null,null,null,0,0,0,0,"Lote 123","","","","","",""," días",null,0,0]
[124,null,null,null,"","","","","",null,"",null,null,null,null,null,null,null,null,null,null,null,null,null,null,null,null,null,null,null,0,0,0,0,"Lote 124","","","","","",""," días",null,0,0]
[125,null,null,null,"","","","","",null,"",null,null,null,null,null,null,null,null,null,null,null,null,null,null,null,null,null,null,null,0,0,0,0,"Lote 125","","","","","",""," días",null,0,0]
[126,null,null,null,"","","","","",null,"",null,null,null,null,null,null,null,null,null,null,null,null,null,null,null,null,null,null,null,0,0,0,0,"Lote 126","","","","","",""," días",null,0,0]
[127,null,null,null,"","","","","",null,"",null,null,null,null,null,null,null,null,null,null,null,null,null,null,null,null,null,null,null,0,0,0,0,"Lote 127","","","","","",""," días",null,0,0]
[128,null,null,null,"","","","","",null,"",null,null,null,null,null,null,null,null,null,null,null,null,null,null,null,null,null,null,null,0,0,0,0,"Lote 128","","","","","",""," días",null,0,0]
[129,null,null,null,{"$f":"IF($D138 =\"\",\"\",IF(YEAR($D138)=$F$1,$D138,\"01/01/2025\"))","v":""},"",{"$f":"IF($F138=\"\",\"\",IF(YEAR($F138)=$F$1,$F138,\"31/12/2025\"))","v":""},{"$f":"IF(B138=0,\"\",$H$4)","v":""},"",null,{"$f":"IF(H$5=\"sin dato\",\"\",IF(D138=\"\",\"\",D138+$H$5))","v":""},null,null,null,null,null,null,null,null,null,null,null,null,null,null,null,null,null,null,null,{"$f":"B138","v":0},0,0,0,{"$f":"\"Lote \"&A138","v":"Lote 129"},{"$f":"IF(B138=0,\"\",B138&\" animales\")","v":""},"",{"$f":"IF(D138=\"\",\"\",D138)","v":""},{"$f":"H138","v":""},{"$f":"IF(F138=\"\",\"\",F138)","v":""},{"$f":"I138","v":""}," días",null,{"$f":"IF(AH138=0,0,AO138*AH138)","v":0},{"$f":"IF(AH138=0,0,AM138*AH138)","v":0}]
[130,null,null,null,"",{"$f":"IF(D139=\"\",\"\",D139+H139)","v":""},"","",{"$f":"IF(G139=\"\",\"\",_xlfn.DAYS(G139,E139))","v":""},null,"",null,null,null,null,null,null,null,null,null,null,null,null,null,null,null,null,null,null,null,0,0,{"$f":"(AE139+AF139)/2","v":0},{"$f":"IF($AG$160=0,0,AG139/$AG$160)","v":0},"Lote 130","","","","","","",{"$f":"IF(AO139=0,\"\",AO139& \" días\")","v":" días"},null,0,0]
[131,null,null,null,"","","","","",null,"",null,null,null,null,null,null,null,null,null,null,null,null,null,null,null,null,null,null,null,0,0,0,0,"Lote 131","","","","","",""," días",null,0,0]
[132,null,null,null,"","","","","",null,"",null,null,null,null,null,null,null,null,null,null,null,null,null,null,null,null,null,null,null,0,0,0,0,"Lote 132","","","","","",""," días",null,0,0]
[133,null,null,null,"","","","","",null,"",null,null,null,null,null,null,null,null,null,null,null,null,null,null,null,null,null,null,null,0,0,0,0,"Lote 133","","","","","",""," días",null,0,0]
[134,null,null,null,"","","","","",null,"",null,null,null,null,null,null,null,null,null,null,null,null,null,null,null,null,null,null,null,0,0,0,0,"Lote 134","","","","","",""," días",null,0,0]
[135,null,null,null,"","","","","",null,"",null,null,null,null,null,null,null,null,null,null,null,null,null,null,null,null,null,null,null,0,0,0,0,"Lote 135","","","","","",""," días",null,0,0]
[136,null,null,null,"","","","","",null,"",null,null,null,null,null,null,null,null,null,null,null,null,null,null,null,null,null,null,null,0,0,0,0,"Lote 136","","","","","",""," días",null,0,0]
[137,null,null,null,"","","","","",null,"",null,null,null,null,null,null,null,null,null,null,null,null,null,null,null,null,null,null,null,0,0,0,0,"Lote 137","","","","","",""," días",null,0,0]
[138,null,null,null,"","","","","",null,"",null,null,null,null,null,null,null,null,null,null,null,null,null,null,null,null,null,null,null,0,0,0,0,"Lote 138","","","","","",""," días",null,0,0]
[139,null,null,null,"","","","","",null,"",null,null,null,null,null,null,null,null,null,null,null,null,null,null,null,null,null,null,null,0,0,0,0,"Lote 139","","","","","",""," días",null,0,0]
[140,null,null,null,"","","","","",null,"",null,null,null,null,null,null,null,null,null,null,null,null,null,null,null,null,null,null,null,0,0,0,0,"Lote 140","","","","","",""," días",null,0,0]
[141,null,null,null,"","","","","",null,"",null,null,null,null,null,null,null,null,null,null,null,null,null,null,null,null,null,null,null,0,0,0,0,"Lote 141","","","","","",""," días",null,0,0]
[142,null,null,null,"","","","","",null,"",null,null,null,null,null,null,null,null,null,null,null,null,null,null,null,null,null,null,null,0,0,0,0,"Lote 142","","","","","",""," días",null,0,0]
[143,null,null,null,"","","","","",null,"",null,null,null,null,null,null,null,null,null,null,null,null,null,null,null,null,null,null,null,0,0,0,0,"Lote 143","","","","","",""," días",null,0,0]
[144,null,null,null,"","","","","",null,"",null,null,null,null,null,null,null,null,null,null,null,null,null,null,null,null,null,null,null,0,0,0,0,"Lote 144","","","","","",""," días",null,0,0]
[145,null,null,null,"","","","","",null,"",null,null,null,null,null,null,null,null,null,null,null,null,null,null,null,null,null,null,null,0,0,0,0,"Lote 145","","","","","",""," días",null,0,0]
[146,null,null,null,"","","","","",null,"",null,null,null,null,null,null,null,null,null,null,null,null,null,null,null,null,null,null,null,0,0,0,0,"Lote 146","","","","","",""," días",null,0,0]
[147,null,null,null,"","","","","",null,"",null,null,null,null,null,null,null,null,null,null,null,null,null,null,null,null,null,null,null,0,0,0,0,"Lote 147","","","","","",""," días",null,0,0]
[148,null,null,null,"","","","","",null,"",null,null,null,null,null,null,null,null,null,null,null,null,null,null,null,null,null,null,null,0,0,0,0,"Lote 148","","","","","",""," días",null,0,0]
[149,null,null,null,"","","","","",null,"",null,null,null,null,null,null,null,null,null,null,null,null,null,null,null,null,null,null,null,0,0,0,0,"Lote 149","","","","","",""," días",null,0,0]
[150,null,null,null,"","","","","",null,"",null,null,null,null,null,null,null,null,null,null,null,null,null,null,null,null,null,null,null,0,0,0,0,"Lote 150","","","","","",""," días",null,0,0]
[null,null,null,null,null,null,null,null,null,null,null,null,null,null,null,null,null,null,null,null,null,null,null,null,null,null,null,null,null,null,{"$f":"SUM(AE10:AE159)","v":125},{"$f":"SUM(AF10:AF159)","v":122},{"$f":"ROUND(SUM(AG10:AG159),0)","v":124},{"$f":"SUM(AH10:AH159)","v":0.99596774193548365},null,null,null,null,null,null,null,null,null,{"$f":"ROUND(SUM(AR10:AR159),0)","v":242},{"$f":"ROUND(SUM(AS10:AS159),0)","v":349}]

{"sheet":"Categoria 1","index":3,"n_rows":160,"n_cols":45,"rows_kept":160,"cut":false,"hidden":false,"merged":[[7,1,7,8],[7,12,7,24],[4,13,4,17],[0,1,0,3],[2,0,2,2],[2,3,2,8],[5,1,5,8],[0,12,0,17],[0,18,0,23]]}
[null,"Año de declaración: ",null,null,null,{"$f":"Base!B12","v":2025},null,null,null,null,null,null,"Datos a grabar en el paso 2 de ECOGAN",null,null,null,null,null,"Datos a grabar en el paso 4 de ECOGAN"]
[null,null,null,null,null,null,null," ",null,null,null,null,null,null,null,null,"nº total de animales que entran de esta categoría productiva:",{"$f":"AE160","v":0},null,null,null,null,"Periodo productivo total medio de la categoría productiva:",{"$f":"H4","v":0}]
["Categoría productiva: ",null,null,"Mamones Macho procedentes de vacas lecheras",null,null,null,null,null,null,null,null,null,null,null,null,"nº total de animales vivos que finalizan de esta categoría productiva:",{"$f":"AF160","v":0},null,null,null,null,"días medios presentes de la categoría productiva:",{"$f":"AR160","v":0}]
[null,null,null,null,null,"Indique el periodo productivo medio de la categoría productiva (días):",null,null,"*"]
[null,null,null,null,null,"Periodo productivo medio de referencia (días):",null,{"$f":"IFERROR(VLOOKUP(D3,Base!A2:B7,2,FALSE),\"sin dato\")","v":346},{"$f":"IF(H5=\"sin dato\",\"\",\"(\"&ROUND(H5*0.9,0) &\" - \"&ROUND(H5*1.1,0)&\")\")","v":"(311 - 381)"},null,null,null,null,"Si desea borrar datos grabados anteriormente, pulse aquí\n¡Cuidado! Perderá toda la información"]
["*","Número de días que por término medio los animales de una linea productiva permanecen en la granja desde que entran hasta que salen de ese alojamiento, de modo que el periodo es por ciclo productivo y no por año natural. "]
[null,null,null,null,null,null,null,null,null,null,null,null,{"$f":"Base!F2","v":45292},{"$f":"Base!H3","v":46387}]
["u","Lote es el grupo de animales que van entrando de forma escalonada a los corrales.",null,null,null,null,null,null,null,null,null,null,"Diagrama de entradas y salidas"]
["lote u","nº de animales que entran\nen cada lote","nº de animales vivos que finalizan\nen cada lote","Fecha de entrada                                                                                                                                                                                                                                                                del lote\n(dd/mm/aa)",null,"Fecha de\nfinalización                                                                                                                                                                                                                                  del lote\n(dd/mm/aa)",null,"Periodo productivo total\nmedio\n(días)",{"$f":"\"días presentes del lote\nen el año \" & F1","v":"días presentes del lote\nen el año 2025"},null,{"$f":"IF(H5=\"sin dato\",\"\",\"Fecha fin según fecha entrada y periodo de \"&H5&\" días\")","v":"Fecha fin según fecha entrada y periodo de 346 días"},null,null,null,null,null,null,null,null,null,null,null,null,null,null,null,null,null,null,null,null,null,null,null,"lote",null,null,"Fecha de entrada                                                                                                                                                                                                                                                                del lote","Periodo productivo total","Fecha de entrada                                                                                                                                                                                                                                                                del lote",{"$f":"\"días presentes del lote\nen el año \" & AL1","v":"días presentes del lote\nen el año "},null,null,{"$f":"\"días presentes del lote\nen el año \" & AO1","v":"días presentes del lote\nen el año "},"Periodo productivo total"]
[1,null,null,null,{"$f":"IF($D10 =\"\",\"\",IF(YEAR($D10)=$F$1,$D10,\"01/01/2025\"))","v":""},{"$f":"IF(D10=\"\",\"\",D10+H10)","v":""},{"$f":"IF($F10=\"\",\"\",IF(YEAR($F10)=$F$1,$F10,\"31/12/2025\"))","v":""},{"$f":"IF(B10=0,\"\",$H$4)","v":""},{"$f":"IF(G10=\"\",\"\",_xlfn.DAYS(G10,E10))","v":""},null,{"$f":"IF(H$5=\"sin dato\",\"\",IF(D10=\"\",\"\",D10+$H$5))","v":""},null,null,null,null,null,null,null,null,null,null,null,null,null,null,null,null,null,null,null,{"$f":"B10","v":0},0,{"$f":"(AE10+AF10)/2","v":0},{"$f":"IF($AG$160=0,0,AG10/$AG$160)","v":0},{"$f":"\"Lote \"&A10","v":"Lote 1"},{"$f":"IF(B10=0,\"\",B10&\" animales\")","v":""},"",{"$f":"IF(D10=\"\",\"\",D10)","v":""},{"$f":"H10","v":""},{"$f":"IF(F10=\"\",\"\",F10)","v":""},{"$f":"I10","v":""},{"$f":"IF(AO10=0,\"\",AO10& \" días\")","v":" días"},null,{"$f":"IF(AH10=0,0,AO10*AH10)","v":0},{"$f":"IF(AH10=0,0,AM10*AH10)","v":0}]
[2,null,null,null,"",{"$f":"IF(D11=\"\",\"\",D11+H11)","v":""},"","",{"$f":"IF(G11=\"\",\"\",_xlfn.DAYS(G11,E11))","v":""},null,"",null,null,null,null,null,null,null,null,null,null,null,null,null,null,null,null,null,null,null,0,0,{"$f":"(AE11+AF11)/2","v":0},{"$f":"IF($AG$160=0,0,AG11/$AG$160)","v":0},"Lote 2","","","","","","",{"$f":"IF(AO11=0,\"\",AO11& \" días\")","v":" días"},null,0,0]
[3,null,null,null,"","","","","",null,"",null,null,null,null,null,null,null,null,null,null,null,null,null,null,null,null,null,null,null,0,0,0,0,"Lote 3","","","","","",""," días",null,0,0]
[4,null,null,null,"","","","","",null,"",null,null,null,null,null,null,null,null,null,null,null,null,null,null,null,null,null,null,null,0,0,0,0,"Lote 4","","","","","",""," días",null,0,0]
[5,null,null,null,"","","","","",null,"",null,null,null,null,null,null,null,null,null,null,null,null,null,null,null,null,null,null,null,0,0,0,0,"Lote 5","","","","","",""," días",null,0,0]
[6,null,null,null,"","","","","",null,"",null,null,null,null,null,null,null,null,null,null,null,null,null,null,null,null,null,null,null,0,0,0,0,"Lote 6","","","","","",""," días",null,0,0]
[7,null,null,null,"","","","","",null,"",null,null,null,null,null,null,null,null,null,null,null,null,null,null,null,null,null,null,null,0,0,0,0,"Lote 7","","","","","",""," días",null,0,0]
[8,null,null,null,"","","","","",null,"",null,null,null,null,null,null,null,null,null,null,null,null,null,null,null,null,null,null,null,0,0,0,0,"Lote 8","","","","","",""," días",null,0,0]
[9,null,null,null,"","","","","",null,"",null,null,null,null,null,null,null,null,null,null,null,null,null,null,null,null,null,null,null,0,0,0,0,"Lote 9","","","","","",""," días",null,0,0]
[10,null,null,null,"","","","","",null,"",null,null,null,null,null,null,null,null,null,null,null,null,null,null,null,null,null,null,null,0,0,0,0,"Lote 10","","","","","",""," días",null,0,0]
[11,null,null,null,"","","","","",null,"",null,null,null,null,null,null,null,null,null,null,null,null,null,null,null,null,null,null,null,0,0,0,0,"Lote 11","","","","","",""," días",null,0,0]
[12,null,null,null,"","","","","",null,"",null,null,null,null,null,null,null,null,null,null,null,null,null,null,null,null,null,null,null,0,0,0,0,"Lote 12","","","","","",""," días",null,0,0]
[13,null,null,null,"","","","","",null,"",null,null,null,null,null,null,null,null,null,null,null,null,null,null,null,null,null,null,null,0,0,0,0,"Lote 13","","","","","",""," días",null,0,0]
[14,null,null,null,"","","","","",null,"",null,null,null,null,null,null,null,null,null,null,null,null,null,null,null,null,null,null,null,0,0,0,0,"Lote 14","","","","","",""," días",null,0,0]
[15,null,null,null,"","","","","",null,"",null,null,null,null,null,null,null,null,null,null,null,null,null,null,null,null,null,null,null,0,0,0,0,"Lote 15","","","","","",""," días",null,0,0]
[16,null,null,null,"","","","","",null,"",null,null,null,null,null,null,null,null,null,null,null,null,null,null,null,null,null,null,null,0,0,0,0,"Lote 16","","","","","",""," días",null,0,0]
[17,null,null,null,"","","","","",null,"",null,null,null,null,null,null,null,null,null,null,null,null,null,null,null,null,null,null,null,0,0,0,0,"Lote 17","","","","","",""," días",null,0,0]
[18,null,null,null,"","","","","",null,"",null,null,null,null,null,null,null,null,null,null,null,null,null,null,null,null,null,null,null,0,0,0,0,"Lote 18","","","","","",""," días",null,0,0]
[19,null,null,null,"","","","","",null,"",null,null,null,null,null,null,null,null,null,null,null,null,null,null,null,null,null,null,null,0,0,0,0,"Lote 19","","","","","",""," días",null,0,0]
[20,null,null,null,"","","","","",null,"",null,null,null,null,null,null,null,null,null,null,null,null,null,null,null,null,null,null,null,0,0,0,0,"Lote 20","","","","","",""," días",null,0,0]
[21,null,null,null,"","","","","",null,"",null,null,null,null,null,null,null,null,null,null,null,null,null,null,null,null,null,null,null,0,0,0,0,"Lote 21","","","","","",""," días",null,0,0]
[22,null,null,null,"","","","","",null,"",null,null,null,null,null,null,null,null,null,null,null,null,null,null,null,null,null,null,null,0,0,0,0,"Lote 22","","","","","",""," días",null,0,0]
[23,null,null,null,"","","","","",null,"",null,null,null,null,null,null,null,null,null,null,null,null,null,null,null,null,null,null,null,0,0,0,0,"Lote 23","","","","","",""," días",null,0,0]
[24,null,null,null,"","","","","",null,"",null,null,null,null,null,null,null,null,null,null,null,null,null,null,null,null,null,null,null,0,0,0,0,"Lote 24","","","","","",""," días",null,0,0]
[25,null,null,null,"","","","","",null,"",null,null,null,null,null,null,null,null,null,null,null,null,null,null,null,null,null,null,null,0,0,0,0,"Lote 25","","","","","",""," días",null,0,0]
[26,null,null,null,"","","","","",null,"",null,null,null,null,null,null,null,null,null,null,null,null,null,null,null,null,null,null,null,0,0,0,0,"Lote 26","","","","","",""," días",null,0,0]
[27,null,null,null,"","","","","",null,"",null,null,null,null,null,null,null,null,null,null,null,null,null,null,null,null,null,null,null,0,0,0,0,"Lote 27","","","","","",""," días",null,0,0]
[28,null,null,null,"","","","","",null,"",null,null,null,null,null,null,null,null,null,null,null,null,null,null,null,null,null,null,null,0,0,0,0,"Lote 28","","","","","",""," días",null,0,0]
[29,null,null,null,"","","","","",null,"",null,null,null,null,null,null,null,null,null,null,null,null,null,null,null,null,null,null,null,0,0,0,0,"Lote 29","","","","","",""," días",null,0,0]
[30,null,null,null,"","","","","",null,"",null,null,null,null,null,null,null,null,null,null,null,null,null,null,null,null,null,null,null,0,0,0,0,"Lote 30","","","","","",""," días",null,0,0]
[31,null,null,null,"","","","","",null,"",null,null,null,null,null,null,null,null,null,null,null,null,null,null,null,null,null,null,null,0,0,0,0,"Lote 31","","","","","",""," días",null,0,0]
[32,null,null,null,"","","","","",null,"",null,null,null,null,null,null,null,null,null,null,null,null,null,null,null,null,null,null,null,0,0,0,0,"Lote 32","","","","","",""," días",null,0,0]
[33,null,null,null,"","","",{"$f":"IF(B42=0,\"\",$H$4)","v":""},"",null,{"$f":"IF(H$5=\"sin dato\",\"\",IF(D42=\"\",\"\",D42+$H$5))","v":""},null,null,null,null,null,null,null,null,null,null,null,null,null,null,null,null,null,null,null,{"$f":"B42","v":0},0,0,0,"Lote 33",{"$f":"IF(B42=0,\"\",B42&\" animales\")","v":""},"","","","",""," días",null,0,0]
[34,null,null,null,"","","","","",null,"",null,null,null,null,null,null,null,null,null,null,null,null,null,null,null,null,null,null,null,0,0,0,0,"Lote 34","","","","","",""," días",null,0,0]
[35,null,null,null,"","","","","",null,"",null,null,null,null,null,null,null,null,null,null,null,null,null,null,null,null,null,null,null,0,0,0,0,"Lote 35","","","","","",""," días",null,0,0]
[36,null,null,null,"","","","","",null,"",null,null,null,null,null,null,null,null,null,null,null,null,null,null,null,null,null,null,null,0,0,0,0,"Lote 36","","","","","",""," días",null,0,0]
[37,null,null,null,"","","","","",null,"",null,null,null,null,null,null,null,null,null,null,null,null,null,null,null,null,null,null,null,0,0,0,0,"Lote 37","","","","","",""," días",null,0,0]
[38,null,null,null,"","","","","",null,"",null,null,null,null,null,null,null,null,null,null,null,null,null,null,null,null,null,null,null,0,0,0,0,"Lote 38","","","","","",""," días",null,0,0]
[39,null,null,null,"","","","","",null,"",null,null,null,null,null,null,null,null,null,null,null,null,null,null,null,null,null,null,null,0,0,0,0,"Lote 39","","","","","",""," días",null,0,0]
[40,null,null,null,"","","","","",null,"",null,null,null,null,null,null,null,null,null,null,null,null,null,null,null,null,null,null,null,0,0,0,0,"Lote 40","","","","","",""," días",null,0,0]
[41,null,null,null,"","","","","",null,"",null,null,null,null,null,null,null,null,null,null,null,null,null,null,null,null,null,null,null,0,0,0,0,"Lote 41","","","","","",""," días",null,0,0]
[42,null,null,null,"","","","","",null,"",null,null,null,null,null,null,null,null,null,null,null,null,null,null,null,null,null,null,null,0,0,0,0,"Lote 42","","","","","",""," días",null,0,0]
[43,null,null,null,"","","","","",null,"",null,null,null,null,null,null,null,null,null,null,null,null,null,null,null,null,null,null,null,0,0,0,0,"Lote 43","","","","","",""," días",null,0,0]
[44,null,null,null,"","","","","",null,"",null,null,null,null,null,null,null,null,null,null,null,null,null,null,null,null,null,null,null,0,0,0,0,"Lote 44","","","","","",""," días",null,0,0]
[45,null,null,null,"","","","","",null,"",null,null,null,null,null,null,null,null,null,null,null,null,null,null,null,null,null,null,null,0,0,0,0,"Lote 45","","","","","",""," días",null,0,0]
[46,null,null,null,"","","","","",null,"",null,null,null,null,null,null,null,null,null,null,null,null,null,null,null,null,null,null,null,0,0,0,0,"Lote 46","","","","","",""," días",null,0,0]
[47,null,null,null,"","","","","",null,"",null,null,null,null,null,null,null,null,null,null,null,null,null,null,null,null,null,null,null,0,0,0,0,"Lote 47","","","","","",""," días",null,0,0]
[48,null,null,null,"","","","","",null,"",null,null,null,null,null,null,null,null,null,null,null,null,null,null,null,null,null,null,null,0,0,0,0,"Lote 48","","","","","",""," días",null,0,0]
[49,null,null,null,"","","","","",null,"",null,null,null,null,null,null,null,null,null,null,null,null,null,null,null,null,null,null,null,0,0,0,0,"Lote 49","","","","","",""," días",null,0,0]
[50,null,null,null,"","","","","",null,"",null,null,null,null,null,null,null,null,null,null,null,null,null,null,null,null,null,null,null,0,0,0,0,"Lote 50","","","","","",""," días",null,0,0]
[51,null,null,null,"","","","","",null,"",null,null,null,null,null,null,null,null,null,null,null,null,null,null,null,null,null,null,null,0,0,0,0,"Lote 51","","","","","",""," días",null,0,0]
[52,null,null,null,"","","","","",null,"",null,null,null,null,null,null,null,null,null,null,null,null,null,null,null,null,null,null,null,0,0,0,0,"Lote 52","","","","","",""," días",null,0,0]
[53,null,null,null,"","","","","",null,"",null,null,null,null,null,null,null,null,null,null,null,null,null,null,null,null,null,null,null,0,0,0,0,"Lote 53","","","","","",""," días",null,0,0]
[54,null,null,null,"","","","","",null,"",null,null,null,null,null,null,null,null,null,null,null,null,null,null,null,null,null,null,null,0,0,0,0,"Lote 54","","","","","",""," días",null,0,0]
[55,null,null,null,"","","","","",null,"",null,null,null,null,null,null,null,null,null,null,null,null,null,null,null,null,null,null,null,0,0,0,0,"Lote 55","","","","","",""," días",null,0,0]
[56,null,null,null,"","","","","",null,"",null,null,null,null,null,null,null,null,null,null,null,null,null,null,null,null,null,null,null,0,0,0,0,"Lote 56","","","","","",""," días",null,0,0]
[57,null,null,null,"","","","","",null,"",null,null,null,null,null,null,null,null,null,null,null,null,null,null,null,null,null,null,null,0,0,0,0,"Lote 57","","","","","",""," días",null,0,0]
[58,null,null,null,"","","","","",null,"",null,null,null,null,null,null,null,null,null,null,null,null,null,null,null,null,null,null,null,0,0,0,0,"Lote 58","","","","","",""," días",null,0,0]
[59,null,null,null,"","","","","",null,"",null,null,null,null,null,null,null,null,null,null,null,null,null,null,null,null,null,null,null,0,0,0,0,"Lote 59","","","","","",""," días",null,0,0]
[60,null,null,null,"","","","","",null,"",null,null,null,null,null,null,null,null,null,null,null,null,null,null,null,null,null,null,null,0,0,0,0,"Lote 60","","","","","",""," días",null,0,0]
[61,null,null,null,"","","","","",null,"",null,null,null,null,null,null,null,null,null,null,null,null,null,null,null,null,null,null,null,0,0,0,0,"Lote 61","","","","","",""," días",null,0,0]
[62,null,null,null,"","","","","",null,"",null,null,null,null,null,null,null,null,null,null,null,null,null,null,null,null,null,null,null,0,0,0,0,"Lote 62","","","","","",""," días",null,0,0]
[63,null,null,null,"","","","","",null,"",null,null,null,null,null,null,null,null,null,null,null,null,null,null,null,null,null,null,null,0,0,0,0,"Lote 63","","","","","",""," días",null,0,0]
[64,null,null,null,"","","","","",null,"",null,null,null,null,null,null,null,null,null,null,null,null,null,null,null,null,null,null,null,0,0,0,0,"Lote 64","","","","","",""," días",null,0,0]
[65,null,null,null,{"$f":"IF($D74 =\"\",\"\",IF(YEAR($D74)=$F$1,$D74,\"01/01/2025\"))","v":""},"",{"$f":"IF($F74=\"\",\"\",IF(YEAR($F74)=$F$1,$F74,\"31/12/2025\"))","v":""},{"$f":"IF(B74=0,\"\",$H$4)","v":""},"",null,{"$f":"IF(H$5=\"sin dato\",\"\",IF(D74=\"\",\"\",D74+$H$5))","v":""},null,null,null,null,null,null,null,null,null,null,null,null,null,null,null,null,null,null,null,{"$f":"B74","v":0},0,0,0,{"$f":"\"Lote \"&A74","v":"Lote 65"},{"$f":"IF(B74=0,\"\",B74&\" animales\")","v":""},"",{"$f":"IF(D74=\"\",\"\",D74)","v":""},{"$f":"H74","v":""},{"$f":"IF(F74=\"\",\"\",F74)","v":""},{"$f":"I74","v":""}," días",null,{"$f":"IF(AH74=0,0,AO74*AH74)","v":0},{"$f":"IF(AH74=0,0,AM74*AH74)","v":0}]
[66,null,null,null,"",{"$f":"IF(D75=\"\",\"\",D75+H75)","v":""},"","",{"$f":"IF(G75=\"\",\"\",_xlfn.DAYS(G75,E75))","v":""},null,"",null,null,null,null,null,null,null,null,null,null,null,null,null,null,null,null,null,null,null,0,0,{"$f":"(AE75+AF75)/2","v":0},{"$f":"IF($AG$160=0,0,AG75/$AG$160)","v":0},"Lote 66","","","","","","",{"$f":"IF(AO75=0,\"\",AO75& \" días\")","v":" días"},null,0,0]
[67,null,null,null,"","","","","",null,"",null,null,null,null,null,null,null,null,null,null,null,null,null,null,null,null,null,null,null,0,0,0,0,"Lote 67","","","","","",""," días",null,0,0]
[68,null,null,null,"","","","","",null,"",null,null,null,null,null,null,null,null,null,null,null,null,null,null,null,null,null,null,null,0,0,0,0,"Lote 68","","","","","",""," días",null,0,0]
[69,null,null,null,"","","","","",null,"",null,null,null,null,null,null,null,null,null,null,null,null,null,null,null,null,null,null,null,0,0,0,0,"Lote 69","","","","","",""," días",null,0,0]
[70,null,null,null,"","","","","",null,"",null,null,null,null,null,null,null,null,null,null,null,null,null,null,null,null,null,null,null,0,0,0,0,"Lote 70","","","","","",""," días",null,0,0]
[71,null,null,null,"","","","","",null,"",null,null,null,null,null,null,null,null,null,null,null,null,null,null,null,null,null,null,null,0,0,0,0,"Lote 71","","","","","",""," días",null,0,0]
[72,null,null,null,"","","","","",null,"",null,null,null,null,null,null,null,null,null,null,null,null,null,null,null,null,null,null,null,0,0,0,0,"Lote 72","","","","","",""," días",null,0,0]
[73,null,null,null,"","","","","",null,"",null,null,null,null,null,null,null,null,null,null,null,null,null,null,null,null,null,null,null,0,0,0,0,"Lote 73","","","","","",""," días",null,0,0]
[74,null,null,null,"","","","","",null,"",null,null,null,null,null,null,null,null,null,null,null,null,null,null,null,null,null,null,null,0,0,0,0,"Lote 74","","","","","",""," días",null,0,0]
[75,null,null,null,"","","","","",null,"",null,null,null,null,null,null,null,null,null,null,null,null,null,null,null,null,null,null,null,0,0,0,0,"Lote 75","","","","","",""," días",null,0,0]
[76,null,null,null,"","","","","",null,"",null,null,null,null,null,null,null,null,null,null,null,null,null,null,null,null,null,null,null,0,0,0,0,"Lote 76","","","","","",""," días",null,0,0]
[77,null,null,null,"","","","","",null,"",null,null,null,null,null,null,null,null,null,null,null,null,null,null,null,null,null,null,null,0,0,0,0,"Lote 77","","","","","",""," días",null,0,0]
[78,null,null,null,"","","","","",null,"",null,null,null,null,null,null,null,null,null,null,null,null,null,null,null,null,null,null,null,0,0,0,0,"Lote 78","","","","","",""," días",null,0,0]
[79,null,null,null,"","","","","",null,"",null,null,null,null,null,null,null,null,null,null,null,null,null,null,null,null,null,null,null,0,0,0,0,"Lote 79","","","","","",""," días",null,0,0]
[80,null,null,null,"","","","","",null,"",null,null,null,null,null,null,null,null,null,null,null,null,null,null,null,null,null,null,null,0,0,0,0,"Lote 80","","","","","",""," días",null,0,0]
[81,null,null,null,"","","","","",null,"",null,null,null,null,null,null,null,null,null,null,null,null,null,null,null,null,null,null,null,0,0,0,0,"Lote 81","","","","","",""," días",null,0,0]
[82,null,null,null,"","","","","",null,"",null,null,null,null,null,null,null,null,null,null,null,null,null,null,null,null,null,null,null,0,0,0,0,"Lote 82","","","","","",""," días",null,0,0]
[83,null,null,null,"","","","","",null,"",null,null,null,null,null,null,null,null,null,null,null,null,null,null,null,null,null,null,null,0,0,0,0,"Lote 83","","","","","",""," días",null,0,0]
[84,null,null,null,"","","","","",null,"",null,null,null,null,null,null,null,null,null,null,null,null,null,null,null,null,null,null,null,0,0,0,0,"Lote 84","","","","","",""," días",null,0,0]
[85,null,null,null,"","","","","",null,"",null,null,null,null,null,null,null,null,null,null,null,null,null,null,null,null,null,null,null,0,0,0,0,"Lote 85","","","","","",""," días",null,0,0]
[86,null,null,null,"","","","","",null,"",null,null,null,null,null,null,null,null,null,null,null,null,null,null,null,null,null,null,null,0,0,0,0,"Lote 86","","","","","",""," días",null,0,0]
[87,null,null,null,"","","","","",null,"",null,null,null,null,null,null,null,null,null,null,null,null,null,null,null,null,null,null,null,0,0,0,0,"Lote 87","","","","","",""," días",null,0,0]
[88,null,null,null,"","","","","",null,"",null,null,null,null,null,null,null,null,null,null,null,null,null,null,null,null,null,null,null,0,0,0,0,"Lote 88","","","","","",""," días",null,0,0]
[89,null,null,null,"","","","","",null,"",null,null,null,null,null,null,null,null,null,null,null,null,null,null,null,null,null,null,null,0,0,0,0,"Lote 89","","","","","",""," días",null,0,0]
[90,null,null,null,"","","","","",null,"",null,null,null,null,null,null,null,null,null,null,null,null,null,null,null,null,null,null,null,0,0,0,0,"Lote 90","","","","","",""," días",null,0,0]
[91,null,null,null,"","","","","",null,"",null,null,null,null,null,null,null,null,null,null,null,null,null,null,null,null,null,null,null,0,0,0,0,"Lote 91","","","","","",""," días",null,0,0]
[92,null,null,null,"","","","","",null,"",null,null,null,null,null,null,null,null,null,null,null,null,null,null,null,null,null,null,null,0,0,0,0,"Lote 92","","","","","",""," días",null,0,0]
[93,null,null,null,"","","","","",null,"",null,null,null,null,null,null,null,null,null,null,null,null,null,null,null,null,null,null,null,0,0,0,0,"Lote 93","","","","","",""," días",null,0,0]
[94,null,null,null,"","","","","",null,"",null,null,null,null,null,null,null,null,null,null,null,null,null,null,null,null,null,null,null,0,0,0,0,"Lote 94","","","","","",""," días",null,0,0]
[95,null,null,null,"","","","","",null,"",null,null,null,null,null,null,null,null,null,null,null,null,null,null,null,null,null,null,null,0,0,0,0,"Lote 95","","","","","",""," días",null,0,0]
[96,null,null,null,"","","","","",null,"",null,null,null,null,null,null,null,null,null,null,null,null,null,null,null,null,null,null,null,0,0,0,0,"Lote 96","","","","","",""," días",null,0,0]
[97,null,null,null,"","","",{"$f":"IF(B106=0,\"\",$H$4)","v":""},"",null,{"$f":"IF(H$5=\"sin dato\",\"\",IF(D106=\"\",\"\",D106+$H$5))","v":""},null,null,null,null,null,null,null,null,null,null,null,null,null,null,null,null,null,null,null,{"$f":"B106","v":0},0,0,0,"Lote 97",{"$f":"IF(B106=0,\"\",B106&\" animales\")","v":""},"","","","",""," días",null,0,0]
[98,null,null,null,"","","","","",null,"",null,null,null,null,null,null,null,null,null,null,null,null,null,null,null,null,null,null,null,0,0,0,0,"Lote 98","","","","","",""," días",null,0,0]
[99,null,null,null,"","","","","",null,"",null,null,null,null,null,null,null,null,null,null,null,null,null,null,null,null,null,null,null,0,0,0,0,"Lote 99","","","","","",""," días",null,0,0]
[100,null,null,null,"","","","","",null,"",null,null,null,null,null,null,null,null,null,null,null,null,null,null,null,null,null,null,null,0,0,0,0,"Lote 100","","","","","",""," días",null,0,0]
[101,null,null,null,"","","","","",null,"",null,null,null,null,null,null,null,null,null,null,null,null,null,null,null,null,null,null,null,0,0,0,0,"Lote 101","","","","","",""," días",null,0,0]
[102,null,null,null,"","","","","",null,"",null,null,null,null,null,null,null,null,null,null,null,null,null,null,null,null,null,null,null,0,0,0,0,"Lote 102","","","","","",""," días",null,0,0]
[103,null,null,null,"","","","","",null,"",null,null,null,null,null,null,null,null,null,null,null,null,null,null,null,null,null,null,null,0,0,0,0,"Lote 103","","","","","",""," días",null,0,0]
[104,null,null,null,"","","","","",null,"",null,null,null,null,null,null,null,null,null,null,null,null,null,null,null,null,null,null,null,0,0,0,0,"Lote 104","","","","","",""," días",null,0,0]
[105,null,null,null,"","","","","",null,"",null,null,null,null,null,null,null,null,null,null,null,null,null,null,null,null,null,null,null,0,0,0,0,"Lote 105","","","","","",""," días",null,0,0]
[106,null,null,null,"","","","","",null,"",null,null,null,null,null,null,null,null,null,null,null,null,null,null,null,null,null,null,null,0,0,0,0,"Lote 106","","","","","",""," días",null,0,0]
[107,null,null,null,"","","","","",null,"",null,null,null,null,null,null,null,null,null,null,null,null,null,null,null,null,null,null,null,0,0,0,0,"Lote 107","","","","","",""," días",null,0,0]
[108,null,null,null,"","","","","",null,"",null,null,null,null,null,null,null,null,null,null,null,null,null,null,null,null,null,null,null,0,0,0,0,"Lote 108","","","","","",""," días",null,0,0]
[109,null,null,null,"","","","","",null,"",null,null,null,null,null,null,null,null,null,null,null,null,null,null,null,null,null,null,null,0,0,0,0,"Lote 109","","","","","",""," días",null,0,0]
[110,null,null,null,"","","","","",null,"",null,null,null,null,null,null,null,null,null,null,null,null,null,null,null,null,null,null,null,0,0,0,0,"Lote 110","","","","","",""," días",null,0,0]
[111,null,null,null,"","","","","",null,"",null,null,null,null,null,null,null,null,null,null,null,null,null,null,null,null,null,null,null,0,0,0,0,"Lote 111","","","","","",""," días",null,0,0]
[112,null,null,null,"","","","","",null,"",null,null,null,null,null,null,null,null,null,null,null,null,null,null,null,null,null,null,null,0,0,0,0,"Lote 112","","","","","",""," días",null,0,0]
[113,null,null,null,"","","","","",null,"",null,null,null,null,null,null,null,null,null,null,null,null,null,null,null,null,null,null,null,0,0,0,0,"Lote 113","","","","","",""," días",null,0,0]
[114,null,null,null,"","","","","",null,"",null,null,null,null,null,null,null,null,null,null,null,null,null,null,null,null,null,null,null,0,0,0,0,"Lote 114","","","","","",""," días",null,0,0]
[115,null,null,null,"","","","","",null,"",null,null,null,null,null,null,null,null,null,null,null,null,null,null,null,null,null,null,null,0,0,0,0,"Lote 115","","","","","",""," días",null,0,0]
[116,null,null,null,"","","","","",null,"",null,null,null,null,null,null,null,null,null,null,null,null,null,null,null,null,null,null,null,0,0,0,0,"Lote 116","","","","","",""," días",null,0,0]
[117,null,null,null,"","","","","",null,"",null,null,null,null,null,null,null,null,null,null,null,null,null,null,null,null,null,null,null,0,0,0,0,"Lote 117","","","","","",""," días",null,0,0]
[118,null,null,null,"","","","","",null,"",null,null,null,null,null,null,null,null,null,null,null,null,null,null,null,null,null,null,null,0,0,0,0,"Lote 118","","","","","",""," días",null,0,0]
[119,null,null,null,"","","","","",null,"",null,null,null,null,null,null,null,null,null,null,null,null,null,null,null,null,null,null,null,0,0,0,0,"Lote 119","","","","","",""," días",null,0,0]
[120,null,null,null,"","","","","",null,"",null,null,null,null,null,null,null,null,null,null,null,null,null,null,null,null,null,null,null,0,0,0,0,"Lote 120","","","","","",""," días",null,0,0]
[121,null,null,null,"","","","","",null,"",null,null,null,null,null,null,null,null,null,null,null,null,null,null,null,null,null,null,null,0,0,0,0,"Lote 121","","","","","",""," días",null,0,0]
[122,null,null,null,"","","","","",null,"",null,null,null,null,null,null,null,null,null,null,null,null,null,null,null,null,null,null,null,0,0,0,0,"Lote 122","","","","","",""," días",null,0,0]
[123,null,null,null,"","","","","",null,"",null,null,null,null,null,null,null,null,null,null,null,null,null,null,null,null,null,null,null,0,0,0,0,"Lote 123","","","","","",""," días",null,0,0]
[124,null,null,null,"","","","","",null,"",null,null,null,null,null,null,null,null,null,null,null,null,null,null,null,null,null,null,null,0,0,0,0,"Lote 124","","","","","",""," días",null,0,0]
[125,null,null,null,"","","","","",null,"",null,null,null,null,null,null,null,null,null,null,null,null,null,null,null,null,null,null,null,0,0,0,0,"Lote 125","","","","","",""," días",null,0,0]
[126,null,null,null,"","","","","",null,"",null,null,null,null,null,null,null,null,null,null,null,null,null,null,null,null,null,null,null,0,0,0,0,"Lote 126","","","","","",""," días",null,0,0]
[127,null,null,null,"","","","","",null,"",null,null,null,null,null,null,null,null,null,null,null,null,null,null,null,null,null,null,null,0,0,0,0,"Lote 127","","","","","",""," días",null,0,0]
[128,null,null,null,"","","","","",null,"",null,null,null,null,null,null,null,null,null,null,null,null,null,null,null,null,null,null,null,0,0,0,0,"Lote 128","","","","","",""," días",null,0,0]
[129,null,null,null,{"$f":"IF($D138 =\"\",\"\",IF(YEAR($D138)=$F$1,$D138,\"01/01/2025\"))","v":""},"",{"$f":"IF($F138=\"\",\"\",IF(YEAR($F138)=$F$1,$F138,\"31/12/2025\"))","v":""},{"$f":"IF(B138=0,\"\",$H$4)","v":""},"",null,{"$f":"IF(H$5=\"sin dato\",\"\",IF(D138=\"\",\"\",D138+$H$5))","v":""},null,null,null,null,null,null,null,null,null,null,null,null,null,null,null,null,null,null,null,{"$f":"B138","v":0},0,0,0,{"$f":"\"Lote \"&A138","v":"Lote 129"},{"$f":"IF(B138=0,\"\",B138&\" animales\")","v":""},"",{"$f":"IF(D138=\"\",\"\",D138)","v":""},{"$f":"H138","v":""},{"$f":"IF(F138=\"\",\"\",F138)","v":""},{"$f":"I138","v":""}," días",null,{"$f":"IF(AH138=0,0,AO138*AH138)","v":0},{"$f":"IF(AH138=0,0,AM138*AH138)","v":0}]
[130,null,null,null,"",{"$f":"IF(D139=\"\",\"\",D139+H139)","v":""},"","",{"$f":"IF(G139=\"\",\"\",_xlfn.DAYS(G139,E139))","v":""},null,"",null,null,null,null,null,null,null,null,null,null,null,null,null,null,null,null,null,null,null,0,0,{"$f":"(AE139+AF139)/2","v":0},{"$f":"IF($AG$160=0,0,AG139/$AG$160)","v":0},"Lote 130","","","","","","",{"$f":"IF(AO139=0,\"\",AO139& \" días\")","v":" días"},null,0,0]
[131,null,null,null,"","","","","",null,"",null,null,null,null,null,null,null,null,null,null,null,null,null,null,null,null,null,null,null,0,0,0,0,"Lote 131","","","","","",""," días",null,0,0]
[132,null,null,null,"","","","","",null,"",null,null,null,null,null,null,null,null,null,null,null,null,null,null,null,null,null,null,null,0,0,0,0,"Lote 132","","","","","",""," días",null,0,0]
[133,null,null,null,"","","","","",null,"",null,null,null,null,null,null,null,null,null,null,null,null,null,null,null,null,null,null,null,0,0,0,0,"Lote 133","","","","","",""," días",null,0,0]
[134,null,null,null,"","","","","",null,"",null,null,null,null,null,null,null,null,null,null,null,null,null,null,null,null,null,null,null,0,0,0,0,"Lote 134","","","","","",""," días",null,0,0]
[135,null,null,null,"","","","","",null,"",null,null,null,null,null,null,null,null,null,null,null,null,null,null,null,null,null,null,null,0,0,0,0,"Lote 135","","","","","",""," días",null,0,0]
[136,null,null,null,"","","","","",null,"",null,null,null,null,null,null,null,null,null,null,null,null,null,null,null,null,null,null,null,0,0,0,0,"Lote 136","","","","","",""," días",null,0,0]
[137,null,null,null,"","","","","",null,"",null,null,null,null,null,null,null,null,null,null,null,null,null,null,null,null,null,null,null,0,0,0,0,"Lote 137","","","","","",""," días",null,0,0]
[138,null,null,null,"","","","","",null,"",null,null,null,null,null,null,null,null,null,null,null,null,null,null,null,null,null,null,null,0,0,0,0,"Lote 138","","","","","",""," días",null,0,0]
[139,null,null,null,"","","","","",null,"",null,null,null,null,null,null,null,null,null,null,null,null,null,null,null,null,null,null,null,0,0,0,0,"Lote 139","","","","","",""," días",null,0,0]
[140,null,null,null,"","","","","",null,"",null,null,null,null,null,null,null,null,null,null,null,null,null,null,null,null,null,null,null,0,0,0,0,"Lote 140","","","","","",""," días",null,0,0]
[141,null,null,null,"","","","","",null,"",null,null,null,null,null,null,null,null,null,null,null,null,null,null,null,null,null,null,null,0,0,0,0,"Lote 141","","","","","",""," días",null,0,0]
[142,null,null,null,"","","","","",null,"",null,null,null,null,null,null,null,null,null,null,null,null,null,null,null,null,null,null,null,0,0,0,0,"Lote 142","","","","","",""," días",null,0,0]
[143,null,null,null,"","","","","",null,"",null,null,null,null,null,null,null,null,null,null,null,null,null,null,null,null,null,null,null,0,0,0,0,"Lote 143","","","","","",""," días",null,0,0]
[144,null,null,null,"","","","","",null,"",null,null,null,null,null,null,null,null,null,null,null,null,null,null,null,null,null,null,null,0,0,0,0,"Lote 144","","","","","",""," días",null,0,0]
[145,null,null,null,"","","","","",null,"",null,null,null,null,null,null,null,null,null,null,null,null,null,null,null,null,null,null,null,0,0,0,0,"Lote 145","","","","","",""," días",null,0,0]
[146,null,null,null,"","","","","",null,"",null,null,null,null,null,null,null,null,null,null,null,null,null,null,null,null,null,null,null,0,0,0,0,"Lote 146","","","","","",""," días",null,0,0]
[147,null,null,null,"","","","","",null,"",null,null,null,null,null,null,null,null,null,null,null,null,null,null,null,null,null,null,null,0,0,0,0,"Lote 147","","","","","",""," días",null,0,0]
[148,null,null,null,"","","","","",null,"",null,null,null,null,null,null,null,null,null,null,null,null,null,null,null,null,null,null,null,0,0,0,0,"Lote 148","","","","","",""," días",null,0,0]
[149,null,null,null,"","","","","",null,"",null,null,null,null,null,null,null,null,null,null,null,null,null,null,null,null,null,null,null,0,0,0,0,"Lote 149","","","","","",""," días",null,0,0]
[150,null,null,null,"","","","","",null,"",null,null,null,null,null,null,null,null,null,null,null,null,null,null,null,null,null,null,null,0,0,0,0,"Lote 150","","","","","",""," días",null,0,0]
[null,null,null,null,null,null,null,null,null,null,null,null,null,null,null,null,null,null,null,null,null,null,null,null,null,null,null,null,null,null,{"$f":"SUM(AE10:AE159)","v":0},{"$f":"SUM(AF10:AF159)","v":0},{"$f":"ROUND(SUM(AG10:AG159),0)","v":0},{"$f":"SUM(AH10:AH159)","v":0},null,null,null,null,null,null,null,null,null,{"$f":"ROUND(SUM(AR10:AR159),0)","v":0},{"$f":"ROUND(SUM(AS10:AS159),0)","v":0}]

{"sheet":"Categoria 2","index":4,"n_rows":160,"n_cols":45,"rows_kept":160,"cut":false,"hidden":false,"merged":[[7,1,7,8],[7,12,7,24],[4,13,4,17],[0,1,0,3],[2,0,2,2],[2,3,2,8],[5,1,5,8],[0,12,0,17],[0,18,0,23]]}
[null,"Año de declaración: ",null,null,null,{"$f":"Base!B12","v":2025},null,null,null,null,null,null,"Datos a grabar en el paso 2 de ECOGAN",null,null,null,null,null,"Datos a grabar en el paso 4 de ECOGAN"]
[null,null,null,null,null,null,null,null,null,null,null,null,null,null,null,null,"nº total de animales que entran de esta categoría productiva:",{"$f":"AE160","v":0},null,null,null,null,"Periodo productivo total medio de la categoría productiva:",{"$f":"H4","v":0}]
["Categoría productiva: ",null,null,"Mamones Hembra procedentes de vacas lecheras",null,null,null,null,null,null,null,null,null,null,null,null,"nº total de animales vivos que finalizan de esta categoría productiva:",{"$f":"AF160","v":0},null,null,null,null,"días medios presentes de la categoría productiva:",{"$f":"AR160","v":0}]
[null,null,null,null,null,"Indique el periodo productivo medio de la categoría productiva (días):",null,null,"*"]
[null,null,null,null,null,"Periodo productivo medio de referencia (días):",null,{"$f":"IFERROR(VLOOKUP(D3,Base!A2:B7,2,FALSE),\"sin dato\")","v":337},{"$f":"IF(H5=\"sin dato\",\"\",\"(\"&ROUND(H5*0.9,0) &\" - \"&ROUND(H5*1.1,0)&\")\")","v":"(303 - 371)"},null,null,null,null,"Si desea borrar datos grabados anteriormente, pulse aquí\n¡Cuidado! Perderá toda la información"]
["*","Número de días que por término medio los animales de una linea productiva permanecen en la granja desde que entran hasta que salen de ese alojamiento, de modo que el periodo es por ciclo productivo y no por año natural. "]
[null,null,null,null,null,null,null,null,null,null,null,null,{"$f":"Base!F2","v":45292},{"$f":"Base!H3","v":46387}]
["u","Lote es el grupo de animales que van entrando de forma escalonada a los corrales.",null,null,null,null,null,null,null,null,null,null,"Diagrama de entradas y salidas"]
["lote u","nº de animales que entran\nen cada lote","nº de animales vivos que finalizan\nen cada lote","Fecha de entrada                                                                                                                                                                                                                                                                del lote\n(dd/mm/aa)",null,"Fecha de\nfinalización                                                                                                                                                                                                                                  del lote\n(dd/mm/aa)",null,"Periodo productivo total\nmedio\n(días)",{"$f":"\"días presentes del lote\nen el año \" & F1","v":"días presentes del lote\nen el año 2025"},null,{"$f":"IF(H5=\"sin dato\",\"\",\"Fecha fin según fecha entrada y periodo de \"&H5&\" días\")","v":"Fecha fin según fecha entrada y periodo de 337 días"},null,null,null,null,null,null,null,null,null,null,null,null,null,null,null,null,null,null,null,null,null,null,null,"lote",null,null,"Fecha de entrada                                                                                                                                                                                                                                                                del lote","Periodo productivo total","Fecha de entrada                                                                                                                                                                                                                                                                del lote",{"$f":"\"días presentes del lote\nen el año \" & AL1","v":"días presentes del lote\nen el año "},null,null,{"$f":"\"días presentes del lote\nen el año \" & AO1","v":"días presentes del lote\nen el año "},"Periodo productivo total"]
[1,null,null,null,{"$f":"IF($D10 =\"\",\"\",IF(YEAR($D10)=$F$1,$D10,\"01/01/2025\"))","v":""},{"$f":"IF(D10=\"\",\"\",D10+H10)","v":""},{"$f":"IF($F10=\"\",\"\",IF(YEAR($F10)=$F$1,$F10,\"31/12/2025\"))","v":""},{"$f":"IF(B10=0,\"\",$H$4)","v":""},{"$f":"IF(G10=\"\",\"\",_xlfn.DAYS(G10,E10))","v":""},null,{"$f":"IF(H$5=\"sin dato\",\"\",IF(D10=\"\",\"\",D10+$H$5))","v":""},null,null,null,null,null,null,null,null,null,null,null,null,null,null,null,null,null,null,null,{"$f":"B10","v":0},0,{"$f":"(AE10+AF10)/2","v":0},{"$f":"IF($AG$160=0,0,AG10/$AG$160)","v":0},{"$f":"\"Lote \"&A10","v":"Lote 1"},{"$f":"IF(B10=0,\"\",B10&\" animales\")","v":""},"",{"$f":"IF(D10=\"\",\"\",D10)","v":""},{"$f":"H10","v":""},{"$f":"IF(F10=\"\",\"\",F10)","v":""},{"$f":"I10","v":""},{"$f":"IF(AO10=0,\"\",AO10& \" días\")","v":" días"},null,{"$f":"IF(AH10=0,0,AO10*AH10)","v":0},{"$f":"IF(AH10=0,0,AM10*AH10)","v":0}]
[2,null,null,null,"",{"$f":"IF(D11=\"\",\"\",D11+H11)","v":""},"","",{"$f":"IF(G11=\"\",\"\",_xlfn.DAYS(G11,E11))","v":""},null,"",null,null,null,null,null,null,null,null,null,null,null,null,null,null,null,null,null,null,null,0,0,{"$f":"(AE11+AF11)/2","v":0},{"$f":"IF($AG$160=0,0,AG11/$AG$160)","v":0},"Lote 2","","","","","","",{"$f":"IF(AO11=0,\"\",AO11& \" días\")","v":" días"},null,0,0]
[3,null,null,null,"","","","","",null,"",null,null,null,null,null,null,null,null,null,null,null,null,null,null,null,null,null,null,null,0,0,0,0,"Lote 3","","","","","",""," días",null,0,0]
[4,null,null,null,"","","","","",null,"",null,null,null,null,null,null,null,null,null,null,null,null,null,null,null,null,null,null,null,0,0,0,0,"Lote 4","","","","","",""," días",null,0,0]
[5,null,null,null,"","","","","",null,"",null,null,null,null,null,null,null,null,null,null,null,null,null,null,null,null,null,null,null,0,0,0,0,"Lote 5","","","","","",""," días",null,0,0]
[6,null,null,null,"","","","","",null,"",null,null,null,null,null,null,null,null,null,null,null,null,null,null,null,null,null,null,null,0,0,0,0,"Lote 6","","","","","",""," días",null,0,0]
[7,null,null,null,"","","","","",null,"",null,null,null,null,null,null,null,null,null,null,null,null,null,null,null,null,null,null,null,0,0,0,0,"Lote 7","","","","","",""," días",null,0,0]
[8,null,null,null,"","","","","",null,"",null,null,null,null,null,null,null,null,null,null,null,null,null,null,null,null,null,null,null,0,0,0,0,"Lote 8","","","","","",""," días",null,0,0]
[9,null,null,null,"","","","","",null,"",null,null,null,null,null,null,null,null,null,null,null,null,null,null,null,null,null,null,null,0,0,0,0,"Lote 9","","","","","",""," días",null,0,0]
[10,null,null,null,"","","","","",null,"",null,null,null,null,null,null,null,null,null,null,null,null,null,null,null,null,null,null,null,0,0,0,0,"Lote 10","","","","","",""," días",null,0,0]
[11,null,null,null,"","","","","",null,"",null,null,null,null,null,null,null,null,null,null,null,null,null,null,null,null,null,null,null,0,0,0,0,"Lote 11","","","","","",""," días",null,0,0]
[12,null,null,null,"","","","","",null,"",null,null,null,null,null,null,null,null,null,null,null,null,null,null,null,null,null,null,null,0,0,0,0,"Lote 12","","","","","",""," días",null,0,0]
[13,null,null,null,"","","","","",null,"",null,null,null,null,null,null,null,null,null,null,null,null,null,null,null,null,null,null,null,0,0,0,0,"Lote 13","","","","","",""," días",null,0,0]
[14,null,null,null,"","","","","",null,"",null,null,null,null,null,null,null,null,null,null,null,null,null,null,null,null,null,null,null,0,0,0,0,"Lote 14","","","","","",""," días",null,0,0]
[15,null,null,null,"","","","","",null,"",null,null,null,null,null,null,null,null,null,null,null,null,null,null,null,null,null,null,null,0,0,0,0,"Lote 15","","","","","",""," días",null,0,0]
[16,null,null,null,"","","","","",null,"",null,null,null,null,null,null,null,null,null,null,null,null,null,null,null,null,null,null,null,0,0,0,0,"Lote 16","","","","","",""," días",null,0,0]
[17,null,null,null,"","","","","",null,"",null,null,null,null,null,null,null,null,null,null,null,null,null,null,null,null,null,null,null,0,0,0,0,"Lote 17","","","","","",""," días",null,0,0]
[18,null,null,null,"","","","","",null,"",null,null,null,null,null,null,null,null,null,null,null,null,null,null,null,null,null,null,null,0,0,0,0,"Lote 18","","","","","",""," días",null,0,0]
[19,null,null,null,"","","","","",null,"",null,null,null,null,null,null,null,null,null,null,null,null,null,null,null,null,null,null,null,0,0,0,0,"Lote 19","","","","","",""," días",null,0,0]
[20,null,null,null,"","","","","",null,"",null,null,null,null,null,null,null,null,null,null,null,null,null,null,null,null,null,null,null,0,0,0,0,"Lote 20","","","","","",""," días",null,0,0]
[21,null,null,null,"","","","","",null,"",null,null,null,null,null,null,null,null,null,null,null,null,null,null,null,null,null,null,null,0,0,0,0,"Lote 21","","","","","",""," días",null,0,0]
[22,null,null,null,"","","","","",null,"",null,null,null,null,null,null,null,null,null,null,null,null,null,null,null,null,null,null,null,0,0,0,0,"Lote 22","","","","","",""," días",null,0,0]
[23,null,null,null,"","","","","",null,"",null,null,null,null,null,null,null,null,null,null,null,null,null,null,null,null,null,null,null,0,0,0,0,"Lote 23","","","","","",""," días",null,0,0]
[24,null,null,null,"","","","","",null,"",null,null,null,null,null,null,null,null,null,null,null,null,null,null,null,null,null,null,null,0,0,0,0,"Lote 24","","","","","",""," días",null,0,0]
[25,null,null,null,"","","","","",null,"",null,null,null,null,null,null,null,null,null,null,null,null,null,null,null,null,null,null,null,0,0,0,0,"Lote 25","","","","","",""," días",null,0,0]
[26,null,null,null,"","","","","",null,"",null,null,null,null,null,null,null,null,null,null,null,null,null,null,null,null,null,null,null,0,0,0,0,"Lote 26","","","","","",""," días",null,0,0]
[27,null,null,null,"","","","","",null,"",null,null,null,null,null,null,null,null,null,null,null,null,null,null,null,null,null,null,null,0,0,0,0,"Lote 27","","","","","",""," días",null,0,0]
[28,null,null,null,"","","","","",null,"",null,null,null,null,null,null,null,null,null,null,null,null,null,null,null,null,null,null,null,0,0,0,0,"Lote 28","","","","","",""," días",null,0,0]
[29,null,null,null,"","","","","",null,"",null,null,null,null,null,null,null,null,null,null,null,null,null,null,null,null,null,null,null,0,0,0,0,"Lote 29","","","","","",""," días",null,0,0]
[30,null,null,null,"","","","","",null,"",null,null,null,null,null,null,null,null,null,null,null,null,null,null,null,null,null,null,null,0,0,0,0,"Lote 30","","","","","",""," días",null,0,0]
[31,null,null,null,"","","","","",null,"",null,null,null,null,null,null,null,null,null,null,null,null,null,null,null,null,null,null,null,0,0,0,0,"Lote 31","","","","","",""," días",null,0,0]
[32,null,null,null,"","","","","",null,"",null,null,null,null,null,null,null,null,null,null,null,null,null,null,null,null,null,null,null,0,0,0,0,"Lote 32","","","","","",""," días",null,0,0]
[33,null,null,null,"","","",{"$f":"IF(B42=0,\"\",$H$4)","v":""},"",null,{"$f":"IF(H$5=\"sin dato\",\"\",IF(D42=\"\",\"\",D42+$H$5))","v":""},null,null,null,null,null,null,null,null,null,null,null,null,null,null,null,null,null,null,null,{"$f":"B42","v":0},0,0,0,"Lote 33",{"$f":"IF(B42=0,\"\",B42&\" animales\")","v":""},"","","","",""," días",null,0,0]
[34,null,null,null,"","","","","",null,"",null,null,null,null,null,null,null,null,null,null,null,null,null,null,null,null,null,null,null,0,0,0,0,"Lote 34","","","","","",""," días",null,0,0]
[35,null,null,null,"","","","","",null,"",null,null,null,null,null,null,null,null,null,null,null,null,null,null,null,null,null,null,null,0,0,0,0,"Lote 35","","","","","",""," días",null,0,0]
[36,null,null,null,"","","","","",null,"",null,null,null,null,null,null,null,null,null,null,null,null,null,null,null,null,null,null,null,0,0,0,0,"Lote 36","","","","","",""," días",null,0,0]
[37,null,null,null,"","","","","",null,"",null,null,null,null,null,null,null,null,null,null,null,null,null,null,null,null,null,null,null,0,0,0,0,"Lote 37","","","","","",""," días",null,0,0]
[38,null,null,null,"","","","","",null,"",null,null,null,null,null,null,null,null,null,null,null,null,null,null,null,null,null,null,null,0,0,0,0,"Lote 38","","","","","",""," días",null,0,0]
[39,null,null,null,"","","","","",null,"",null,null,null,null,null,null,null,null,null,null,null,null,null,null,null,null,null,null,null,0,0,0,0,"Lote 39","","","","","",""," días",null,0,0]
[40,null,null,null,"","","","","",null,"",null,null,null,null,null,null,null,null,null,null,null,null,null,null,null,null,null,null,null,0,0,0,0,"Lote 40","","","","","",""," días",null,0,0]
[41,null,null,null,"","","","","",null,"",null,null,null,null,null,null,null,null,null,null,null,null,null,null,null,null,null,null,null,0,0,0,0,"Lote 41","","","","","",""," días",null,0,0]
[42,null,null,null,"","","","","",null,"",null,null,null,null,null,null,null,null,null,null,null,null,null,null,null,null,null,null,null,0,0,0,0,"Lote 42","","","","","",""," días",null,0,0]
[43,null,null,null,"","","","","",null,"",null,null,null,null,null,null,null,null,null,null,null,null,null,null,null,null,null,null,null,0,0,0,0,"Lote 43","","","","","",""," días",null,0,0]
[44,null,null,null,"","","","","",null,"",null,null,null,null,null,null,null,null,null,null,null,null,null,null,null,null,null,null,null,0,0,0,0,"Lote 44","","","","","",""," días",null,0,0]
[45,null,null,null,"","","","","",null,"",null,null,null,null,null,null,null,null,null,null,null,null,null,null,null,null,null,null,null,0,0,0,0,"Lote 45","","","","","",""," días",null,0,0]
[46,null,null,null,"","","","","",null,"",null,null,null,null,null,null,null,null,null,null,null,null,null,null,null,null,null,null,null,0,0,0,0,"Lote 46","","","","","",""," días",null,0,0]
[47,null,null,null,"","","","","",null,"",null,null,null,null,null,null,null,null,null,null,null,null,null,null,null,null,null,null,null,0,0,0,0,"Lote 47","","","","","",""," días",null,0,0]
[48,null,null,null,"","","","","",null,"",null,null,null,null,null,null,null,null,null,null,null,null,null,null,null,null,null,null,null,0,0,0,0,"Lote 48","","","","","",""," días",null,0,0]
[49,null,null,null,"","","","","",null,"",null,null,null,null,null,null,null,null,null,null,null,null,null,null,null,null,null,null,null,0,0,0,0,"Lote 49","","","","","",""," días",null,0,0]
[50,null,null,null,"","","","","",null,"",null,null,null,null,null,null,null,null,null,null,null,null,null,null,null,null,null,null,null,0,0,0,0,"Lote 50","","","","","",""," días",null,0,0]
[51,null,null,null,"","","","","",null,"",null,null,null,null,null,null,null,null,null,null,null,null,null,null,null,null,null,null,null,0,0,0,0,"Lote 51","","","","","",""," días",null,0,0]
[52,null,null,null,"","","","","",null,"",null,null,null,null,null,null,null,null,null,null,null,null,null,null,null,null,null,null,null,0,0,0,0,"Lote 52","","","","","",""," días",null,0,0]
[53,null,null,null,"","","","","",null,"",null,null,null,null,null,null,null,null,null,null,null,null,null,null,null,null,null,null,null,0,0,0,0,"Lote 53","","","","","",""," días",null,0,0]
[54,null,null,null,"","","","","",null,"",null,null,null,null,null,null,null,null,null,null,null,null,null,null,null,null,null,null,null,0,0,0,0,"Lote 54","","","","","",""," días",null,0,0]
[55,null,null,null,"","","","","",null,"",null,null,null,null,null,null,null,null,null,null,null,null,null,null,null,null,null,null,null,0,0,0,0,"Lote 55","","","","","",""," días",null,0,0]
[56,null,null,null,"","","","","",null,"",null,null,null,null,null,null,null,null,null,null,null,null,null,null,null,null,null,null,null,0,0,0,0,"Lote 56","","","","","",""," días",null,0,0]
[57,null,null,null,"","","","","",null,"",null,null,null,null,null,null,null,null,null,null,null,null,null,null,null,null,null,null,null,0,0,0,0,"Lote 57","","","","","",""," días",null,0,0]
[58,null,null,null,"","","","","",null,"",null,null,null,null,null,null,null,null,null,null,null,null,null,null,null,null,null,null,null,0,0,0,0,"Lote 58","","","","","",""," días",null,0,0]
[59,null,null,null,"","","","","",null,"",null,null,null,null,null,null,null,null,null,null,null,null,null,null,null,null,null,null,null,0,0,0,0,"Lote 59","","","","","",""," días",null,0,0]
[60,null,null,null,"","","","","",null,"",null,null,null,null,null,null,null,null,null,null,null,null,null,null,null,null,null,null,null,0,0,0,0,"Lote 60","","","","","",""," días",null,0,0]
[61,null,null,null,"","","","","",null,"",null,null,null,null,null,null,null,null,null,null,null,null,null,null,null,null,null,null,null,0,0,0,0,"Lote 61","","","","","",""," días",null,0,0]
[62,null,null,null,"","","","","",null,"",null,null,null,null,null,null,null,null,null,null,null,null,null,null,null,null,null,null,null,0,0,0,0,"Lote 62","","","","","",""," días",null,0,0]
[63,null,null,null,"","","","","",null,"",null,null,null,null,null,null,null,null,null,null,null,null,null,null,null,null,null,null,null,0,0,0,0,"Lote 63","","","","","",""," días",null,0,0]
[64,null,null,null,"","","","","",null,"",null,null,null,null,null,null,null,null,null,null,null,null,null,null,null,null,null,null,null,0,0,0,0,"Lote 64","","","","","",""," días",null,0,0]
[65,null,null,null,{"$f":"IF($D74 =\"\",\"\",IF(YEAR($D74)=$F$1,$D74,\"01/01/2025\"))","v":""},"",{"$f":"IF($F74=\"\",\"\",IF(YEAR($F74)=$F$1,$F74,\"31/12/2025\"))","v":""},{"$f":"IF(B74=0,\"\",$H$4)","v":""},"",null,{"$f":"IF(H$5=\"sin dato\",\"\",IF(D74=\"\",\"\",D74+$H$5))","v":""},null,null,null,null,null,null,null,null,null,null,null,null,null,null,null,null,null,null,null,{"$f":"B74","v":0},0,0,0,{"$f":"\"Lote \"&A74","v":"Lote 65"},{"$f":"IF(B74=0,\"\",B74&\" animales\")","v":""},"",{"$f":"IF(D74=\"\",\"\",D74)","v":""},{"$f":"H74","v":""},{"$f":"IF(F74=\"\",\"\",F74)","v":""},{"$f":"I74","v":""}," días",null,{"$f":"IF(AH74=0,0,AO74*AH74)","v":0},{"$f":"IF(AH74=0,0,AM74*AH74)","v":0}]
[66,null,null,null,"",{"$f":"IF(D75=\"\",\"\",D75+H75)","v":""},"","",{"$f":"IF(G75=\"\",\"\",_xlfn.DAYS(G75,E75))","v":""},null,"",null,null,null,null,null,null,null,null,null,null,null,null,null,null,null,null,null,null,null,0,0,{"$f":"(AE75+AF75)/2","v":0},{"$f":"IF($AG$160=0,0,AG75/$AG$160)","v":0},"Lote 66","","","","","","",{"$f":"IF(AO75=0,\"\",AO75& \" días\")","v":" días"},null,0,0]
[67,null,null,null,"","","","","",null,"",null,null,null,null,null,null,null,null,null,null,null,null,null,null,null,null,null,null,null,0,0,0,0,"Lote 67","","","","","",""," días",null,0,0]
[68,null,null,null,"","","","","",null,"",null,null,null,null,null,null,null,null,null,null,null,null,null,null,null,null,null,null,null,0,0,0,0,"Lote 68","","","","","",""," días",null,0,0]
[69,null,null,null,"","","","","",null,"",null,null,null,null,null,null,null,null,null,null,null,null,null,null,null,null,null,null,null,0,0,0,0,"Lote 69","","","","","",""," días",null,0,0]
[70,null,null,null,"","","","","",null,"",null,null,null,null,null,null,null,null,null,null,null,null,null,null,null,null,null,null,null,0,0,0,0,"Lote 70","","","","","",""," días",null,0,0]
[71,null,null,null,"","","","","",null,"",null,null,null,null,null,null,null,null,null,null,null,null,null,null,null,null,null,null,null,0,0,0,0,"Lote 71","","","","","",""," días",null,0,0]
[72,null,null,null,"","","","","",null,"",null,null,null,null,null,null,null,null,null,null,null,null,null,null,null,null,null,null,null,0,0,0,0,"Lote 72","","","","","",""," días",null,0,0]
[73,null,null,null,"","","","","",null,"",null,null,null,null,null,null,null,null,null,null,null,null,null,null,null,null,null,null,null,0,0,0,0,"Lote 73","","","","","",""," días",null,0,0]
[74,null,null,null,"","","","","",null,"",null,null,null,null,null,null,null,null,null,null,null,null,null,null,null,null,null,null,null,0,0,0,0,"Lote 74","","","","","",""," días",null,0,0]
[75,null,null,null,"","","","","",null,"",null,null,null,null,null,null,null,null,null,null,null,null,null,null,null,null,null,null,null,0,0,0,0,"Lote 75","","","","","",""," días",null,0,0]
[76,null,null,null,"","","","","",null,"",null,null,null,null,null,null,null,null,null,null,null,null,null,null,null,null,null,null,null,0,0,0,0,"Lote 76","","","","","",""," días",null,0,0]
[77,null,null,null,"","","","","",null,"",null,null,null,null,null,null,null,null,null,null,null,null,null,null,null,null,null,null,null,0,0,0,0,"Lote 77","","","","","",""," días",null,0,0]
[78,null,null,null,"","","","","",null,"",null,null,null,null,null,null,null,null,null,null,null,null,null,null,null,null,null,null,null,0,0,0,0,"Lote 78","","","","","",""," días",null,0,0]
[79,null,null,null,"","","","","",null,"",null,null,null,null,null,null,null,null,null,null,null,null,null,null,null,null,null,null,null,0,0,0,0,"Lote 79","","","","","",""," días",null,0,0]
[80,null,null,null,"","","","","",null,"",null,null,null,null,null,null,null,null,null,null,null,null,null,null,null,null,null,null,null,0,0,0,0,"Lote 80","","","","","",""," días",null,0,0]
[81,null,null,null,"","","","","",null,"",null,null,null,null,null,null,null,null,null,null,null,null,null,null,null,null,null,null,null,0,0,0,0,"Lote 81","","","","","",""," días",null,0,0]
[82,null,null,null,"","","","","",null,"",null,null,null,null,null,null,null,null,null,null,null,null,null,null,null,null,null,null,null,0,0,0,0,"Lote 82","","","","","",""," días",null,0,0]
[83,null,null,null,"","","","","",null,"",null,null,null,null,null,null,null,null,null,null,null,null,null,null,null,null,null,null,null,0,0,0,0,"Lote 83","","","","","",""," días",null,0,0]
[84,null,null,null,"","","","","",null,"",null,null,null,null,null,null,null,null,null,null,null,null,null,null,null,null,null,null,null,0,0,0,0,"Lote 84","","","","","",""," días",null,0,0]
[85,null,null,null,"","","","","",null,"",null,null,null,null,null,null,null,null,null,null,null,null,null,null,null,null,null,null,null,0,0,0,0,"Lote 85","","","","","",""," días",null,0,0]
[86,null,null,null,"","","","","",null,"",null,null,null,null,null,null,null,null,null,null,null,null,null,null,null,null,null,null,null,0,0,0,0,"Lote 86","","","","","",""," días",null,0,0]
[87,null,null,null,"","","","","",null,"",null,null,null,null,null,null,null,null,null,null,null,null,null,null,null,null,null,null,null,0,0,0,0,"Lote 87","","","","","",""," días",null,0,0]
[88,null,null,null,"","","","","",null,"",null,null,null,null,null,null,null,null,null,null,null,null,null,null,null,null,null,null,null,0,0,0,0,"Lote 88","","","","","",""," días",null,0,0]
[89,null,null,null,"","","","","",null,"",null,null,null,null,null,null,null,null,null,null,null,null,null,null,null,null,null,null,null,0,0,0,0,"Lote 89","","","","","",""," días",null,0,0]
[90,null,null,null,"","","","","",null,"",null,null,null,null,null,null,null,null,null,null,null,null,null,null,null,null,null,null,null,0,0,0,0,"Lote 90","","","","","",""," días",null,0,0]
[91,null,null,null,"","","","","",null,"",null,null,null,null,null,null,null,null,null,null,null,null,null,null,null,null,null,null,null,0,0,0,0,"Lote 91","","","","","",""," días",null,0,0]
[92,null,null,null,"","","","","",null,"",null,null,null,null,null,null,null,null,null,null,null,null,null,null,null,null,null,null,null,0,0,0,0,"Lote 92","","","","","",""," días",null,0,0]
[93,null,null,null,"","","","","",null,"",null,null,null,null,null,null,null,null,null,null,null,null,null,null,null,null,null,null,null,0,0,0,0,"Lote 93","","","","","",""," días",null,0,0]
[94,null,null,null,"","","","","",null,"",null,null,null,null,null,null,null,null,null,null,null,null,null,null,null,null,null,null,null,0,0,0,0,"Lote 94","","","","","",""," días",null,0,0]
[95,null,null,null,"","","","","",null,"",null,null,null,null,null,null,null,null,null,null,null,null,null,null,null,null,null,null,null,0,0,0,0,"Lote 95","","","","","",""," días",null,0,0]
[96,null,null,null,"","","","","",null,"",null,null,null,null,null,null,null,null,null,null,null,null,null,null,null,null,null,null,null,0,0,0,0,"Lote 96","","","","","",""," días",null,0,0]
[97,null,null,null,"","","",{"$f":"IF(B106=0,\"\",$H$4)","v":""},"",null,{"$f":"IF(H$5=\"sin dato\",\"\",IF(D106=\"\",\"\",D106+$H$5))","v":""},null,null,null,null,null,null,null,null,null,null,null,null,null,null,null,null,null,null,null,{"$f":"B106","v":0},0,0,0,"Lote 97",{"$f":"IF(B106=0,\"\",B106&\" animales\")","v":""},"","","","",""," días",null,0,0]
[98,null,null,null,"","","","","",null,"",null,null,null,null,null,null,null,null,null,null,null,null,null,null,null,null,null,null,null,0,0,0,0,"Lote 98","","","","","",""," días",null,0,0]
[99,null,null,null,"","","","","",null,"",null,null,null,null,null,null,null,null,null,null,null,null,null,null,null,null,null,null,null,0,0,0,0,"Lote 99","","","","","",""," días",null,0,0]
[100,null,null,null,"","","","","",null,"",null,null,null,null,null,null,null,null,null,null,null,null,null,null,null,null,null,null,null,0,0,0,0,"Lote 100","","","","","",""," días",null,0,0]
[101,null,null,null,"","","","","",null,"",null,null,null,null,null,null,null,null,null,null,null,null,null,null,null,null,null,null,null,0,0,0,0,"Lote 101","","","","","",""," días",null,0,0]
[102,null,null,null,"","","","","",null,"",null,null,null,null,null,null,null,null,null,null,null,null,null,null,null,null,null,null,null,0,0,0,0,"Lote 102","","","","","",""," días",null,0,0]
[103,null,null,null,"","","","","",null,"",null,null,null,null,null,null,null,null,null,null,null,null,null,null,null,null,null,null,null,0,0,0,0,"Lote 103","","","","","",""," días",null,0,0]
[104,null,null,null,"","","","","",null,"",null,null,null,null,null,null,null,null,null,null,null,null,null,null,null,null,null,null,null,0,0,0,0,"Lote 104","","","","","",""," días",null,0,0]
[105,null,null,null,"","","","","",null,"",null,null,null,null,null,null,null,null,null,null,null,null,null,null,null,null,null,null,null,0,0,0,0,"Lote 105","","","","","",""," días",null,0,0]
[106,null,null,null,"","","","","",null,"",null,null,null,null,null,null,null,null,null,null,null,null,null,null,null,null,null,null,null,0,0,0,0,"Lote 106","","","","","",""," días",null,0,0]
[107,null,null,null,"","","","","",null,"",null,null,null,null,null,null,null,null,null,null,null,null,null,null,null,null,null,null,null,0,0,0,0,"Lote 107","","","","","",""," días",null,0,0]
[108,null,null,null,"","","","","",null,"",null,null,null,null,null,null,null,null,null,null,null,null,null,null,null,null,null,null,null,0,0,0,0,"Lote 108","","","","","",""," días",null,0,0]
[109,null,null,null,"","","","","",null,"",null,null,null,null,null,null,null,null,null,null,null,null,null,null,null,null,null,null,null,0,0,0,0,"Lote 109","","","","","",""," días",null,0,0]
[110,null,null,null,"","","","","",null,"",null,null,null,null,null,null,null,null,null,null,null,null,null,null,null,null,null,null,null,0,0,0,0,"Lote 110","","","","","",""," días",null,0,0]
[111,null,null,null,"","","","","",null,"",null,null,null,null,null,null,null,null,null,null,null,null,null,null,null,null,null,null,null,0,0,0,0,"Lote 111","","","","","",""," días",null,0,0]
[112,null,null,null,"","","","","",null,"",null,null,null,null,null,null,null,null,null,null,null,null,null,null,null,null,null,null,null,0,0,0,0,"Lote 112","","","","","",""," días",null,0,0]
[113,null,null,null,"","","","","",null,"",null,null,null,null,null,null,null,null,null,null,null,null,null,null,null,null,null,null,null,0,0,0,0,"Lote 113","","","","","",""," días",null,0,0]
[114,null,null,null,"","","","","",null,"",null,null,null,null,null,null,null,null,null,null,null,null,null,null,null,null,null,null,null,0,0,0,0,"Lote 114","","","","","",""," días",null,0,0]
[115,null,null,null,"","","","","",null,"",null,null,null,null,null,null,null,null,null,null,null,null,null,null,null,null,null,null,null,0,0,0,0,"Lote 115","","","","","",""," días",null,0,0]
[116,null,null,null,"","","","","",null,"",null,null,null,null,null,null,null,null,null,null,null,null,null,null,null,null,null,null,null,0,0,0,0,"Lote 116","","","","","",""," días",null,0,0]
[117,null,null,null,"","","","","",null,"",null,null,null,null,null,null,null,null,null,null,null,null,null,null,null,null,null,null,null,0,0,0,0,"Lote 117","","","","","",""," días",null,0,0]
[118,null,null,null,"","","","","",null,"",null,null,null,null,null,null,null,null,null,null,null,null,null,null,null,null,null,null,null,0,0,0,0,"Lote 118","","","","","",""," días",null,0,0]
[119,null,null,null,"","","","","",null,"",null,null,null,null,null,null,null,null,null,null,null,null,null,null,null,null,null,null,null,0,0,0,0,"Lote 119","","","","","",""," días",null,0,0]
[120,null,null,null,"","","","","",null,"",null,null,null,null,null,null,null,null,null,null,null,null,null,null,null,null,null,null,null,0,0,0,0,"Lote 120","","","","","",""," días",null,0,0]
[121,null,null,null,"","","","","",null,"",null,null,null,null,null,null,null,null,null,null,null,null,null,null,null,null,null,null,null,0,0,0,0,"Lote 121","","","","","",""," días",null,0,0]
[122,null,null,null,"","","","","",null,"",null,null,null,null,null,null,null,null,null,null,null,null,null,null,null,null,null,null,null,0,0,0,0,"Lote 122","","","","","",""," días",null,0,0]
[123,null,null,null,"","","","","",null,"",null,null,null,null,null,null,null,null,null,null,null,null,null,null,null,null,null,null,null,0,0,0,0,"Lote 123","","","","","",""," días",null,0,0]
[124,null,null,null,"","","","","",null,"",null,null,null,null,null,null,null,null,null,null,null,null,null,null,null,null,null,null,null,0,0,0,0,"Lote 124","","","","","",""," días",null,0,0]
[125,null,null,null,"","","","","",null,"",null,null,null,null,null,null,null,null,null,null,null,null,null,null,null,null,null,null,null,0,0,0,0,"Lote 125","","","","","",""," días",null,0,0]
[126,null,null,null,"","","","","",null,"",null,null,null,null,null,null,null,null,null,null,null,null,null,null,null,null,null,null,null,0,0,0,0,"Lote 126","","","","","",""," días",null,0,0]
[127,null,null,null,"","","","","",null,"",null,null,null,null,null,null,null,null,null,null,null,null,null,null,null,null,null,null,null,0,0,0,0,"Lote 127","","","","","",""," días",null,0,0]
[128,null,null,null,"","","","","",null,"",null,null,null,null,null,null,null,null,null,null,null,null,null,null,null,null,null,null,null,0,0,0,0,"Lote 128","","","","","",""," días",null,0,0]
[129,null,null,null,{"$f":"IF($D138 =\"\",\"\",IF(YEAR($D138)=$F$1,$D138,\"01/01/2025\"))","v":""},"",{"$f":"IF($F138=\"\",\"\",IF(YEAR($F138)=$F$1,$F138,\"31/12/2025\"))","v":""},{"$f":"IF(B138=0,\"\",$H$4)","v":""},"",null,{"$f":"IF(H$5=\"sin dato\",\"\",IF(D138=\"\",\"\",D138+$H$5))","v":""},null,null,null,null,null,null,null,null,null,null,null,null,null,null,null,null,null,null,null,{"$f":"B138","v":0},0,0,0,{"$f":"\"Lote \"&A138","v":"Lote 129"},{"$f":"IF(B138=0,\"\",B138&\" animales\")","v":""},"",{"$f":"IF(D138=\"\",\"\",D138)","v":""},{"$f":"H138","v":""},{"$f":"IF(F138=\"\",\"\",F138)","v":""},{"$f":"I138","v":""}," días",null,{"$f":"IF(AH138=0,0,AO138*AH138)","v":0},{"$f":"IF(AH138=0,0,AM138*AH138)","v":0}]
[130,null,null,null,"",{"$f":"IF(D139=\"\",\"\",D139+H139)","v":""},"","",{"$f":"IF(G139=\"\",\"\",_xlfn.DAYS(G139,E139))","v":""},null,"",null,null,null,null,null,null,null,null,null,null,null,null,null,null,null,null,null,null,null,0,0,{"$f":"(AE139+AF139)/2","v":0},{"$f":"IF($AG$160=0,0,AG139/$AG$160)","v":0},"Lote 130","","","","","","",{"$f":"IF(AO139=0,\"\",AO139& \" días\")","v":" días"},null,0,0]
[131,null,null,null,"","","","","",null,"",null,null,null,null,null,null,null,null,null,null,null,null,null,null,null,null,null,null,null,0,0,0,0,"Lote 131","","","","","",""," días",null,0,0]
[132,null,null,null,"","","","","",null,"",null,null,null,null,null,null,null,null,null,null,null,null,null,null,null,null,null,null,null,0,0,0,0,"Lote 132","","","","","",""," días",null,0,0]
[133,null,null,null,"","","","","",null,"",null,null,null,null,null,null,null,null,null,null,null,null,null,null,null,null,null,null,null,0,0,0,0,"Lote 133","","","","","",""," días",null,0,0]
[134,null,null,null,"","","","","",null,"",null,null,null,null,null,null,null,null,null,null,null,null,null,null,null,null,null,null,null,0,0,0,0,"Lote 134","","","","","",""," días",null,0,0]
[135,null,null,null,"","","","","",null,"",null,null,null,null,null,null,null,null,null,null,null,null,null,null,null,null,null,null,null,0,0,0,0,"Lote 135","","","","","",""," días",null,0,0]
[136,null,null,null,"","","","","",null,"",null,null,null,null,null,null,null,null,null,null,null,null,null,null,null,null,null,null,null,0,0,0,0,"Lote 136","","","","","",""," días",null,0,0]
[137,null,null,null,"","","","","",null,"",null,null,null,null,null,null,null,null,null,null,null,null,null,null,null,null,null,null,null,0,0,0,0,"Lote 137","","","","","",""," días",null,0,0]
[138,null,null,null,"","","","","",null,"",null,null,null,null,null,null,null,null,null,null,null,null,null,null,null,null,null,null,null,0,0,0,0,"Lote 138","","","","","",""," días",null,0,0]
[139,null,null,null,"","","","","",null,"",null,null,null,null,null,null,null,null,null,null,null,null,null,null,null,null,null,null,null,0,0,0,0,"Lote 139","","","","","",""," días",null,0,0]
[140,null,null,null,"","","","","",null,"",null,null,null,null,null,null,null,null,null,null,null,null,null,null,null,null,null,null,null,0,0,0,0,"Lote 140","","","","","",""," días",null,0,0]
[141,null,null,null,"","","","","",null,"",null,null,null,null,null,null,null,null,null,null,null,null,null,null,null,null,null,null,null,0,0,0,0,"Lote 141","","","","","",""," días",null,0,0]
[142,null,null,null,"","","","","",null,"",null,null,null,null,null,null,null,null,null,null,null,null,null,null,null,null,null,null,null,0,0,0,0,"Lote 142","","","","","",""," días",null,0,0]
[143,null,null,null,"","","","","",null,"",null,null,null,null,null,null,null,null,null,null,null,null,null,null,null,null,null,null,null,0,0,0,0,"Lote 143","","","","","",""," días",null,0,0]
[144,null,null,null,"","","","","",null,"",null,null,null,null,null,null,null,null,null,null,null,null,null,null,null,null,null,null,null,0,0,0,0,"Lote 144","","","","","",""," días",null,0,0]
[145,null,null,null,"","","","","",null,"",null,null,null,null,null,null,null,null,null,null,null,null,null,null,null,null,null,null,null,0,0,0,0,"Lote 145","","","","","",""," días",null,0,0]
[146,null,null,null,"","","","","",null,"",null,null,null,null,null,null,null,null,null,null,null,null,null,null,null,null,null,null,null,0,0,0,0,"Lote 146","","","","","",""," días",null,0,0]
[147,null,null,null,"","","","","",null,"",null,null,null,null,null,null,null,null,null,null,null,null,null,null,null,null,null,null,null,0,0,0,0,"Lote 147","","","","","",""," días",null,0,0]
[148,null,null,null,"","","","","",null,"",null,null,null,null,null,null,null,null,null,null,null,null,null,null,null,null,null,null,null,0,0,0,0,"Lote 148","","","","","",""," días",null,0,0]
[149,null,null,null,"","","","","",null,"",null,null,null,null,null,null,null,null,null,null,null,null,null,null,null,null,null,null,null,0,0,0,0,"Lote 149","","","","","",""," días",null,0,0]
[150,null,null,null,"","","","","",null,"",null,null,null,null,null,null,null,null,null,null,null,null,null,null,null,null,null,null,null,0,0,0,0,"Lote 150","","","","","",""," días",null,0,0]
[null,null,null,null,null,null,null,null,null,null,null,null,null,null,null,null,null,null,null,null,null,null,null,null,null,null,null,null,null,null,{"$f":"SUM(AE10:AE159)","v":0},{"$f":"SUM(AF10:AF159)","v":0},{"$f":"ROUND(SUM(AG10:AG159),0)","v":0},{"$f":"SUM(AH10:AH159)","v":0},null,null,null,null,null,null,null,null,null,{"$f":"ROUND(SUM(AR10:AR159),0)","v":0},{"$f":"ROUND(SUM(AS10:AS159),0)","v":0}]

{"sheet":"Categoria 3","index":5,"n_rows":160,"n_cols":45,"rows_kept":160,"cut":false,"hidden":false,"merged":[[7,1,7,8],[7,12,7,24],[4,13,4,17],[0,1,0,3],[2,0,2,2],[2,3,2,8],[5,1,5,8],[0,12,0,17],[0,18,0,23]]}
[null,"Año de declaración: ",null,null,null,{"$f":"Base!B12","v":2025},null,null,null,null,null,null,"Datos a grabar en el paso 2 de ECOGAN",null,null,null,null,null,"Datos a grabar en el paso 4 de ECOGAN"]
[null,null,null,null,null,null,null,null,null,null,null,null,null,null,null,null,"nº total de animales que entran de esta categoría productiva:",{"$f":"AE160","v":0},null,null,null,null,"Periodo productivo total medio de la categoría productiva:",{"$f":"H4","v":0}]
["Categoría productiva: ",null,null,"Mamones Macho procedentes de vacas nodriza",null,null,null,null,null,null,null,null,null,null,null,null,"nº total de animales vivos que finalizan de esta categoría productiva:",{"$f":"AF160","v":0},null,null,null,null,"días medios presentes de la categoría productiva:",{"$f":"AR160","v":0}]
[null,null,null,null,null,"Indique el periodo productivo medio de la categoría productiva (días):",null,null,"*"]
[null,null,null,null,null,"Periodo productivo medio de referencia (días):",null,{"$f":"IFERROR(VLOOKUP(D3,Base!A2:B7,2,FALSE),\"sin dato\")","v":346},{"$f":"IF(H5=\"sin dato\",\"\",\"(\"&ROUND(H5*0.9,0) &\" - \"&ROUND(H5*1.1,0)&\")\")","v":"(311 - 381)"},null,null,null,null,"Si desea borrar datos grabados anteriormente, pulse aquí\n¡Cuidado! Perderá toda la información"]
["*","Número de días que por término medio los animales de una linea productiva permanecen en la granja desde que entran hasta que salen de ese alojamiento, de modo que el periodo es por ciclo productivo y no por año natural. "]
[null,null,null,null,null,null,null,null,null,null,null,null,{"$f":"Base!F2","v":45292},{"$f":"Base!H3","v":46387}]
["u","Lote es el grupo de animales que van entrando de forma escalonada a los corrales.",null,null,null,null,null,null,null,null,null,null,"Diagrama de entradas y salidas"]
["lote u","nº de animales que entran\nen cada lote","nº de animales vivos que finalizan\nen cada lote","Fecha de entrada                                                                                                                                                                                                                                                                del lote\n(dd/mm/aa)",null,"Fecha de\nfinalización                                                                                                                                                                                                                                  del lote\n(dd/mm/aa)",null,"Periodo productivo total\nmedio\n(días)",{"$f":"\"días presentes del lote\nen el año \" & F1","v":"días presentes del lote\nen el año 2025"},null,{"$f":"IF(H5=\"sin dato\",\"\",\"Fecha fin según fecha entrada y periodo de \"&H5&\" días\")","v":"Fecha fin según fecha entrada y periodo de 346 días"},null,null,null,null,null,null,null,null,null,null,null,null,null,null,null,null,null,null,null,null,null,null,null,"lote",null,null,"Fecha de entrada                                                                                                                                                                                                                                                                del lote","Periodo productivo total","Fecha de entrada                                                                                                                                                                                                                                                                del lote",{"$f":"\"días presentes del lote\nen el año \" & AL1","v":"días presentes del lote\nen el año "},null,null,{"$f":"\"días presentes del lote\nen el año \" & AO1","v":"días presentes del lote\nen el año "},"Periodo productivo total"]
[1,null,null,null,{"$f":"IF($D10 =\"\",\"\",IF(YEAR($D10)=$F$1,$D10,\"01/01/2025\"))","v":""},{"$f":"IF(D10=\"\",\"\",D10+H10)","v":""},{"$f":"IF($F10=\"\",\"\",IF(YEAR($F10)=$F$1,$F10,\"31/12/2025\"))","v":""},{"$f":"IF(B10=0,\"\",$H$4)","v":""},{"$f":"IF(G10=\"\",\"\",_xlfn.DAYS(G10,E10))","v":""},null,{"$f":"IF(H$5=\"sin dato\",\"\",IF(D10=\"\",\"\",D10+$H$5))","v":""},null,null,null,null,null,null,null,null,null,null,null,null,null,null,null,null,null,null,null,{"$f":"B10","v":0},{"$f":"C10","v":0},{"$f":"(AE10+AF10)/2","v":0},{"$f":"IF($AG$160=0,0,AG10/$AG$160)","v":0},{"$f":"\"Lote \"&A10","v":"Lote 1"},{"$f":"IF(B10=0,\"\",B10&\" animales\")","v":""},{"$f":"IF(C10=0,\"\",C10&\" animales\")","v":""},{"$f":"IF(D10=\"\",\"\",D10)","v":""},{"$f":"H10","v":""},{"$f":"IF(F10=\"\",\"\",F10)","v":""},{"$f":"I10","v":""},{"$f":"IF(AO10=0,\"\",AO10& \" días\")","v":" días"},null,{"$f":"IF(AH10=0,0,AO10*AH10)","v":0},{"$f":"IF(AH10=0,0,AM10*AH10)","v":0}]
[2,null,null,null,"",{"$f":"IF(D11=\"\",\"\",D11+H11)","v":""},"","",{"$f":"IF(G11=\"\",\"\",_xlfn.DAYS(G11,E11))","v":""},null,"",null,null,null,null,null,null,null,null,null,null,null,null,null,null,null,null,null,null,null,0,0,{"$f":"(AE11+AF11)/2","v":0},{"$f":"IF($AG$160=0,0,AG11/$AG$160)","v":0},"Lote 2","","","","","","",{"$f":"IF(AO11=0,\"\",AO11& \" días\")","v":" días"},null,0,0]
[3,null,null,null,"","","","","",null,"",null,null,null,null,null,null,null,null,null,null,null,null,null,null,null,null,null,null,null,0,0,0,0,"Lote 3","","","","","",""," días",null,0,0]
[4,null,null,null,"","","","","",null,"",null,null,null,null,null,null,null,null,null,null,null,null,null,null,null,null,null,null,null,0,0,0,0,"Lote 4","","","","","",""," días",null,0,0]
[5,null,null,null,"","","","","",null,"",null,null,null,null,null,null,null,null,null,null,null,null,null,null,null,null,null,null,null,0,0,0,0,"Lote 5","","","","","",""," días",null,0,0]
[6,null,null,null,"","","","","",null,"",null,null,null,null,null,null,null,null,null,null,null,null,null,null,null,null,null,null,null,0,0,0,0,"Lote 6","","","","","",""," días",null,0,0]
[7,null,null,null,"","","","","",null,"",null,null,null,null,null,null,null,null,null,null,null,null,null,null,null,null,null,null,null,0,0,0,0,"Lote 7","","","","","",""," días",null,0,0]
[8,null,null,null,"","","","","",null,"",null,null,null,null,null,null,null,null,null,null,null,null,null,null,null,null,null,null,null,0,0,0,0,"Lote 8","","","","","",""," días",null,0,0]
[9,null,null,null,"","","","",{"$f":"IF(G18=\"\",\"\",_xlfn.DAYS(G18,E18))","v":""},null,"",null,null,null,null,null,null,null,null,null,null,null,null,null,null,null,null,null,null,null,0,0,0,0,"Lote 9","","","","","",""," días",null,0,0]
[10,null,null,null,"","","","","",null,"",null,null,null,null,null,null,null,null,null,null,null,null,null,null,null,null,null,null,null,0,0,0,0,"Lote 10","","","","","",""," días",null,0,0]
[11,null,null,null,"","","","","",null,"",null,null,null,null,null,null,null,null,null,null,null,null,null,null,null,null,null,null,null,0,0,0,0,"Lote 11","","","","","",""," días",null,0,0]
[12,null,null,null,"","","","","",null,"",null,null,null,null,null,null,null,null,null,null,null,null,null,null,null,null,null,null,null,0,0,0,0,"Lote 12","","","","","",""," días",null,0,0]
[13,null,null,null,"","","","","",null,"",null,null,null,null,null,null,null,null,null,null,null,null,null,null,null,null,null,null,null,0,0,0,0,"Lote 13","","","","","",""," días",null,0,0]
[14,null,null,null,"","","","","",null,"",null,null,null,null,null,null,null,null,null,null,null,null,null,null,null,null,null,null,null,0,0,0,0,"Lote 14","","","","","",""," días",null,0,0]
[15,null,null,null,"","","","","",null,"",null,null,null,null,null,null,null,null,null,null,null,null,null,null,null,null,null,null,null,0,0,0,0,"Lote 15","","","","","",""," días",null,0,0]
[16,null,null,null,"","","","","",null,"",null,null,null,null,null,null,null,null,null,null,null,null,null,null,null,null,null,null,null,0,0,0,0,"Lote 16","","","","","",""," días",null,0,0]
[17,null,null,null,"","","","","",null,"",null,null,null,null,null,null,null,null,null,null,null,null,null,null,null,null,null,null,null,0,0,0,0,"Lote 17","","","","","",""," días",null,0,0]
[18,null,null,null,"","","","","",null,"",null,null,null,null,null,null,null,null,null,null,null,null,null,null,null,null,null,null,null,0,0,0,0,"Lote 18","","","","","",""," días",null,0,0]
[19,null,null,null,"","","","","",null,"",null,null,null,null,null,null,null,null,null,null,null,null,null,null,null,null,null,null,null,0,0,0,0,"Lote 19","","","","","",""," días",null,0,0]
[20,null,null,null,"","","","","",null,"",null,null,null,null,null,null,null,null,null,null,null,null,null,null,null,null,null,null,null,0,0,0,0,"Lote 20","","","","","",""," días",null,0,0]
[21,null,null,null,"","","","","",null,"",null,null,null,null,null,null,null,null,null,null,null,null,null,null,null,null,null,null,null,0,0,0,0,"Lote 21","","","","","",""," días",null,0,0]
[22,null,null,null,"","","","","",null,"",null,null,null,null,null,null,null,null,null,null,null,null,null,null,null,null,null,null,null,0,0,0,0,"Lote 22","","","","","",""," días",null,0,0]
[23,null,null,null,"","","","","",null,"",null,null,null,null,null,null,null,null,null,null,null,null,null,null,null,null,null,null,null,0,0,0,0,"Lote 23","","","","","",""," días",null,0,0]
[24,null,null,null,"","","","","",null,"",null,null,null,null,null,null,null,null,null,null,null,null,null,null,null,null,null,null,null,0,0,0,0,"Lote 24","","","","","",""," días",null,0,0]
[25,null,null,null,"","","","","",null,"",null,null,null,null,null,null,null,null,null,null,null,null,null,null,null,null,null,null,null,0,0,0,0,"Lote 25","","","","","",""," días",null,0,0]
[26,null,null,null,"","","","","",null,"",null,null,null,null,null,null,null,null,null,null,null,null,null,null,null,null,null,null,null,0,0,0,0,"Lote 26","","","","","",""," días",null,0,0]
[27,null,null,null,"","","","","",null,"",null,null,null,null,null,null,null,null,null,null,null,null,null,null,null,null,null,null,null,0,0,0,0,"Lote 27","","","","","",""," días",null,0,0]
[28,null,null,null,"","","","","",null,"",null,null,null,null,null,null,null,null,null,null,null,null,null,null,null,null,null,null,null,0,0,0,0,"Lote 28","","","","","",""," días",null,0,0]
[29,null,null,null,"","","","","",null,"",null,null,null,null,null,null,null,null,null,null,null,null,null,null,null,null,null,null,null,0,0,0,0,"Lote 29","","","","","",""," días",null,0,0]
[30,null,null,null,"","","","","",null,"",null,null,null,null,null,null,null,null,null,null,null,null,null,null,null,null,null,null,null,0,0,0,0,"Lote 30","","","","","",""," días",null,0,0]
[31,null,null,null,"","","","","",null,"",null,null,null,null,null,null,null,null,null,null,null,null,null,null,null,null,null,null,null,0,0,0,0,"Lote 31","","","","","",""," días",null,0,0]
[32,null,null,null,"","","","","",null,"",null,null,null,null,null,null,null,null,null,null,null,null,null,null,null,null,null,null,null,0,0,0,0,"Lote 32","","","","","",""," días",null,0,0]
[33,null,null,null,"","","",{"$f":"IF(B42=0,\"\",$H$4)","v":""},"",null,{"$f":"IF(H$5=\"sin dato\",\"\",IF(D42=\"\",\"\",D42+$H$5))","v":""},null,null,null,null,null,null,null,null,null,null,null,null,null,null,null,null,null,null,null,{"$f":"B42","v":0},{"$f":"C42","v":0},0,0,{"$f":"\"Lote \"&A42","v":"Lote 33"},{"$f":"IF(B42=0,\"\",B42&\" animales\")","v":""},{"$f":"IF(C42=0,\"\",C42&\" animales\")","v":""},{"$f":"IF(D42=\"\",\"\",D42)","v":""},{"$f":"H42","v":""},{"$f":"IF(F42=\"\",\"\",F42)","v":""},{"$f":"I42","v":""}," días",null,{"$f":"IF(AH42=0,0,AO42*AH42)","v":0},{"$f":"IF(AH42=0,0,AM42*AH42)","v":0}]
[34,null,null,null,"","","","","",null,"",null,null,null,null,null,null,null,null,null,null,null,null,null,null,null,null,null,null,null,0,0,0,0,"Lote 34","","","","","",""," días",null,0,0]
[35,null,null,null,"","","","","",null,"",null,null,null,null,null,null,null,null,null,null,null,null,null,null,null,null,null,null,null,0,0,0,0,"Lote 35","","","","","",""," días",null,0,0]
[36,null,null,null,"","","","","",null,"",null,null,null,null,null,null,null,null,null,null,null,null,null,null,null,null,null,null,null,0,0,0,0,"Lote 36","","","","","",""," días",null,0,0]
[37,null,null,null,"","","","","",null,"",null,null,null,null,null,null,null,null,null,null,null,null,null,null,null,null,null,null,null,0,0,0,0,"Lote 37","","","","","",""," días",null,0,0]
[38,null,null,null,"","","","","",null,"",null,null,null,null,null,null,null,null,null,null,null,null,null,null,null,null,null,null,null,0,0,0,0,"Lote 38","","","","","",""," días",null,0,0]
[39,null,null,null,"","","","","",null,"",null,null,null,null,null,null,null,null,null,null,null,null,null,null,null,null,null,null,null,0,0,0,0,"Lote 39","","","","","",""," días",null,0,0]
[40,null,null,null,"","","","","",null,"",null,null,null,null,null,null,null,null,null,null,null,null,null,null,null,null,null,null,null,0,0,0,0,"Lote 40","","","","","",""," días",null,0,0]
[41,null,null,null,"","","","","",null,"",null,null,null,null,null,null,null,null,null,null,null,null,null,null,null,null,null,null,null,0,0,0,0,"Lote 41","","","","","",""," días",null,0,0]
[42,null,null,null,"","","","","",null,"",null,null,null,null,null,null,null,null,null,null,null,null,null,null,null,null,null,null,null,0,0,0,0,"Lote 42","","","","","",""," días",null,0,0]
[43,null,null,null,"","","","","",null,"",null,null,null,null,null,null,null,null,null,null,null,null,null,null,null,null,null,null,null,0,0,0,0,"Lote 43","","","","","",""," días",null,0,0]
[44,null,null,null,"","","","","",null,"",null,null,null,null,null,null,null,null,null,null,null,null,null,null,null,null,null,null,null,0,0,0,0,"Lote 44","","","","","",""," días",null,0,0]
[45,null,null,null,"","","","","",null,"",null,null,null,null,null,null,null,null,null,null,null,null,null,null,null,null,null,null,null,0,0,0,0,"Lote 45","","","","","",""," días",null,0,0]
[46,null,null,null,"","","","","",null,"",null,null,null,null,null,null,null,null,null,null,null,null,null,null,null,null,null,null,null,0,0,0,0,"Lote 46","","","","","",""," días",null,0,0]
[47,null,null,null,"","","","","",null,"",null,null,null,null,null,null,null,null,null,null,null,null,null,null,null,null,null,null,null,0,0,0,0,"Lote 47","","","","","",""," días",null,0,0]
[48,null,null,null,"","","","","",null,"",null,null,null,null,null,null,null,null,null,null,null,null,null,null,null,null,null,null,null,0,0,0,0,"Lote 48","","","","","",""," días",null,0,0]
[49,null,null,null,"","","","","",null,"",null,null,null,null,null,null,null,null,null,null,null,null,null,null,null,null,null,null,null,0,0,0,0,"Lote 49","","","","","",""," días",null,0,0]
[50,null,null,null,"","","","","",null,"",null,null,null,null,null,null,null,null,null,null,null,null,null,null,null,null,null,null,null,0,0,0,0,"Lote 50","","","","","",""," días",null,0,0]
[51,null,null,null,"","","","","",null,"",null,null,null,null,null,null,null,null,null,null,null,null,null,null,null,null,null,null,null,0,0,0,0,"Lote 51","","","","","",""," días",null,0,0]
[52,null,null,null,"","","","","",null,"",null,null,null,null,null,null,null,null,null,null,null,null,null,null,null,null,null,null,null,0,0,0,0,"Lote 52","","","","","",""," días",null,0,0]
[53,null,null,null,"","","","","",null,"",null,null,null,null,null,null,null,null,null,null,null,null,null,null,null,null,null,null,null,0,0,0,0,"Lote 53","","","","","",""," días",null,0,0]
[54,null,null,null,"","","","","",null,"",null,null,null,null,null,null,null,null,null,null,null,null,null,null,null,null,null,null,null,0,0,0,0,"Lote 54","","","","","",""," días",null,0,0]
[55,null,null,null,"","","","","",null,"",null,null,null,null,null,null,null,null,null,null,null,null,null,null,null,null,null,null,null,0,0,0,0,"Lote 55","","","","","",""," días",null,0,0]
[56,null,null,null,"","","","","",null,"",null,null,null,null,null,null,null,null,null,null,null,null,null,null,null,null,null,null,null,0,0,0,0,"Lote 56","","","","","",""," días",null,0,0]
[57,null,null,null,"","","","","",null,"",null,null,null,null,null,null,null,null,null,null,null,null,null,null,null,null,null,null,null,0,0,0,0,"Lote 57","","","","","",""," días",null,0,0]
[58,null,null,null,"","","","","",null,"",null,null,null,null,null,null,null,null,null,null,null,null,null,null,null,null,null,null,null,0,0,0,0,"Lote 58","","","","","",""," días",null,0,0]
[59,null,null,null,"","","","","",null,"",null,null,null,null,null,null,null,null,null,null,null,null,null,null,null,null,null,null,null,0,0,0,0,"Lote 59","","","","","",""," días",null,0,0]
[60,null,null,null,"","","","","",null,"",null,null,null,null,null,null,null,null,null,null,null,null,null,null,null,null,null,null,null,0,0,0,0,"Lote 60","","","","","",""," días",null,0,0]
[61,null,null,null,"","","","","",null,"",null,null,null,null,null,null,null,null,null,null,null,null,null,null,null,null,null,null,null,0,0,0,0,"Lote 61","","","","","",""," días",null,0,0]
[62,null,null,null,"","","","","",null,"",null,null,null,null,null,null,null,null,null,null,null,null,null,null,null,null,null,null,null,0,0,0,0,"Lote 62","","","","","",""," días",null,0,0]
[63,null,null,null,"","","","","",null,"",null,null,null,null,null,null,null,null,null,null,null,null,null,null,null,null,null,null,null,0,0,0,0,"Lote 63","","","","","",""," días",null,0,0]
[64,null,null,null,"","","","","",null,"",null,null,null,null,null,null,null,null,null,null,null,null,null,null,null,null,null,null,null,0,0,0,0,"Lote 64","","","","","",""," días",null,0,0]
[65,null,null,null,{"$f":"IF($D74 =\"\",\"\",IF(YEAR($D74)=$F$1,$D74,\"01/01/2025\"))","v":""},"",{"$f":"IF($F74=\"\",\"\",IF(YEAR($F74)=$F$1,$F74,\"31/12/2025\"))","v":""},{"$f":"IF(B74=0,\"\",$H$4)","v":""},"",null,{"$f":"IF(H$5=\"sin dato\",\"\",IF(D74=\"\",\"\",D74+$H$5))","v":""},null,null,null,null,null,null,null,null,null,null,null,null,null,null,null,null,null,null,null,{"$f":"B74","v":0},{"$f":"C74","v":0},0,0,{"$f":"\"Lote \"&A74","v":"Lote 65"},{"$f":"IF(B74=0,\"\",B74&\" animales\")","v":""},{"$f":"IF(C74=0,\"\",C74&\" animales\")","v":""},{"$f":"IF(D74=\"\",\"\",D74)","v":""},{"$f":"H74","v":""},{"$f":"IF(F74=\"\",\"\",F74)","v":""},{"$f":"I74","v":""}," días",null,{"$f":"IF(AH74=0,0,AO74*AH74)","v":0},{"$f":"IF(AH74=0,0,AM74*AH74)","v":0}]
[66,null,null,null,"",{"$f":"IF(D75=\"\",\"\",D75+H75)","v":""},"","",{"$f":"IF(G75=\"\",\"\",_xlfn.DAYS(G75,E75))","v":""},null,"",null,null,null,null,null,null,null,null,null,null,null,null,null,null,null,null,null,null,null,0,0,{"$f":"(AE75+AF75)/2","v":0},{"$f":"IF($AG$160=0,0,AG75/$AG$160)","v":0},"Lote 66","","","","","","",{"$f":"IF(AO75=0,\"\",AO75& \" días\")","v":" días"},null,0,0]
[67,null,null,null,"","","","","",null,"",null,null,null,null,null,null,null,null,null,null,null,null,null,null,null,null,null,null,null,0,0,0,0,"Lote 67","","","","","",""," días",null,0,0]
[68,null,null,null,"","","","","",null,"",null,null,null,null,null,null,null,null,null,null,null,null,null,null,null,null,null,null,null,0,0,0,0,"Lote 68","","","","","",""," días",null,0,0]
[69,null,null,null,"","","","","",null,"",null,null,null,null,null,null,null,null,null,null,null,null,null,null,null,null,null,null,null,0,0,0,0,"Lote 69","","","","","",""," días",null,0,0]
[70,null,null,null,"","","","","",null,"",null,null,null,null,null,null,null,null,null,null,null,null,null,null,null,null,null,null,null,0,0,0,0,"Lote 70","","","","","",""," días",null,0,0]
[71,null,null,null,"","","","","",null,"",null,null,null,null,null,null,null,null,null,null,null,null,null,null,null,null,null,null,null,0,0,0,0,"Lote 71","","","","","",""," días",null,0,0]
[72,null,null,null,"","","","","",null,"",null,null,null,null,null,null,null,null,null,null,null,null,null,null,null,null,null,null,null,0,0,0,0,"Lote 72","","","","","",""," días",null,0,0]
[73,null,null,null,"","","","","",null,"",null,null,null,null,null,null,null,null,null,null,null,null,null,null,null,null,null,null,null,0,0,0,0,"Lote 73","","","","","",""," días",null,0,0]
[74,null,null,null,"","","","","",null,"",null,null,null,null,null,null,null,null,null,null,null,null,null,null,null,null,null,null,null,0,0,0,0,"Lote 74","","","","","",""," días",null,0,0]
[75,null,null,null,"","","","","",null,"",null,null,null,null,null,null,null,null,null,null,null,null,null,null,null,null,null,null,null,0,0,0,0,"Lote 75","","","","","",""," días",null,0,0]
[76,null,null,null,"","","","","",null,"",null,null,null,null,null,null,null,null,null,null,null,null,null,null,null,null,null,null,null,0,0,0,0,"Lote 76","","","","","",""," días",null,0,0]
[77,null,null,null,"","","","","",null,"",null,null,null,null,null,null,null,null,null,null,null,null,null,null,null,null,null,null,null,0,0,0,0,"Lote 77","","","","","",""," días",null,0,0]
[78,null,null,null,"","","","","",null,"",null,null,null,null,null,null,null,null,null,null,null,null,null,null,null,null,null,null,null,0,0,0,0,"Lote 78","","","","","",""," días",null,0,0]
[79,null,null,null,"","","","","",null,"",null,null,null,null,null,null,null,null,null,null,null,null,null,null,null,null,null,null,null,0,0,0,0,"Lote 79","","","","","",""," días",null,0,0]
[80,null,null,null,"","","","","",null,"",null,null,null,null,null,null,null,null,null,null,null,null,null,null,null,null,null,null,null,0,0,0,0,"Lote 80","","","","","",""," días",null,0,0]
[81,null,null,null,"","","","","",null,"",null,null,null,null,null,null,null,null,null,null,null,null,null,null,null,null,null,null,null,0,0,0,0,"Lote 81","","","","","",""," días",null,0,0]
[82,null,null,null,"","","","","",null,"",null,null,null,null,null,null,null,null,null,null,null,null,null,null,null,null,null,null,null,0,0,0,0,"Lote 82","","","","","",""," días",null,0,0]
[83,null,null,null,"","","","","",null,"",null,null,null,null,null,null,null,null,null,null,null,null,null,null,null,null,null,null,null,0,0,0,0,"Lote 83","","","","","",""," días",null,0,0]
[84,null,null,null,"","","","","",null,"",null,null,null,null,null,null,null,null,null,null,null,null,null,null,null,null,null,null,null,0,0,0,0,"Lote 84","","","","","",""," días",null,0,0]
[85,null,null,null,"","","","","",null,"",null,null,null,null,null,null,null,null,null,null,null,null,null,null,null,null,null,null,null,0,0,0,0,"Lote 85","","","","","",""," días",null,0,0]
[86,null,null,null,"","","","","",null,"",null,null,null,null,null,null,null,null,null,null,null,null,null,null,null,null,null,null,null,0,0,0,0,"Lote 86","","","","","",""," días",null,0,0]
[87,null,null,null,"","","","","",null,"",null,null,null,null,null,null,null,null,null,null,null,null,null,null,null,null,null,null,null,0,0,0,0,"Lote 87","","","","","",""," días",null,0,0]
[88,null,null,null,"","","","","",null,"",null,null,null,null,null,null,null,null,null,null,null,null,null,null,null,null,null,null,null,0,0,0,0,"Lote 88","","","","","",""," días",null,0,0]
[89,null,null,null,"","","","","",null,"",null,null,null,null,null,null,null,null,null,null,null,null,null,null,null,null,null,null,null,0,0,0,0,"Lote 89","","","","","",""," días",null,0,0]
[90,null,null,null,"","","","","",null,"",null,null,null,null,null,null,null,null,null,null,null,null,null,null,null,null,null,null,null,0,0,0,0,"Lote 90","","","","","",""," días",null,0,0]
[91,null,null,null,"","","","","",null,"",null,null,null,null,null,null,null,null,null,null,null,null,null,null,null,null,null,null,null,0,0,0,0,"Lote 91","","","","","",""," días",null,0,0]
[92,null,null,null,"","","","","",null,"",null,null,null,null,null,null,null,null,null,null,null,null,null,null,null,null,null,null,null,0,0,0,0,"Lote 92","","","","","",""," días",null,0,0]
[93,null,null,null,"","","","","",null,"",null,null,null,null,null,null,null,null,null,null,null,null,null,null,null,null,null,null,null,0,0,0,0,"Lote 93","","","","","",""," días",null,0,0]
[94,null,null,null,"","","","","",null,"",null,null,null,null,null,null,null,null,null,null,null,null,null,null,null,null,null,null,null,0,0,0,0,"Lote 94","","","","","",""," días",null,0,0]
[95,null,null,null,"","","","","",null,"",null,null,null,null,null,null,null,null,null,null,null,null,null,null,null,null,null,null,null,0,0,0,0,"Lote 95","","","","","",""," días",null,0,0]
[96,null,null,null,"","","","","",null,"",null,null,null,null,null,null,null,null,null,null,null,null,null,null,null,null,null,null,null,0,0,0,0,"Lote 96","","","","","",""," días",null,0,0]
[97,null,null,null,"","","",{"$f":"IF(B106=0,\"\",$H$4)","v":""},"",null,{"$f":"IF(H$5=\"sin dato\",\"\",IF(D106=\"\",\"\",D106+$H$5))","v":""},null,null,null,null,null,null,null,null,null,null,null,null,null,null,null,null,null,null,null,{"$f":"B106","v":0},{"$f":"C106","v":0},0,0,{"$f":"\"Lote \"&A106","v":"Lote 97"},{"$f":"IF(B106=0,\"\",B106&\" animales\")","v":""},{"$f":"IF(C106=0,\"\",C106&\" animales\")","v":""},{"$f":"IF(D106=\"\",\"\",D106)","v":""},{"$f":"H106","v":""},{"$f":"IF(F106=\"\",\"\",F106)","v":""},{"$f":"I106","v":""}," días",null,{"$f":"IF(AH106=0,0,AO106*AH106)","v":0},{"$f":"IF(AH106=0,0,AM106*AH106)","v":0}]
[98,null,null,null,"","","","","",null,"",null,null,null,null,null,null,null,null,null,null,null,null,null,null,null,null,null,null,null,0,0,0,0,"Lote 98","","","","","",""," días",null,0,0]
[99,null,null,null,"","","","","",null,"",null,null,null,null,null,null,null,null,null,null,null,null,null,null,null,null,null,null,null,0,0,0,0,"Lote 99","","","","","",""," días",null,0,0]
[100,null,null,null,"","","","","",null,"",null,null,null,null,null,null,null,null,null,null,null,null,null,null,null,null,null,null,null,0,0,0,0,"Lote 100","","","","","",""," días",null,0,0]
[101,null,null,null,"","","","","",null,"",null,null,null,null,null,null,null,null,null,null,null,null,null,null,null,null,null,null,null,0,0,0,0,"Lote 101","","","","","",""," días",null,0,0]
[102,null,null,null,"","","","","",null,"",null,null,null,null,null,null,null,null,null,null,null,null,null,null,null,null,null,null,null,0,0,0,0,"Lote 102","","","","","",""," días",null,0,0]
[103,null,null,null,"","","","","",null,"",null,null,null,null,null,null,null,null,null,null,null,null,null,null,null,null,null,null,null,0,0,0,0,"Lote 103","","","","","",""," días",null,0,0]
[104,null,null,null,"","","","","",null,"",null,null,null,null,null,null,null,null,null,null,null,null,null,null,null,null,null,null,null,0,0,0,0,"Lote 104","","","","","",""," días",null,0,0]
[105,null,null,null,"","","","","",null,"",null,null,null,null,null,null,null,null,null,null,null,null,null,null,null,null,null,null,null,0,0,0,0,"Lote 105","","","","","",""," días",null,0,0]
[106,null,null,null,"","","","","",null,"",null,null,null,null,null,null,null,null,null,null,null,null,null,null,null,null,null,null,null,0,0,0,0,"Lote 106","","","","","",""," días",null,0,0]
[107,null,null,null,"","","","","",null,"",null,null,null,null,null,null,null,null,null,null,null,null,null,null,null,null,null,null,null,0,0,0,0,"Lote 107","","","","","",""," días",null,0,0]
[108,null,null,null,"","","","","",null,"",null,null,null,null,null,null,null,null,null,null,null,null,null,null,null,null,null,null,null,0,0,0,0,"Lote 108","","","","","",""," días",null,0,0]
[109,null,null,null,"","","","","",null,"",null,null,null,null,null,null,null,null,null,null,null,null,null,null,null,null,null,null,null,0,0,0,0,"Lote 109","","","","","",""," días",null,0,0]
[110,null,null,null,"","","","","",null,"",null,null,null,null,null,null,null,null,null,null,null,null,null,null,null,null,null,null,null,0,0,0,0,"Lote 110","","","","","",""," días",null,0,0]
[111,null,null,null,"","","","","",null,"",null,null,null,null,null,null,null,null,null,null,null,null,null,null,null,null,null,null,null,0,0,0,0,"Lote 111","","","","","",""," días",null,0,0]
[112,null,null,null,"","","","","",null,"",null,null,null,null,null,null,null,null,null,null,null,null,null,null,null,null,null,null,null,0,0,0,0,"Lote 112","","","","","",""," días",null,0,0]
[113,null,null,null,"","","","","",null,"",null,null,null,null,null,null,null,null,null,null,null,null,null,null,null,null,null,null,null,0,0,0,0,"Lote 113","","","","","",""," días",null,0,0]
[114,null,null,null,"","","","","",null,"",null,null,null,null,null,null,null,null,null,null,null,null,null,null,null,null,null,null,null,0,0,0,0,"Lote 114","","","","","",""," días",null,0,0]
[115,null,null,null,"","","","","",null,"",null,null,null,null,null,null,null,null,null,null,null,null,null,null,null,null,null,null,null,0,0,0,0,"Lote 115","","","","","",""," días",null,0,0]
[116,null,null,null,"","","","","",null,"",null,null,null,null,null,null,null,null,null,null,null,null,null,null,null,null,null,null,null,0,0,0,0,"Lote 116","","","","","",""," días",null,0,0]
[117,null,null,null,"","","","","",null,"",null,null,null,null,null,null,null,null,null,null,null,null,null,null,null,null,null,null,null,0,0,0,0,"Lote 117","","","","","",""," días",null,0,0]
[118,null,null,null,"","","","","",null,"",null,null,null,null,null,null,null,null,null,null,null,null,null,null,null,null,null,null,null,0,0,0,0,"Lote 118","","","","","",""," días",null,0,0]
[119,null,null,null,"","","","","",null,"",null,null,null,null,null,null,null,null,null,null,null,null,null,null,null,null,null,null,null,0,0,0,0,"Lote 119","","","","","",""," días",null,0,0]
[120,null,null,null,"","","","","",null,"",null,null,null,null,null,null,null,null,null,null,null,null,null,null,null,null,null,null,null,0,0,0,0,"Lote 120","","","","","",""," días",null,0,0]
[121,null,null,null,"","","","","",null,"",null,null,null,null,null,null,null,null,null,null,null,null,null,null,null,null,null,null,null,0,0,0,0,"Lote 121","","","","","",""," días",null,0,0]
[122,null,null,null,"","","","","",null,"",null,null,null,null,null,null,null,null,null,null,null,null,null,null,null,null,null,null,null,0,0,0,0,"Lote 122","","","","","",""," días",null,0,0]
[123,null,null,null,"","","","","",null,"",null,null,null,null,null,null,null,null,null,null,null,null,null,null,null,null,null,null,null,0,0,0,0,"Lote 123","","","","","",""," días",null,0,0]
[124,null,null,null,"","","","","",null,"",null,null,null,null,null,null,null,null,null,null,null,null,null,null,null,null,null,null,null,0,0,0,0,"Lote 124","","","","","",""," días",null,0,0]
[125,null,null,null,"","","","","",null,"",null,null,null,null,null,null,null,null,null,null,null,null,null,null,null,null,null,null,null,0,0,0,0,"Lote 125","","","","","",""," días",null,0,0]
[126,null,null,null,"","","","","",null,"",null,null,null,null,null,null,null,null,null,null,null,null,null,null,null,null,null,null,null,0,0,0,0,"Lote 126","","","","","",""," días",null,0,0]
[127,null,null,null,"","","","","",null,"",null,null,null,null,null,null,null,null,null,null,null,null,null,null,null,null,null,null,null,0,0,0,0,"Lote 127","","","","","",""," días",null,0,0]
[128,null,null,null,"","","","","",null,"",null,null,null,null,null,null,null,null,null,null,null,null,null,null,null,null,null,null,null,0,0,0,0,"Lote 128","","","","","",""," días",null,0,0]
[129,null,null,null,{"$f":"IF($D138 =\"\",\"\",IF(YEAR($D138)=$F$1,$D138,\"01/01/2025\"))","v":""},"",{"$f":"IF($F138=\"\",\"\",IF(YEAR($F138)=$F$1,$F138,\"31/12/2025\"))","v":""},{"$f":"IF(B138=0,\"\",$H$4)","v":""},"",null,{"$f":"IF(H$5=\"sin dato\",\"\",IF(D138=\"\",\"\",D138+$H$5))","v":""},null,null,null,null,null,null,null,null,null,null,null,null,null,null,null,null,null,null,null,{"$f":"B138","v":0},{"$f":"C138","v":0},0,0,{"$f":"\"Lote \"&A138","v":"Lote 129"},{"$f":"IF(B138=0,\"\",B138&\" animales\")","v":""},{"$f":"IF(C138=0,\"\",C138&\" animales\")","v":""},{"$f":"IF(D138=\"\",\"\",D138)","v":""},{"$f":"H138","v":""},{"$f":"IF(F138=\"\",\"\",F138)","v":""},{"$f":"I138","v":""}," días",null,{"$f":"IF(AH138=0,0,AO138*AH138)","v":0},0]
[130,null,null,null,"",{"$f":"IF(D139=\"\",\"\",D139+H139)","v":""},"","",{"$f":"IF(G139=\"\",\"\",_xlfn.DAYS(G139,E139))","v":""},null,"",null,null,null,null,null,null,null,null,null,null,null,null,null,null,null,null,null,null,null,0,0,{"$f":"(AE139+AF139)/2","v":0},{"$f":"IF($AG$160=0,0,AG139/$AG$160)","v":0},"Lote 130","","","","","","",{"$f":"IF(AO139=0,\"\",AO139& \" días\")","v":" días"},null,0,{"$f":"IF(AH139=0,0,AM139*AH139)","v":0}]
[131,null,null,null,"","","","","",null,"",null,null,null,null,null,null,null,null,null,null,null,null,null,null,null,null,null,null,null,0,0,0,0,"Lote 131","","","","","",""," días",null,0,0]
[132,null,null,null,"","","","","",null,"",null,null,null,null,null,null,null,null,null,null,null,null,null,null,null,null,null,null,null,0,0,0,0,"Lote 132","","","","","",""," días",null,0,0]
[133,null,null,null,"","","","","",null,"",null,null,null,null,null,null,null,null,null,null,null,null,null,null,null,null,null,null,null,0,0,0,0,"Lote 133","","","","","",""," días",null,0,0]
[134,null,null,null,"","","","","",null,"",null,null,null,null,null,null,null,null,null,null,null,null,null,null,null,null,null,null,null,0,0,0,0,"Lote 134","","","","","",""," días",null,0,0]
[135,null,null,null,"","","","","",null,"",null,null,null,null,null,null,null,null,null,null,null,null,null,null,null,null,null,null,null,0,0,0,0,"Lote 135","","","","","",""," días",null,0,0]
[136,null,null,null,"","","","","",null,"",null,null,null,null,null,null,null,null,null,null,null,null,null,null,null,null,null,null,null,0,0,0,0,"Lote 136","","","","","",""," días",null,0,0]
[137,null,null,null,"","","","","",null,"",null,null,null,null,null,null,null,null,null,null,null,null,null,null,null,null,null,null,null,0,0,0,0,"Lote 137","","","","","",""," días",null,0,0]
[138,null,null,null,"","","","","",null,"",null,null,null,null,null,null,null,null,null,null,null,null,null,null,null,null,null,null,null,0,0,0,0,"Lote 138","","","","","",""," días",null,0,0]
[139,null,null,null,"","","","","",null,"",null,null,null,null,null,null,null,null,null,null,null,null,null,null,null,null,null,null,null,0,0,0,0,"Lote 139","","","","","",""," días",null,0,0]
[140,null,null,null,"","","","","",null,"",null,null,null,null,null,null,null,null,null,null,null,null,null,null,null,null,null,null,null,0,0,0,0,"Lote 140","","","","","",""," días",null,0,0]
[141,null,null,null,"","","","","",null,"",null,null,null,null,null,null,null,null,null,null,null,null,null,null,null,null,null,null,null,0,0,0,0,"Lote 141","","","","","",""," días",null,0,0]
[142,null,null,null,"","","","","",null,"",null,null,null,null,null,null,null,null,null,null,null,null,null,null,null,null,null,null,null,0,0,0,0,"Lote 142","","","","","",""," días",null,0,0]
[143,null,null,null,"","","","","",null,"",null,null,null,null,null,null,null,null,null,null,null,null,null,null,null,null,null,null,null,0,0,0,0,"Lote 143","","","","","",""," días",null,0,0]
[144,null,null,null,"","","","","",null,"",null,null,null,null,null,null,null,null,null,null,null,null,null,null,null,null,null,null,null,0,0,0,0,"Lote 144","","","","","",""," días",null,0,0]
[145,null,null,null,"","","","","",null,"",null,null,null,null,null,null,null,null,null,null,null,null,null,null,null,null,null,null,null,0,0,0,0,"Lote 145","","","","","",""," días",null,0,0]
[146,null,null,null,"","","","","",null,"",null,null,null,null,null,null,null,null,null,null,null,null,null,null,null,null,null,null,null,0,0,0,0,"Lote 146","","","","","",""," días",null,0,0]
[147,null,null,null,"","","","","",null,"",null,null,null,null,null,null,null,null,null,null,null,null,null,null,null,null,null,null,null,0,0,0,0,"Lote 147","","","","","",""," días",null,0,0]
[148,null,null,null,"","","","","",null,"",null,null,null,null,null,null,null,null,null,null,null,null,null,null,null,null,null,null,null,0,0,0,0,"Lote 148","","","","","",""," días",null,0,0]
[149,null,null,null,"","","","","",null,"",null,null,null,null,null,null,null,null,null,null,null,null,null,null,null,null,null,null,null,0,0,0,0,"Lote 149","","","","","",""," días",null,0,0]
[150,null,null,null,"","","","","",null,"",null,null,null,null,null,null,null,null,null,null,null,null,null,null,null,null,null,null,null,0,0,0,0,"Lote 150","","","","","",""," días",null,0,0]
[null,null,null,null,null,null,null,null,null,null,null,null,null,null,null,null,null,null,null,null,null,null,null,null,null,null,null,null,null,null,{"$f":"SUM(AE10:AE159)","v":0},{"$f":"SUM(AF10:AF159)","v":0},{"$f":"ROUND(SUM(AG10:AG159),0)","v":0},{"$f":"SUM(AH10:AH159)","v":0},null,null,null,null,null,null,null,null,null,{"$f":"ROUND(SUM(AR10:AR159),0)","v":0},{"$f":"ROUND(SUM(AS10:AS159),0)","v":0}]

{"sheet":"Categoria 4","index":6,"n_rows":160,"n_cols":45,"rows_kept":160,"cut":false,"hidden":false,"merged":[[7,1,7,8],[7,12,7,24],[4,13,4,17],[0,1,0,3],[2,0,2,2],[2,3,2,8],[5,1,5,8],[0,12,0,17],[0,18,0,23]]}
[null,"Año de declaración: ",null,null,null,{"$f":"Base!B12","v":2025},null,null,null,null,null,null,"Datos a grabar en el paso 2 de ECOGAN",null,null,null,null,null,"Datos a grabar en el paso 4 de ECOGAN"]
[null,null,null,null,null,null,null,null,null,null,null,null,null,null,null,null,"nº total de animales que entran de esta categoría productiva:",{"$f":"AE160","v":0},null,null,null,null,"Periodo productivo total medio de la categoría productiva:",{"$f":"H4","v":0}]
["Categoría productiva: ",null,null,"Mamones Hembra procedentes de vacas nodriza",null,null,null,null,null,null,null,null,null,null,null,null,"nº total de animales vivos que finalizan de esta categoría productiva:",{"$f":"AF160","v":0},null,null,null,null,"días medios presentes de la categoría productiva:",{"$f":"AR160","v":0}]
[null,null,null,null,null,"Indique el periodo productivo medio de la categoría productiva (días):",null,null,"*"]
[null,null,null,null,null,"Periodo productivo medio de referencia (días):",null,{"$f":"IFERROR(VLOOKUP(D3,Base!A2:B7,2,FALSE),\"sin dato\")","v":337},{"$f":"IF(H5=\"sin dato\",\"\",\"(\"&ROUND(H5*0.9,0) &\" - \"&ROUND(H5*1.1,0)&\")\")","v":"(303 - 371)"},null,null,null,null,"Si desea borrar datos grabados anteriormente, pulse aquí\n¡Cuidado! Perderá toda la información"]
["*","Número de días que por término medio los animales de una linea productiva permanecen en la granja desde que entran hasta que salen de ese alojamiento, de modo que el periodo es por ciclo productivo y no por año natural. "]
[null,null,null,null,null,null,null,null,null,null,null,null,{"$f":"Base!F2","v":45292},{"$f":"Base!H3","v":46387}]
["u","Lote es el grupo de animales que van entrando de forma escalonada a los corrales.",null,null,null,null,null,null,null,null,null,null,"Diagrama de entradas y salidas"]
["lote u","nº de animales que entran\nen cada lote","nº de animales vivos que finalizan\nen cada lote","Fecha de entrada                                                                                                                                                                                                                                                                del lote\n(dd/mm/aa)",null,"Fecha de\nfinalización                                                                                                                                                                                                                                  del lote\n(dd/mm/aa)",null,"Periodo productivo total\nmedio\n(días)",{"$f":"\"días presentes del lote\nen el año \" & F1","v":"días presentes del lote\nen el año 2025"},null,{"$f":"IF(H5=\"sin dato\",\"\",\"Fecha fin según fecha entrada y periodo de \"&H5&\" días\")","v":"Fecha fin según fecha entrada y periodo de 337 días"},null,null,null,null,null,null,null,null,null,null,null,null,null,null,null,null,null,null,null,null,null,null,null,"lote",null,null,"Fecha de entrada                                                                                                                                                                                                                                                                del lote","Periodo productivo total","Fecha de entrada                                                                                                                                                                                                                                                                del lote",{"$f":"\"días presentes del lote\nen el año \" & AL1","v":"días presentes del lote\nen el año "},null,null,{"$f":"\"días presentes del lote\nen el año \" & AO1","v":"días presentes del lote\nen el año "},"Periodo productivo total"]
[1,null,null,null,{"$f":"IF($D10 =\"\",\"\",IF(YEAR($D10)=$F$1,$D10,\"01/01/2025\"))","v":""},{"$f":"IF(D10=\"\",\"\",D10+H10)","v":""},{"$f":"IF($F10=\"\",\"\",IF(YEAR($F10)=$F$1,$F10,\"31/12/2025\"))","v":""},{"$f":"IF(B10=0,\"\",$H$4)","v":""},{"$f":"IF(G10=\"\",\"\",_xlfn.DAYS(G10,E10))","v":""},null,{"$f":"IF(H$5=\"sin dato\",\"\",IF(D10=\"\",\"\",D10+$H$5))","v":""},null,null,null,null,null,null,null,null,null,null,null,null,null,null,null,null,null,null,null,{"$f":"B10","v":0},0,{"$f":"(AE10+AF10)/2","v":0},{"$f":"IF($AG$160=0,0,AG10/$AG$160)","v":0},{"$f":"\"Lote \"&A10","v":"Lote 1"},{"$f":"IF(B10=0,\"\",B10&\" animales\")","v":""},"",{"$f":"IF(D10=\"\",\"\",D10)","v":""},{"$f":"H10","v":""},{"$f":"IF(F10=\"\",\"\",F10)","v":""},{"$f":"I10","v":""},{"$f":"IF(AO10=0,\"\",AO10& \" días\")","v":" días"},null,{"$f":"IF(AH10=0,0,AO10*AH10)","v":0},{"$f":"IF(AH10=0,0,AM10*AH10)","v":0}]
[2,null,null,null,"",{"$f":"IF(D11=\"\",\"\",D11+H11)","v":""},"","",{"$f":"IF(G11=\"\",\"\",_xlfn.DAYS(G11,E11))","v":""},null,"",null,null,null,null,null,null,null,null,null,null,null,null,null,null,null,null,null,null,null,0,0,{"$f":"(AE11+AF11)/2","v":0},{"$f":"IF($AG$160=0,0,AG11/$AG$160)","v":0},"Lote 2","","","","","","",{"$f":"IF(AO11=0,\"\",AO11& \" días\")","v":" días"},null,0,0]
[3,null,null,null,"","","","","",null,"",null,null,null,null,null,null,null,null,null,null,null,null,null,null,null,null,null,null,null,0,0,0,0,"Lote 3","","","","","",""," días",null,0,0]
[4,null,null,null,"","","","","",null,"",null,null,null,null,null,null,null,null,null,null,null,null,null,null,null,null,null,null,null,0,0,0,0,"Lote 4","","","","","",""," días",null,0,0]
[5,null,null,null,"","","","","",null,"",null,null,null,null,null,null,null,null,null,null,null,null,null,null,null,null,null,null,null,0,0,0,0,"Lote 5","","","","","",""," días",null,0,0]
[6,null,null,null,"","","","","",null,"",null,null,null,null,null,null,null,null,null,null,null,null,null,null,null,null,null,null,null,0,0,0,0,"Lote 6","","","","","",""," días",null,0,0]
[7,null,null,null,"","","","","",null,"",null,null,null,null,null,null,null,null,null,null,null,null,null,null,null,null,null,null,null,0,0,0,0,"Lote 7","","","","","",""," días",null,0,0]
[8,null,null,null,"","","","","",null,"",null,null,null,null,null,null,null,null,null,null,null,null,null,null,null,null,null,null,null,0,0,0,0,"Lote 8","","","","","",""," días",null,0,0]
[9,null,null,null,"","","","","",null,"",null,null,null,null,null,null,null,null,null,null,null,null,null,null,null,null,null,null,null,0,0,0,0,"Lote 9","","","","","",""," días",null,0,0]
[10,null,null,null,"","","","","",null,"",null,null,null,null,null,null,null,null,null,null,null,null,null,null,null,null,null,null,null,0,0,0,0,"Lote 10","","","","","",""," días",null,0,0]
[11,null,null,null,"","","","","",null,"",null,null,null,null,null,null,null,null,null,null,null,null,null,null,null,null,null,null,null,0,0,0,0,"Lote 11","","","","","",""," días",null,0,0]
[12,null,null,null,"","","","","",null,"",null,null,null,null,null,null,null,null,null,null,null,null,null,null,null,null,null,null,null,0,0,0,0,"Lote 12","","","","","",""," días",null,0,0]
[13,null,null,null,"","","","","",null,"",null,null,null,null,null,null,null,null,null,null,null,null,null,null,null,null,null,null,null,0,0,0,0,"Lote 13","","","","","",""," días",null,0,0]
[14,null,null,null,"","","","","",null,"",null,null,null,null,null,null,null,null,null,null,null,null,null,null,null,null,null,null,null,0,0,0,0,"Lote 14","","","","","",""," días",null,0,0]
[15,null,null,null,"","","","","",null,"",null,null,null,null,null,null,null,null,null,null,null,null,null,null,null,null,null,null,null,0,0,0,0,"Lote 15","","","","","",""," días",null,0,0]
[16,null,null,null,"","","","","",null,"",null,null,null,null,null,null,null,null,null,null,null,null,null,null,null,null,null,null,null,0,0,0,0,"Lote 16","","","","","",""," días",null,0,0]
[17,null,null,null,"","","","","",null,"",null,null,null,null,null,null,null,null,null,null,null,null,null,null,null,null,null,null,null,0,0,0,0,"Lote 17","","","","","",""," días",null,0,0]
[18,null,null,null,"","","","","",null,"",null,null,null,null,null,null,null,null,null,null,null,null,null,null,null,null,null,null,null,0,0,0,0,"Lote 18","","","","","",""," días",null,0,0]
[19,null,null,null,"","","","","",null,"",null,null,null,null,null,null,null,null,null,null,null,null,null,null,null,null,null,null,null,0,0,0,0,"Lote 19","","","","","",""," días",null,0,0]
[20,null,null,null,"","","","","",null,"",null,null,null,null,null,null,null,null,null,null,null,null,null,null,null,null,null,null,null,0,0,0,0,"Lote 20","","","","","",""," días",null,0,0]
[21,null,null,null,"","","","","",null,"",null,null,null,null,null,null,null,null,null,null,null,null,null,null,null,null,null,null,null,0,0,0,0,"Lote 21","","","","","",""," días",null,0,0]
[22,null,null,null,"","","","","",null,"",null,null,null,null,null,null,null,null,null,null,null,null,null,null,null,null,null,null,null,0,0,0,0,"Lote 22","","","","","",""," días",null,0,0]
[23,null,null,null,"","","","","",null,"",null,null,null,null,null,null,null,null,null,null,null,null,null,null,null,null,null,null,null,0,0,0,0,"Lote 23","","","","","",""," días",null,0,0]
[24,null,null,null,"","","","","",null,"",null,null,null,null,null,null,null,null,null,null,null,null,null,null,null,null,null,null,null,0,0,0,0,"Lote 24","","","","","",""," días",null,0,0]
[25,null,null,null,"","","","","",null,"",null,null,null,null,null,null,null,null,null,null,null,null,null,null,null,null,null,null,null,0,0,0,0,"Lote 25","","","","","",""," días",null,0,0]
[26,null,null,null,"","","","","",null,"",null,null,null,null,null,null,null,null,null,null,null,null,null,null,null,null,null,null,null,0,0,0,0,"Lote 26","","","","","",""," días",null,0,0]
[27,null,null,null,"","","","","",null,"",null,null,null,null,null,null,null,null,null,null,null,null,null,null,null,null,null,null,null,0,0,0,0,"Lote 27","","","","","",""," días",null,0,0]
[28,null,null,null,"","","","","",null,"",null,null,null,null,null,null,null,null,null,null,null,null,null,null,null,null,null,null,null,0,0,0,0,"Lote 28","","","","","",""," días",null,0,0]
[29,null,null,null,"","","","","",null,"",null,null,null,null,null,null,null,null,null,null,null,null,null,null,null,null,null,null,null,0,0,0,0,"Lote 29","","","","","",""," días",null,0,0]
[30,null,null,null,"","","","","",null,"",null,null,null,null,null,null,null,null,null,null,null,null,null,null,null,null,null,null,null,0,0,0,0,"Lote 30","","","","","",""," días",null,0,0]
[31,null,null,null,"","","","","",null,"",null,null,null,null,null,null,null,null,null,null,null,null,null,null,null,null,null,null,null,0,0,0,0,"Lote 31","","","","","",""," días",null,0,0]
[32,null,null,null,"","","","","",null,"",null,null,null,null,null,null,null,null,null,null,null,null,null,null,null,null,null,null,null,0,0,0,0,"Lote 32","","","","","",""," días",null,0,0]
[33,null,null,null,"","","",{"$f":"IF(B42=0,\"\",$H$4)","v":""},"",null,{"$f":"IF(H$5=\"sin dato\",\"\",IF(D42=\"\",\"\",D42+$H$5))","v":""},null,null,null,null,null,null,null,null,null,null,null,null,null,null,null,null,null,null,null,{"$f":"B42","v":0},0,0,0,"Lote 33",{"$f":"IF(B42=0,\"\",B42&\" animales\")","v":""},"","","","",""," días",null,0,0]
[34,null,null,null,"","","","","",null,"",null,null,null,null,null,null,null,null,null,null,null,null,null,null,null,null,null,null,null,0,0,0,0,"Lote 34","","","","","",""," días",null,0,0]
[35,null,null,null,"","","","","",null,"",null,null,null,null,null,null,null,null,null,null,null,null,null,null,null,null,null,null,null,0,0,0,0,"Lote 35","","","","","",""," días",null,0,0]
[36,null,null,null,"","","","","",null,"",null,null,null,null,null,null,null,null,null,null,null,null,null,null,null,null,null,null,null,0,0,0,0,"Lote 36","","","","","",""," días",null,0,0]
[37,null,null,null,"","","","","",null,"",null,null,null,null,null,null,null,null,null,null,null,null,null,null,null,null,null,null,null,0,0,0,0,"Lote 37","","","","","",""," días",null,0,0]
[38,null,null,null,"","","","","",null,"",null,null,null,null,null,null,null,null,null,null,null,null,null,null,null,null,null,null,null,0,0,0,0,"Lote 38","","","","","",""," días",null,0,0]
[39,null,null,null,"","","","","",null,"",null,null,null,null,null,null,null,null,null,null,null,null,null,null,null,null,null,null,null,0,0,0,0,"Lote 39","","","","","",""," días",null,0,0]
[40,null,null,null,"","","","","",null,"",null,null,null,null,null,null,null,null,null,null,null,null,null,null,null,null,null,null,null,0,0,0,0,"Lote 40","","","","","",""," días",null,0,0]
[41,null,null,null,"","","","","",null,"",null,null,null,null,null,null,null,null,null,null,null,null,null,null,null,null,null,null,null,0,0,0,0,"Lote 41","","","","","",""," días",null,0,0]
[42,null,null,null,"","","","","",null,"",null,null,null,null,null,null,null,null,null,null,null,null,null,null,null,null,null,null,null,0,0,0,0,"Lote 42","","","","","",""," días",null,0,0]
[43,null,null,null,"","","","","",null,"",null,null,null,null,null,null,null,null,null,null,null,null,null,null,null,null,null,null,null,0,0,0,0,"Lote 43","","","","","",""," días",null,0,0]
[44,null,null,null,"","","","","",null,"",null,null,null,null,null,null,null,null,null,null,null,null,null,null,null,null,null,null,null,0,0,0,0,"Lote 44","","","","","",""," días",null,0,0]
[45,null,null,null,"","","","","",null,"",null,null,null,null,null,null,null,null,null,null,null,null,null,null,null,null,null,null,null,0,0,0,0,"Lote 45","","","","","",""," días",null,0,0]
[46,null,null,null,"","","","","",null,"",null,null,null,null,null,null,null,null,null,null,null,null,null,null,null,null,null,null,null,0,0,0,0,"Lote 46","","","","","",""," días",null,0,0]
[47,null,null,null,"","","","","",null,"",null,null,null,null,null,null,null,null,null,null,null,null,null,null,null,null,null,null,null,0,0,0,0,"Lote 47","","","","","",""," días",null,0,0]
[48,null,null,null,"","","","","",null,"",null,null,null,null,null,null,null,null,null,null,null,null,null,null,null,null,null,null,null,0,0,0,0,"Lote 48","","","","","",""," días",null,0,0]
[49,null,null,null,"","","","","",null,"",null,null,null,null,null,null,null,null,null,null,null,null,null,null,null,null,null,null,null,0,0,0,0,"Lote 49","","","","","",""," días",null,0,0]
[50,null,null,null,"","","","","",null,"",null,null,null,null,null,null,null,null,null,null,null,null,null,null,null,null,null,null,null,0,0,0,0,"Lote 50","","","","","",""," días",null,0,0]
[51,null,null,null,"","","","","",null,"",null,null,null,null,null,null,null,null,null,null,null,null,null,null,null,null,null,null,null,0,0,0,0,"Lote 51","","","","","",""," días",null,0,0]
[52,null,null,null,"","","","","",null,"",null,null,null,null,null,null,null,null,null,null,null,null,null,null,null,null,null,null,null,0,0,0,0,"Lote 52","","","","","",""," días",null,0,0]
[53,null,null,null,"","","","","",null,"",null,null,null,null,null,null,null,null,null,null,null,null,null,null,null,null,null,null,null,0,0,0,0,"Lote 53","","","","","",""," días",null,0,0]
[54,null,null,null,"","","","","",null,"",null,null,null,null,null,null,null,null,null,null,null,null,null,null,null,null,null,null,null,0,0,0,0,"Lote 54","","","","","",""," días",null,0,0]
[55,null,null,null,"","","","","",null,"",null,null,null,null,null,null,null,null,null,null,null,null,null,null,null,null,null,null,null,0,0,0,0,"Lote 55","","","","","",""," días",null,0,0]
[56,null,null,null,"","","","","",null,"",null,null,null,null,null,null,null,null,null,null,null,null,null,null,null,null,null,null,null,0,0,0,0,"Lote 56","","","","","",""," días",null,0,0]
[57,null,null,null,"","","","","",null,"",null,null,null,null,null,null,null,null,null,null,null,null,null,null,null,null,null,null,null,0,0,0,0,"Lote 57","","","","","",""," días",null,0,0]
[58,null,null,null,"","","","","",null,"",null,null,null,null,null,null,null,null,null,null,null,null,null,null,null,null,null,null,null,0,0,0,0,"Lote 58","","","","","",""," días",null,0,0]
[59,null,null,null,"","","","","",null,"",null,null,null,null,null,null,null,null,null,null,null,null,null,null,null,null,null,null,null,0,0,0,0,"Lote 59","","","","","",""," días",null,0,0]
[60,null,null,null,"","","","","",null,"",null,null,null,null,null,null,null,null,null,null,null,null,null,null,null,null,null,null,null,0,0,0,0,"Lote 60","","","","","",""," días",null,0,0]
[61,null,null,null,"","","","","",null,"",null,null,null,null,null,null,null,null,null,null,null,null,null,null,null,null,null,null,null,0,0,0,0,"Lote 61","","","","","",""," días",null,0,0]
[62,null,null,null,"","","","","",null,"",null,null,null,null,null,null,null,null,null,null,null,null,null,null,null,null,null,null,null,0,0,0,0,"Lote 62","","","","","",""," días",null,0,0]
[63,null,null,null,"","","","","",null,"",null,null,null,null,null,null,null,null,null,null,null,null,null,null,null,null,null,null,null,0,0,0,0,"Lote 63","","","","","",""," días",null,0,0]
[64,null,null,null,"","","","","",null,"",null,null,null,null,null,null,null,null,null,null,null,null,null,null,null,null,null,null,null,0,0,0,0,"Lote 64","","","","","",""," días",null,0,0]
[65,null,null,null,{"$f":"IF($D74 =\"\",\"\",IF(YEAR($D74)=$F$1,$D74,\"01/01/2025\"))","v":""},"",{"$f":"IF($F74=\"\",\"\",IF(YEAR($F74)=$F$1,$F74,\"31/12/2025\"))","v":""},{"$f":"IF(B74=0,\"\",$H$4)","v":""},"",null,{"$f":"IF(H$5=\"sin dato\",\"\",IF(D74=\"\",\"\",D74+$H$5))","v":""},null,null,null,null,null,null,null,null,null,null,null,null,null,null,null,null,null,null,null,{"$f":"B74","v":0},0,0,0,{"$f":"\"Lote \"&A74","v":"Lote 65"},{"$f":"IF(B74=0,\"\",B74&\" animales\")","v":""},"",{"$f":"IF(D74=\"\",\"\",D74)","v":""},{"$f":"H74","v":""},{"$f":"IF(F74=\"\",\"\",F74)","v":""},{"$f":"I74","v":""}," días",null,{"$f":"IF(AH74=0,0,AO74*AH74)","v":0},{"$f":"IF(AH74=0,0,AM74*AH74)","v":0}]
[66,null,null,null,"",{"$f":"IF(D75=\"\",\"\",D75+H75)","v":""},"","",{"$f":"IF(G75=\"\",\"\",_xlfn.DAYS(G75,E75))","v":""},null,"",null,null,null,null,null,null,null,null,null,null,null,null,null,null,null,null,null,null,null,0,0,{"$f":"(AE75+AF75)/2","v":0},{"$f":"IF($AG$160=0,0,AG75/$AG$160)","v":0},"Lote 66","","","","","","",{"$f":"IF(AO75=0,\"\",AO75& \" días\")","v":" días"},null,0,0]
[67,null,null,null,"","","","","",null,"",null,null,null,null,null,null,null,null,null,null,null,null,null,null,null,null,null,null,null,0,0,0,0,"Lote 67","","","","","",""," días",null,0,0]
[68,null,null,null,"","","","","",null,"",null,null,null,null,null,null,null,null,null,null,null,null,null,null,null,null,null,null,null,0,0,0,0,"Lote 68","","","","","",""," días",null,0,0]
[69,null,null,null,"","","","","",null,"",null,null,null,null,null,null,null,null,null,null,null,null,null,null,null,null,null,null,null,0,0,0,0,"Lote 69","","","","","",""," días",null,0,0]
[70,null,null,null,"","","","","",null,"",null,null,null,null,null,null,null,null,null,null,null,null,null,null,null,null,null,null,null,0,0,0,0,"Lote 70","","","","","",""," días",null,0,0]
[71,null,null,null,"","","","","",null,"",null,null,null,null,null,null,null,null,null,null,null,null,null,null,null,null,null,null,null,0,0,0,0,"Lote 71","","","","","",""," días",null,0,0]
[72,null,null,null,"","","","","",null,"",null,null,null,null,null,null,null,null,null,null,null,null,null,null,null,null,null,null,null,0,0,0,0,"Lote 72","","","","","",""," días",null,0,0]
[73,null,null,null,"","","","","",null,"",null,null,null,null,null,null,null,null,null,null,null,null,null,null,null,null,null,null,null,0,0,0,0,"Lote 73","","","","","",""," días",null,0,0]
[74,null,null,null,"","","","","",null,"",null,null,null,null,null,null,null,null,null,null,null,null,null,null,null,null,null,null,null,0,0,0,0,"Lote 74","","","","","",""," días",null,0,0]
[75,null,null,null,"","","","","",null,"",null,null,null,null,null,null,null,null,null,null,null,null,null,null,null,null,null,null,null,0,0,0,0,"Lote 75","","","","","",""," días",null,0,0]
[76,null,null,null,"","","","","",null,"",null,null,null,null,null,null,null,null,null,null,null,null,null,null,null,null,null,null,null,0,0,0,0,"Lote 76","","","","","",""," días",null,0,0]
[77,null,null,null,"","","","","",null,"",null,null,null,null,null,null,null,null,null,null,null,null,null,null,null,null,null,null,null,0,0,0,0,"Lote 77","","","","","",""," días",null,0,0]
[78,null,null,null,"","","","","",null,"",null,null,null,null,null,null,null,null,null,null,null,null,null,null,null,null,null,null,null,0,0,0,0,"Lote 78","","","","","",""," días",null,0,0]
[79,null,null,null,"","","","","",null,"",null,null,null,null,null,null,null,null,null,null,null,null,null,null,null,null,null,null,null,0,0,0,0,"Lote 79","","","","","",""," días",null,0,0]
[80,null,null,null,"","","","","",null,"",null,null,null,null,null,null,null,null,null,null,null,null,null,null,null,null,null,null,null,0,0,0,0,"Lote 80","","","","","",""," días",null,0,0]
[81,null,null,null,"","","","","",null,"",null,null,null,null,null,null,null,null,null,null,null,null,null,null,null,null,null,null,null,0,0,0,0,"Lote 81","","","","","",""," días",null,0,0]
[82,null,null,null,"","","","","",null,"",null,null,null,null,null,null,null,null,null,null,null,null,null,null,null,null,null,null,null,0,0,0,0,"Lote 82","","","","","",""," días",null,0,0]
[83,null,null,null,"","","","","",null,"",null,null,null,null,null,null,null,null,null,null,null,null,null,null,null,null,null,null,null,0,0,0,0,"Lote 83","","","","","",""," días",null,0,0]
[84,null,null,null,"","","","","",null,"",null,null,null,null,null,null,null,null,null,null,null,null,null,null,null,null,null,null,null,0,0,0,0,"Lote 84","","","","","",""," días",null,0,0]
[85,null,null,null,"","","","","",null,"",null,null,null,null,null,null,null,null,null,null,null,null,null,null,null,null,null,null,null,0,0,0,0,"Lote 85","","","","","",""," días",null,0,0]
[86,null,null,null,"","","","","",null,"",null,null,null,null,null,null,null,null,null,null,null,null,null,null,null,null,null,null,null,0,0,0,0,"Lote 86","","","","","",""," días",null,0,0]
[87,null,null,null,"","","","","",null,"",null,null,null,null,null,null,null,null,null,null,null,null,null,null,null,null,null,null,null,0,0,0,0,"Lote 87","","","","","",""," días",null,0,0]
[88,null,null,null,"","","","","",null,"",null,null,null,null,null,null,null,null,null,null,null,null,null,null,null,null,null,null,null,0,0,0,0,"Lote 88","","","","","",""," días",null,0,0]
[89,null,null,null,"","","","","",null,"",null,null,null,null,null,null,null,null,null,null,null,null,null,null,null,null,null,null,null,0,0,0,0,"Lote 89","","","","","",""," días",null,0,0]
[90,null,null,null,"","","","","",null,"",null,null,null,null,null,null,null,null,null,null,null,null,null,null,null,null,null,null,null,0,0,0,0,"Lote 90","","","","","",""," días",null,0,0]
[91,null,null,null,"","","","","",null,"",null,null,null,null,null,null,null,null,null,null,null,null,null,null,null,null,null,null,null,0,0,0,0,"Lote 91","","","","","",""," días",null,0,0]
[92,null,null,null,"","","","","",null,"",null,null,null,null,null,null,null,null,null,null,null,null,null,null,null,null,null,null,null,0,0,0,0,"Lote 92","","","","","",""," días",null,0,0]
[93,null,null,null,"","","","","",null,"",null,null,null,null,null,null,null,null,null,null,null,null,null,null,null,null,null,null,null,0,0,0,0,"Lote 93","","","","","",""," días",null,0,0]
[94,null,null,null,"","","","","",null,"",null,null,null,null,null,null,null,null,null,null,null,null,null,null,null,null,null,null,null,0,0,0,0,"Lote 94","","","","","",""," días",null,0,0]
[95,null,null,null,"","","","","",null,"",null,null,null,null,null,null,null,null,null,null,null,null,null,null,null,null,null,null,null,0,0,0,0,"Lote 95","","","","","",""," días",null,0,0]
[96,null,null,null,"","","","","",null,"",null,null,null,null,null,null,null,null,null,null,null,null,null,null,null,null,null,null,null,0,0,0,0,"Lote 96","","","","","",""," días",null,0,0]
[97,null,null,null,"","","",{"$f":"IF(B106=0,\"\",$H$4)","v":""},"",null,{"$f":"IF(H$5=\"sin dato\",\"\",IF(D106=\"\",\"\",D106+$H$5))","v":""},null,null,null,null,null,null,null,null,null,null,null,null,null,null,null,null,null,null,null,{"$f":"B106","v":0},0,0,0,"Lote 97",{"$f":"IF(B106=0,\"\",B106&\" animales\")","v":""},"","","","",""," días",null,0,0]
[98,null,null,null,"","","","","",null,"",null,null,null,null,null,null,null,null,null,null,null,null,null,null,null,null,null,null,null,0,0,0,0,"Lote 98","","","","","",""," días",null,0,0]
[99,null,null,null,"","","","","",null,"",null,null,null,null,null,null,null,null,null,null,null,null,null,null,null,null,null,null,null,0,0,0,0,"Lote 99","","","","","",""," días",null,0,0]
[100,null,null,null,"","","","","",null,"",null,null,null,null,null,null,null,null,null,null,null,null,null,null,null,null,null,null,null,0,0,0,0,"Lote 100","","","","","",""," días",null,0,0]
[101,null,null,null,"","","","","",null,"",null,null,null,null,null,null,null,null,null,null,null,null,null,null,null,null,null,null,null,0,0,0,0,"Lote 101","","","","","",""," días",null,0,0]
[102,null,null,null,"","","","","",null,"",null,null,null,null,null,null,null,null,null,null,null,null,null,null,null,null,null,null,null,0,0,0,0,"Lote 102","","","","","",""," días",null,0,0]
[103,null,null,null,"","","","","",null,"",null,null,null,null,null,null,null,null,null,null,null,null,null,null,null,null,null,null,null,0,0,0,0,"Lote 103","","","","","",""," días",null,0,0]
[104,null,null,null,"","","","","",null,"",null,null,null,null,null,null,null,null,null,null,null,null,null,null,null,null,null,null,null,0,0,0,0,"Lote 104","","","","","",""," días",null,0,0]
[105,null,null,null,"","","","","",null,"",null,null,null,null,null,null,null,null,null,null,null,null,null,null,null,null,null,null,null,0,0,0,0,"Lote 105","","","","","",""," días",null,0,0]
[106,null,null,null,"","","","","",null,"",null,null,null,null,null,null,null,null,null,null,null,null,null,null,null,null,null,null,null,0,0,0,0,"Lote 106","","","","","",""," días",null,0,0]
[107,null,null,null,"","","","","",null,"",null,null,null,null,null,null,null,null,null,null,null,null,null,null,null,null,null,null,null,0,0,0,0,"Lote 107","","","","","",""," días",null,0,0]
[108,null,null,null,"","","","","",null,"",null,null,null,null,null,null,null,null,null,null,null,null,null,null,null,null,null,null,null,0,0,0,0,"Lote 108","","","","","",""," días",null,0,0]
[109,null,null,null,"","","","","",null,"",null,null,null,null,null,null,null,null,null,null,null,null,null,null,null,null,null,null,null,0,0,0,0,"Lote 109","","","","","",""," días",null,0,0]
[110,null,null,null,"","","","","",null,"",null,null,null,null,null,null,null,null,null,null,null,null,null,null,null,null,null,null,null,0,0,0,0,"Lote 110","","","","","",""," días",null,0,0]
[111,null,null,null,"","","","","",null,"",null,null,null,null,null,null,null,null,null,null,null,null,null,null,null,null,null,null,null,0,0,0,0,"Lote 111","","","","","",""," días",null,0,0]
[112,null,null,null,"","","","","",null,"",null,null,null,null,null,null,null,null,null,null,null,null,null,null,null,null,null,null,null,0,0,0,0,"Lote 112","","","","","",""," días",null,0,0]
[113,null,null,null,"","","","","",null,"",null,null,null,null,null,null,null,null,null,null,null,null,null,null,null,null,null,null,null,0,0,0,0,"Lote 113","","","","","",""," días",null,0,0]
[114,null,null,null,"","","","","",null,"",null,null,null,null,null,null,null,null,null,null,null,null,null,null,null,null,null,null,null,0,0,0,0,"Lote 114","","","","","",""," días",null,0,0]
[115,null,null,null,"","","","","",null,"",null,null,null,null,null,null,null,null,null,null,null,null,null,null,null,null,null,null,null,0,0,0,0,"Lote 115","","","","","",""," días",null,0,0]
[116,null,null,null,"","","","","",null,"",null,null,null,null,null,null,null,null,null,null,null,null,null,null,null,null,null,null,null,0,0,0,0,"Lote 116","","","","","",""," días",null,0,0]
[117,null,null,null,"","","","","",null,"",null,null,null,null,null,null,null,null,null,null,null,null,null,null,null,null,null,null,null,0,0,0,0,"Lote 117","","","","","",""," días",null,0,0]
[118,null,null,null,"","","","","",null,"",null,null,null,null,null,null,null,null,null,null,null,null,null,null,null,null,null,null,null,0,0,0,0,"Lote 118","","","","","",""," días",null,0,0]
[119,null,null,null,"","","","","",null,"",null,null,null,null,null,null,null,null,null,null,null,null,null,null,null,null,null,null,null,0,0,0,0,"Lote 119","","","","","",""," días",null,0,0]
[120,null,null,null,"","","","","",null,"",null,null,null,null,null,null,null,null,null,null,null,null,null,null,null,null,null,null,null,0,0,0,0,"Lote 120","","","","","",""," días",null,0,0]
[121,null,null,null,"","","","","",null,"",null,null,null,null,null,null,null,null,null,null,null,null,null,null,null,null,null,null,null,0,0,0,0,"Lote 121","","","","","",""," días",null,0,0]
[122,null,null,null,"","","","","",null,"",null,null,null,null,null,null,null,null,null,null,null,null,null,null,null,null,null,null,null,0,0,0,0,"Lote 122","","","","","",""," días",null,0,0]
[123,null,null,null,"","","","","",null,"",null,null,null,null,null,null,null,null,null,null,null,null,null,null,null,null,null,null,null,0,0,0,0,"Lote 123","","","","","",""," días",null,0,0]
[124,null,null,null,"","","","","",null,"",null,null,null,null,null,null,null,null,null,null,null,null,null,null,null,null,null,null,null,0,0,0,0,"Lote 124","","","","","",""," días",null,0,0]
[125,null,null,null,"","","","","",null,"",null,null,null,null,null,null,null,null,null,null,null,null,null,null,null,null,null,null,null,0,0,0,0,"Lote 125","","","","","",""," días",null,0,0]
[126,null,null,null,"","","","","",null,"",null,null,null,null,null,null,null,null,null,null,null,null,null,null,null,null,null,null,null,0,0,0,0,"Lote 126","","","","","",""," días",null,0,0]
[127,null,null,null,"","","","","",null,"",null,null,null,null,null,null,null,null,null,null,null,null,null,null,null,null,null,null,null,0,0,0,0,"Lote 127","","","","","",""," días",null,0,0]
[128,null,null,null,"","","","","",null,"",null,null,null,null,null,null,null,null,null,null,null,null,null,null,null,null,null,null,null,0,0,0,0,"Lote 128","","","","","",""," días",null,0,0]
[129,null,null,null,{"$f":"IF($D138 =\"\",\"\",IF(YEAR($D138)=$F$1,$D138,\"01/01/2025\"))","v":""},"",{"$f":"IF($F138=\"\",\"\",IF(YEAR($F138)=$F$1,$F138,\"31/12/2025\"))","v":""},{"$f":"IF(B138=0,\"\",$H$4)","v":""},"",null,{"$f":"IF(H$5=\"sin dato\",\"\",IF(D138=\"\",\"\",D138+$H$5))","v":""},null,null,null,null,null,null,null,null,null,null,null,null,null,null,null,null,null,null,null,{"$f":"B138","v":0},0,0,0,{"$f":"\"Lote \"&A138","v":"Lote 129"},{"$f":"IF(B138=0,\"\",B138&\" animales\")","v":""},"",{"$f":"IF(D138=\"\",\"\",D138)","v":""},{"$f":"H138","v":""},{"$f":"IF(F138=\"\",\"\",F138)","v":""},{"$f":"I138","v":""}," días",null,{"$f":"IF(AH138=0,0,AO138*AH138)","v":0},{"$f":"IF(AH138=0,0,AM138*AH138)","v":0}]
[130,null,null,null,"",{"$f":"IF(D139=\"\",\"\",D139+H139)","v":""},"","",{"$f":"IF(G139=\"\",\"\",_xlfn.DAYS(G139,E139))","v":""},null,"",null,null,null,null,null,null,null,null,null,null,null,null,null,null,null,null,null,null,null,0,0,{"$f":"(AE139+AF139)/2","v":0},{"$f":"IF($AG$160=0,0,AG139/$AG$160)","v":0},"Lote 130","","","","","","",{"$f":"IF(AO139=0,\"\",AO139& \" días\")","v":" días"},null,0,0]
[131,null,null,null,"","","","","",null,"",null,null,null,null,null,null,null,null,null,null,null,null,null,null,null,null,null,null,null,0,0,0,0,"Lote 131","","","","","",""," días",null,0,0]
[132,null,null,null,"","","","","",null,"",null,null,null,null,null,null,null,null,null,null,null,null,null,null,null,null,null,null,null,0,0,0,0,"Lote 132","","","","","",""," días",null,0,0]
[133,null,null,null,"","","","","",null,"",null,null,null,null,null,null,null,null,null,null,null,null,null,null,null,null,null,null,null,0,0,0,0,"Lote 133","","","","","",""," días",null,0,0]
[134,null,null,null,"","","","","",null,"",null,null,null,null,null,null,null,null,null,null,null,null,null,null,null,null,null,null,null,0,0,0,0,"Lote 134","","","","","",""," días",null,0,0]
[135,null,null,null,"","","","","",null,"",null,null,null,null,null,null,null,null,null,null,null,null,null,null,null,null,null,null,null,0,0,0,0,"Lote 135","","","","","",""," días",null,0,0]
[136,null,null,null,"","","","","",null,"",null,null,null,null,null,null,null,null,null,null,null,null,null,null,null,null,null,null,null,0,0,0,0,"Lote 136","","","","","",""," días",null,0,0]
[137,null,null,null,"","","","","",null,"",null,null,null,null,null,null,null,null,null,null,null,null,null,null,null,null,null,null,null,0,0,0,0,"Lote 137","","","","","",""," días",null,0,0]
[138,null,null,null,"","","","","",null,"",null,null,null,null,null,null,null,null,null,null,null,null,null,null,null,null,null,null,null,0,0,0,0,"Lote 138","","","","","",""," días",null,0,0]
[139,null,null,null,"","","","","",null,"",null,null,null,null,null,null,null,null,null,null,null,null,null,null,null,null,null,null,null,0,0,0,0,"Lote 139","","","","","",""," días",null,0,0]
[140,null,null,null,"","","","","",null,"",null,null,null,null,null,null,null,null,null,null,null,null,null,null,null,null,null,null,null,0,0,0,0,"Lote 140","","","","","",""," días",null,0,0]
[141,null,null,null,"","","","","",null,"",null,null,null,null,null,null,null,null,null,null,null,null,null,null,null,null,null,null,null,0,0,0,0,"Lote 141","","","","","",""," días",null,0,0]
[142,null,null,null,"","","","","",null,"",null,null,null,null,null,null,null,null,null,null,null,null,null,null,null,null,null,null,null,0,0,0,0,"Lote 142","","","","","",""," días",null,0,0]
[143,null,null,null,"","","","","",null,"",null,null,null,null,null,null,null,null,null,null,null,null,null,null,null,null,null,null,null,0,0,0,0,"Lote 143","","","","","",""," días",null,0,0]
[144,null,null,null,"","","","","",null,"",null,null,null,null,null,null,null,null,null,null,null,null,null,null,null,null,null,null,null,0,0,0,0,"Lote 144","","","","","",""," días",null,0,0]
[145,null,null,null,"","","","","",null,"",null,null,null,null,null,null,null,null,null,null,null,null,null,null,null,null,null,null,null,0,0,0,0,"Lote 145","","","","","",""," días",null,0,0]
[146,null,null,null,"","","","","",null,"",null,null,null,null,null,null,null,null,null,null,null,null,null,null,null,null,null,null,null,0,0,0,0,"Lote 146","","","","","",""," días",null,0,0]
[147,null,null,null,"","","","","",null,"",null,null,null,null,null,null,null,null,null,null,null,null,null,null,null,null,null,null,null,0,0,0,0,"Lote 147","","","","","",""," días",null,0,0]
[148,null,null,null,"","","","","",null,"",null,null,null,null,null,null,null,null,null,null,null,null,null,null,null,null,null,null,null,0,0,0,0,"Lote 148","","","","","",""," días",null,0,0]
[149,null,null,null,"","","","","",null,"",null,null,null,null,null,null,null,null,null,null,null,null,null,null,null,null,null,null,null,0,0,0,0,"Lote 149","","","","","",""," días",null,0,0]
[150,null,null,null,"","","","","",null,"",null,null,null,null,null,null,null,null,null,null,null,null,null,null,null,null,null,null,null,0,0,0,0,"Lote 150","","","","","",""," días",null,0,0]
[null,null,null,null,null,null,null,null,null,null,null,null,null,null,null,null,null,null,null,null,null,null,null,null,null,null,null,null,null,null,{"$f":"SUM(AE10:AE159)","v":0},{"$f":"SUM(AF10:AF159)","v":0},{"$f":"ROUND(SUM(AG10:AG159),0)","v":0},{"$f":"SUM(AH10:AH159)","v":0},null,null,null,null,null,null,null,null,null,{"$f":"ROUND(SUM(AR10:AR159),0)","v":0},{"$f":"ROUND(SUM(AS10:AS159),0)","v":0}]

{"sheet":"Categoria 5","index":7,"n_rows":160,"n_cols":46,"rows_kept":160,"cut":false,"hidden":false,"merged":[[7,1,7,8],[7,12,7,24],[4,13,4,17],[0,1,0,3],[2,3,2,8],[2,0,2,2],[5,1,5,8],[0,12,0,17],[0,18,0,23]]}
[null,"Año de declaración: ",null,null,null,{"$f":"Base!B12","v":2025},null,null,null,null,null,null,"Datos a grabar en el paso 2 de ECOGAN",null,null,null,null,null,"Datos a grabar en el paso 4 de ECOGAN"]
[null,null,null,null,null,null,null,null,null,null,null,null,null,null,null,null,"nº total de animales que entran de esta categoría productiva:",{"$f":"AE160","v":0},null,null,null,null,"Periodo productivo total medio de la categoría productiva:",{"$f":"H4","v":0}]
["Categoría productiva: ",null,null,"Pasteros Macho procedentes de vacas nodriza",null,null,null,null,null,null,null,null,null,null,null,null,"nº total de animales vivos que finalizan de esta categoría productiva:",{"$f":"AF160","v":0},null,null,null,null,"días medios presentes de la categoría productiva:",{"$f":"AR160","v":0}]
[null,null,null,null,null,"Indique el periodo productivo medio de la categoría productiva (días):",null,null,"*"]
[null,null,null,null,null,"Periodo productivo medio de referencia (días):",null,{"$f":"IFERROR(VLOOKUP(D3,Base!A2:B7,2,FALSE),\"sin dato\")","v":185},{"$f":"IF(H5=\"sin dato\",\"\",\"(\"&ROUND(H5*0.9,0) &\" - \"&ROUND(H5*1.1,0)&\")\")","v":"(167 - 204)"},null,null,null,null,"Si desea borrar datos grabados anteriormente, pulse aquí\n¡Cuidado! Perderá toda la información"]
["*","Número de días que por término medio los animales de una linea productiva permanecen en la granja desde que entran hasta que salen de ese alojamiento, de modo que el periodo es por ciclo productivo y no por año natural. "]
[null,null,null,null,null,null,null,null,null,null,null,null,{"$f":"Base!F2","v":45292},{"$f":"Base!H3","v":46387}]
["u","Lote es el grupo de animales que van entrando de forma escalonada a los corrales.",null,null,null,null,null,null,null,null,null,null,"Diagrama de entradas y salidas"]
["lote u","nº de animales que entran\nen cada lote","nº de animales vivos que finalizan\nen cada lote","Fecha de entrada                                                                                                                                                                                                                                                                del lote\n(dd/mm/aa)",null,"Fecha de\nfinalización                                                                                                                                                                                                                                  del lote\n(dd/mm/aa)",null,"Periodo productivo total\nmedio\n(días)",{"$f":"\"días presentes del lote\nen el año \" & F1","v":"días presentes del lote\nen el año 2025"},null,{"$f":"IF(H5=\"sin dato\",\"\",\"Fecha fin según fecha entrada y periodo de \"&H5&\" días\")","v":"Fecha fin según fecha entrada y periodo de 185 días"},null,null,null,null,null,null,null,null,null,null,null,null,null,null,null,null,null,null,null,null,null,null,null,"lote",null,null,"Fecha de entrada                                                                                                                                                                                                                                                                del lote","Periodo productivo total","Fecha de entrada                                                                                                                                                                                                                                                                del lote",{"$f":"\"días presentes del lote\nen el año \" & AL1","v":"días presentes del lote\nen el año "},null,null,{"$f":"\"días presentes del lote\nen el año \" & AO1","v":"días presentes del lote\nen el año "},"Periodo productivo total"]
[1,null,null,null,{"$f":"IF($D10 =\"\",\"\",IF(YEAR($D10)=$F$1,$D10,\"01/01/2025\"))","v":""},{"$f":"IF(D10=\"\",\"\",D10+H10)","v":""},{"$f":"IF($F10=\"\",\"\",IF(YEAR($F10)=$F$1,$F10,\"31/12/2025\"))","v":""},{"$f":"IF(B10=0,\"\",$H$4)","v":""},{"$f":"IF(G10=\"\",\"\",_xlfn.DAYS(G10,E10))","v":""},null,{"$f":"IF(H$5=\"sin dato\",\"\",IF(D10=\"\",\"\",D10+$H$5))","v":""},null,null,null,null,null,null,null,null,null,null,null,null,null,null,null,null,null,null,null,{"$f":"B10","v":0},{"$f":"C10","v":0},{"$f":"(AE10+AF10)/2","v":0},{"$f":"IF($AG$160=0,0,AG10/$AG$160)","v":0},{"$f":"\"Lote \"&A10","v":"Lote 1"},{"$f":"IF(B10=0,\"\",B10&\" animales\")","v":""},{"$f":"IF(C10=0,\"\",C10&\" animales\")","v":""},{"$f":"IF(D10=\"\",\"\",D10)","v":""},{"$f":"H10","v":""},{"$f":"IF(F10=\"\",\"\",F10)","v":""},{"$f":"I10","v":""},{"$f":"IF(AO10=0,\"\",AO10& \" días\")","v":" días"},null,{"$f":"IF(AH10=0,0,AO10*AH10)","v":0},{"$f":"IF(AH10=0,0,AM10*AH10)","v":0}]
[2,null,null,null,"",{"$f":"IF(D11=\"\",\"\",D11+H11)","v":""},"","",{"$f":"IF(G11=\"\",\"\",_xlfn.DAYS(G11,E11))","v":""},null,"",null,null,null,null,null,null,null,null,null,null,null,null,null,null,null,null,null,null,null,0,0,{"$f":"(AE11+AF11)/2","v":0},{"$f":"IF($AG$160=0,0,AG11/$AG$160)","v":0},"Lote 2","","","","","","",{"$f":"IF(AO11=0,\"\",AO11& \" días\")","v":" días"},null,0,0,"2024-01-01"]
[3,null,null,null,"","","","","",null,"",null,null,null,null,null,null,null,null,null,null,null,null,null,null,null,null,null,null,null,0,0,0,0,"Lote 3","","","","","",""," días",null,0,0]
[4,null,null,null,"","","","","",null,"",null,null,null,null,null,null,null,null,null,null,null,null,null,null,null,null,null,null,null,0,0,0,0,"Lote 4","","","","","",""," días",null,0,0]
[5,null,null,null,"","","","","",null,"",null,null,null,null,null,null,null,null,null,null,null,null,null,null,null,null,null,null,null,0,0,0,0,"Lote 5","","","","","",""," días",null,0,0]
[6,null,null,null,"","","","","",null,"",null,null,null,null,null,null,null,null,null,null,null,null,null,null,null,null,null,null,null,0,0,0,0,"Lote 6","","","","","",""," días",null,0,0]
[7,null,null,null,"","","","","",null,"",null,null,null,null,null,null,null,null,null,null,null,null,null,null,null,null,null,null,null,0,0,0,0,"Lote 7","","","","","",""," días",null,0,0]
[8,null,null,null,"","","","","",null,"",null,null,null,null,null,null,null,null,null,null,null,null,null,null,null,null,null,null,null,0,0,0,0,"Lote 8","","","","","",""," días",null,0,0]
[9,null,null,null,"","","","","",null,"",null,null,null,null,null,null,null,null,null,null,null,null,null,null,null,null,null,null,null,0,0,0,0,"Lote 9","","","","","",""," días",null,0,0]
[10,null,null,null,"","","","","",null,"",null,null,null,null,null,null,null,null,null,null,null,null,null,null,null,null,null,null,null,0,0,0,0,"Lote 10","","","","","",""," días",null,0,0]
[11,null,null,null,"","","","","",null,"",null,null,null,null,null,null,null,null,null,null,null,null,null,null,null,null,null,null,null,0,0,0,0,"Lote 11","","","","","",""," días",null,0,0]
[12,null,null,null,"","","","","",null,"",null,null,null,null,null,null,null,null,null,null,null,null,null,null,null,null,null,null,null,0,0,0,0,"Lote 12","","","","","",""," días",null,0,0]
[13,null,null,null,"","","","","",null,"",null,null,null,null,null,null,null,null,null,null,null,null,null,null,null,null,null,null,null,0,0,0,0,"Lote 13","","","","","",""," días",null,0,0]
[14,null,null,null,"","","","","",null,"",null,null,null,null,null,null,null,null,null,null,null,null,null,null,null,null,null,null,null,0,0,0,0,"Lote 14","","","","","",""," días",null,0,0]
[15,null,null,null,"","","","","",null,"",null,null,null,null,null,null,null,null,null,null,null,null,null,null,null,null,null,null,null,0,0,0,0,"Lote 15","","","","","",""," días",null,0,0]
[16,null,null,null,"","","","","",null,"",null,null,null,null,null,null,null,null,null,null,null,null,null,null,null,null,null,null,null,0,0,0,0,"Lote 16","","","","","",""," días",null,0,0]
[17,null,null,null,"","","","","",null,"",null,null,null,null,null,null,null,null,null,null,null,null,null,null,null,null,null,null,null,0,0,0,0,"Lote 17","","","","","",""," días",null,0,0]
[18,null,null,null,"","","","","",null,"",null,null,null,null,null,null,null,null,null,null,null,null,null,null,null,null,null,null,null,0,0,0,0,"Lote 18","","","","","",""," días",null,0,0]
[19,null,null,null,"","","","","",null,"",null,null,null,null,null,null,null,null,null,null,null,null,null,null,null,null,null,null,null,0,0,0,0,"Lote 19","","","","","",""," días",null,0,0]
[20,null,null,null,"","","","","",null,"",null,null,null,null,null,null,null,null,null,null,null,null,null,null,null,null,null,null,null,0,0,0,0,"Lote 20","","","","","",""," días",null,0,0]
[21,null,null,null,"","","","","",null,"",null,null,null,null,null,null,null,null,null,null,null,null,null,null,null,null,null,null,null,0,0,0,0,"Lote 21","","","","","",""," días",null,0,0]
[22,null,null,null,"","","","","",null,"",null,null,null,null,null,null,null,null,null,null,null,null,null,null,null,null,null,null,null,0,0,0,0,"Lote 22","","","","","",""," días",null,0,0]
[23,null,null,null,"","","","","",null,"",null,null,null,null,null,null,null,null,null,null,null,null,null,null,null,null,null,null,null,0,0,0,0,"Lote 23","","","","","",""," días",null,0,0]
[24,null,null,null,"","","","","",null,"",null,null,null,null,null,null,null,null,null,null,null,null,null,null,null,null,null,null,null,0,0,0,0,"Lote 24","","","","","",""," días",null,0,0]
[25,null,null,null,"","","","","",null,"",null,null,null,null,null,null,null,null,null,null,null,null,null,null,null,null,null,null,null,0,0,0,0,"Lote 25","","","","","",""," días",null,0,0]
[26,null,null,null,"","","","","",null,"",null,null,null,null,null,null,null,null,null,null,null,null,null,null,null,null,null,null,null,0,0,0,0,"Lote 26","","","","","",""," días",null,0,0]
[27,null,null,null,"","","","","",null,"",null,null,null,null,null,null,null,null,null,null,null,null,null,null,null,null,null,null,null,0,0,0,0,"Lote 27","","","","","",""," días",null,0,0]
[28,null,null,null,"","","","","",null,"",null,null,null,null,null,null,null,null,null,null,null,null,null,null,null,null,null,null,null,0,0,0,0,"Lote 28","","","","","",""," días",null,0,0]
[29,null,null,null,"","","","","",null,"",null,null,null,null,null,null,null,null,null,null,null,null,null,null,null,null,null,null,null,0,0,0,0,"Lote 29","","","","","",""," días",null,0,0]
[30,null,null,null,"","","","","",null,"",null,null,null,null,null,null,null,null,null,null,null,null,null,null,null,null,null,null,null,0,0,0,0,"Lote 30","","","","","",""," días",null,0,0]
[31,null,null,null,"","","","","",null,"",null,null,null,null,null,null,null,null,null,null,null,null,null,null,null,null,null,null,null,0,0,0,0,"Lote 31","","","","","",""," días",null,0,0]
[32,null,null,null,"","","","","",null,"",null,null,null,null,null,null,null,null,null,null,null,null,null,null,null,null,null,null,null,0,0,0,0,"Lote 32","","","","","",""," días",null,0,0]
[33,null,null,null,"","","",{"$f":"IF(B42=0,\"\",$H$4)","v":""},"",null,{"$f":"IF(H$5=\"sin dato\",\"\",IF(D42=\"\",\"\",D42+$H$5))","v":""},null,null,null,null,null,null,null,null,null,null,null,null,null,null,null,null,null,null,null,{"$f":"B42","v":0},{"$f":"C42","v":0},0,0,{"$f":"\"Lote \"&A42","v":"Lote 33"},{"$f":"IF(B42=0,\"\",B42&\" animales\")","v":""},{"$f":"IF(C42=0,\"\",C42&\" animales\")","v":""},{"$f":"IF(D42=\"\",\"\",D42)","v":""},{"$f":"H42","v":""},{"$f":"IF(F42=\"\",\"\",F42)","v":""},{"$f":"I42","v":""}," días",null,{"$f":"IF(AH42=0,0,AO42*AH42)","v":0},{"$f":"IF(AH42=0,0,AM42*AH42)","v":0}]
[34,null,null,null,"","","","","",null,"",null,null,null,null,null,null,null,null,null,null,null,null,null,null,null,null,null,null,null,0,0,0,0,"Lote 34","","","","","",""," días",null,0,0]
[35,null,null,null,"","","","","",null,"",null,null,null,null,null,null,null,null,null,null,null,null,null,null,null,null,null,null,null,0,0,0,0,"Lote 35","","","","","",""," días",null,0,0]
[36,null,null,null,"","","","","",null,"",null,null,null,null,null,null,null,null,null,null,null,null,null,null,null,null,null,null,null,0,0,0,0,"Lote 36","","","","","",""," días",null,0,0]
[37,null,null,null,"","","","","",null,"",null,null,null,null,null,null,null,null,null,null,null,null,null,null,null,null,null,null,null,0,0,0,0,"Lote 37","","","","","",""," días",null,0,0]
[38,null,null,null,"","","","","",null,"",null,null,null,null,null,null,null,null,null,null,null,null,null,null,null,null,null,null,null,0,0,0,0,"Lote 38","","","","","",""," días",null,0,0]
[39,null,null,null,"","","","","",null,"",null,null,null,null,null,null,null,null,null,null,null,null,null,null,null,null,null,null,null,0,0,0,0,"Lote 39","","","","","",""," días",null,0,0]
[40,null,null,null,"","","","","",null,"",null,null,null,null,null,null,null,null,null,null,null,null,null,null,null,null,null,null,null,0,0,0,0,"Lote 40","","","","","",""," días",null,0,0]
[41,null,null,null,"","","","","",null,"",null,null,null,null,null,null,null,null,null,null,null,null,null,null,null,null,null,null,null,0,0,0,0,"Lote 41","","","","","",""," días",null,0,0]
[42,null,null,null,"","","","","",null,"",null,null,null,null,null,null,null,null,null,null,null,null,null,null,null,null,null,null,null,0,0,0,0,"Lote 42","","","","","",""," días",null,0,0]
[43,null,null,null,"","","","","",null,"",null,null,null,null,null,null,null,null,null,null,null,null,null,null,null,null,null,null,null,0,0,0,0,"Lote 43","","","","","",""," días",null,0,0]
[44,null,null,null,"","","","","",null,"",null,null,null,null,null,null,null,null,null,null,null,null,null,null,null,null,null,null,null,0,0,0,0,"Lote 44","","","","","",""," días",null,0,0]
[45,null,null,null,"","","","","",null,"",null,null,null,null,null,null,null,null,null,null,null,null,null,null,null,null,null,null,null,0,0,0,0,"Lote 45","","","","","",""," días",null,0,0]
[46,null,null,null,"","","","","",null,"",null,null,null,null,null,null,null,null,null,null,null,null,null,null,null,null,null,null,null,0,0,0,0,"Lote 46","","","","","",""," días",null,0,0]
[47,null,null,null,"","","","","",null,"",null,null,null,null,null,null,null,null,null,null,null,null,null,null,null,null,null,null,null,0,0,0,0,"Lote 47","","","","","",""," días",null,0,0]
[48,null,null,null,"","","","","",null,"",null,null,null,null,null,null,null,null,null,null,null,null,null,null,null,null,null,null,null,0,0,0,0,"Lote 48","","","","","",""," días",null,0,0]
[49,null,null,null,"","","","","",null,"",null,null,null,null,null,null,null,null,null,null,null,null,null,null,null,null,null,null,null,0,0,0,0,"Lote 49","","","","","",""," días",null,0,0]
[50,null,null,null,"","","","","",null,"",null,null,null,null,null,null,null,null,null,null,null,null,null,null,null,null,null,null,null,0,0,0,0,"Lote 50","","","","","",""," días",null,0,0]
[51,null,null,null,"","","","","",null,"",null,null,null,null,null,null,null,null,null,null,null,null,null,null,null,null,null,null,null,0,0,0,0,"Lote 51","","","","","",""," días",null,0,0]
[52,null,null,null,"","","","","",null,"",null,null,null,null,null,null,null,null,null,null,null,null,null,null,null,null,null,null,null,0,0,0,0,"Lote 52","","","","","",""," días",null,0,0]
[53,null,null,null,"","","","","",null,"",null,null,null,null,null,null,null,null,null,null,null,null,null,null,null,null,null,null,null,0,0,0,0,"Lote 53","","","","","",""," días",null,0,0]
[54,null,null,null,"","","","","",null,"",null,null,null,null,null,null,null,null,null,null,null,null,null,null,null,null,null,null,null,0,0,0,0,"Lote 54","","","","","",""," días",null,0,0]
[55,null,null,null,"","","","","",null,"",null,null,null,null,null,null,null,null,null,null,null,null,null,null,null,null,null,null,null,0,0,0,0,"Lote 55","","","","","",""," días",null,0,0]
[56,null,null,null,"","","","","",null,"",null,null,null,null,null,null,null,null,null,null,null,null,null,null,null,null,null,null,null,0,0,0,0,"Lote 56","","","","","",""," días",null,0,0]
[57,null,null,null,"","","","","",null,"",null,null,null,null,null,null,null,null,null,null,null,null,null,null,null,null,null,null,null,0,0,0,0,"Lote 57","","","","","",""," días",null,0,0]
[58,null,null,null,"","","","","",null,"",null,null,null,null,null,null,null,null,null,null,null,null,null,null,null,null,null,null,null,0,0,0,0,"Lote 58","","","","","",""," días",null,0,0]
[59,null,null,null,"","","","","",null,"",null,null,null,null,null,null,null,null,null,null,null,null,null,null,null,null,null,null,null,0,0,0,0,"Lote 59","","","","","",""," días",null,0,0]
[60,null,null,null,"","","","","",null,"",null,null,null,null,null,null,null,null,null,null,null,null,null,null,null,null,null,null,null,0,0,0,0,"Lote 60","","","","","",""," días",null,0,0]
[61,null,null,null,"","","","","",null,"",null,null,null,null,null,null,null,null,null,null,null,null,null,null,null,null,null,null,null,0,0,0,0,"Lote 61","","","","","",""," días",null,0,0]
[62,null,null,null,"","","","","",null,"",null,null,null,null,null,null,null,null,null,null,null,null,null,null,null,null,null,null,null,0,0,0,0,"Lote 62","","","","","",""," días",null,0,0]
[63,null,null,null,"","","","","",null,"",null,null,null,null,null,null,null,null,null,null,null,null,null,null,null,null,null,null,null,0,0,0,0,"Lote 63","","","","","",""," días",null,0,0]
[64,null,null,null,"","","","","",null,"",null,null,null,null,null,null,null,null,null,null,null,null,null,null,null,null,null,null,null,0,0,0,0,"Lote 64","","","","","",""," días",null,0,0]
[65,null,null,null,{"$f":"IF($D74 =\"\",\"\",IF(YEAR($D74)=$F$1,$D74,\"01/01/2025\"))","v":""},"",{"$f":"IF($F74=\"\",\"\",IF(YEAR($F74)=$F$1,$F74,\"31/12/2025\"))","v":""},{"$f":"IF(B74=0,\"\",$H$4)","v":""},"",null,{"$f":"IF(H$5=\"sin dato\",\"\",IF(D74=\"\",\"\",D74+$H$5))","v":""},null,null,null,null,null,null,null,null,null,null,null,null,null,null,null,null,null,null,null,{"$f":"B74","v":0},{"$f":"C74","v":0},0,0,{"$f":"\"Lote \"&A74","v":"Lote 65"},{"$f":"IF(B74=0,\"\",B74&\" animales\")","v":""},{"$f":"IF(C74=0,\"\",C74&\" animales\")","v":""},{"$f":"IF(D74=\"\",\"\",D74)","v":""},{"$f":"H74","v":""},{"$f":"IF(F74=\"\",\"\",F74)","v":""},{"$f":"I74","v":""}," días",null,{"$f":"IF(AH74=0,0,AO74*AH74)","v":0},{"$f":"IF(AH74=0,0,AM74*AH74)","v":0}]
[66,null,null,null,"",{"$f":"IF(D75=\"\",\"\",D75+H75)","v":""},"","",{"$f":"IF(G75=\"\",\"\",_xlfn.DAYS(G75,E75))","v":""},null,"",null,null,null,null,null,null,null,null,null,null,null,null,null,null,null,null,null,null,null,0,0,{"$f":"(AE75+AF75)/2","v":0},{"$f":"IF($AG$160=0,0,AG75/$AG$160)","v":0},"Lote 66","","","","","","",{"$f":"IF(AO75=0,\"\",AO75& \" días\")","v":" días"},null,0,0]
[67,null,null,null,"","","","","",null,"",null,null,null,null,null,null,null,null,null,null,null,null,null,null,null,null,null,null,null,0,0,0,0,"Lote 67","","","","","",""," días",null,0,0]
[68,null,null,null,"","","","","",null,"",null,null,null,null,null,null,null,null,null,null,null,null,null,null,null,null,null,null,null,0,0,0,0,"Lote 68","","","","","",""," días",null,0,0]
[69,null,null,null,"","","","","",null,"",null,null,null,null,null,null,null,null,null,null,null,null,null,null,null,null,null,null,null,0,0,0,0,"Lote 69","","","","","",""," días",null,0,0]
[70,null,null,null,"","","","","",null,"",null,null,null,null,null,null,null,null,null,null,null,null,null,null,null,null,null,null,null,0,0,0,0,"Lote 70","","","","","",""," días",null,0,0]
[71,null,null,null,"","","","","",null,"",null,null,null,null,null,null,null,null,null,null,null,null,null,null,null,null,null,null,null,0,0,0,0,"Lote 71","","","","","",""," días",null,0,0]
[72,null,null,null,"","","","","",null,"",null,null,null,null,null,null,null,null,null,null,null,null,null,null,null,null,null,null,null,0,0,0,0,"Lote 72","","","","","",""," días",null,0,0]
[73,null,null,null,"","","","","",null,"",null,null,null,null,null,null,null,null,null,null,null,null,null,null,null,null,null,null,null,0,0,0,0,"Lote 73","","","","","",""," días",null,0,0]
[74,null,null,null,"","","","","",null,"",null,null,null,null,null,null,null,null,null,null,null,null,null,null,null,null,null,null,null,0,0,0,0,"Lote 74","","","","","",""," días",null,0,0]
[75,null,null,null,"","","","","",null,"",null,null,null,null,null,null,null,null,null,null,null,null,null,null,null,null,null,null,null,0,0,0,0,"Lote 75","","","","","",""," días",null,0,0]
[76,null,null,null,"","","","","",null,"",null,null,null,null,null,null,null,null,null,null,null,null,null,null,null,null,null,null,null,0,0,0,0,"Lote 76","","","","","",""," días",null,0,0]
[77,null,null,null,"","","","","",null,"",null,null,null,null,null,null,null,null,null,null,null,null,null,null,null,null,null,null,null,0,0,0,0,"Lote 77","","","","","",""," días",null,0,0]
[78,null,null,null,"","","","","",null,"",null,null,null,null,null,null,null,null,null,null,null,null,null,null,null,null,null,null,null,0,0,0,0,"Lote 78","","","","","",""," días",null,0,0]
[79,null,null,null,"","","","","",null,"",null,null,null,null,null,null,null,null,null,null,null,null,null,null,null,null,null,null,null,0,0,0,0,"Lote 79","","","","","",""," días",null,0,0]
[80,null,null,null,"","","","","",null,"",null,null,null,null,null,null,null,null,null,null,null,null,null,null,null,null,null,null,null,0,0,0,0,"Lote 80","","","","","",""," días",null,0,0]
[81,null,null,null,"","","","","",null,"",null,null,null,null,null,null,null,null,null,null,null,null,null,null,null,null,null,null,null,0,0,0,0,"Lote 81","","","","","",""," días",null,0,0]
[82,null,null,null,"","","","","",null,"",null,null,null,null,null,null,null,null,null,null,null,null,null,null,null,null,null,null,null,0,0,0,0,"Lote 82","","","","","",""," días",null,0,0]
[83,null,null,null,"","","","","",null,"",null,null,null,null,null,null,null,null,null,null,null,null,null,null,null,null,null,null,null,0,0,0,0,"Lote 83","","","","","",""," días",null,0,0]
[84,null,null,null,"","","","","",null,"",null,null,null,null,null,null,null,null,null,null,null,null,null,null,null,null,null,null,null,0,0,0,0,"Lote 84","","","","","",""," días",null,0,0]
[85,null,null,null,"","","","","",null,"",null,null,null,null,null,null,null,null,null,null,null,null,null,null,null,null,null,null,null,0,0,0,0,"Lote 85","","","","","",""," días",null,0,0]
[86,null,null,null,"","","","","",null,"",null,null,null,null,null,null,null,null,null,null,null,null,null,null,null,null,null,null,null,0,0,0,0,"Lote 86","","","","","",""," días",null,0,0]
[87,null,null,null,"","","","","",null,"",null,null,null,null,null,null,null,null,null,null,null,null,null,null,null,null,null,null,null,0,0,0,0,"Lote 87","","","","","",""," días",null,0,0]
[88,null,null,null,"","","","","",null,"",null,null,null,null,null,null,null,null,null,null,null,null,null,null,null,null,null,null,null,0,0,0,0,"Lote 88","","","","","",""," días",null,0,0]
[89,null,null,null,"","","","","",null,"",null,null,null,null,null,null,null,null,null,null,null,null,null,null,null,null,null,null,null,0,0,0,0,"Lote 89","","","","","",""," días",null,0,0]
[90,null,null,null,"","","","","",null,"",null,null,null,null,null,null,null,null,null,null,null,null,null,null,null,null,null,null,null,0,0,0,0,"Lote 90","","","","","",""," días",null,0,0]
[91,null,null,null,"","","","","",null,"",null,null,null,null,null,null,null,null,null,null,null,null,null,null,null,null,null,null,null,0,0,0,0,"Lote 91","","","","","",""," días",null,0,0]
[92,null,null,null,"","","","","",null,"",null,null,null,null,null,null,null,null,null,null,null,null,null,null,null,null,null,null,null,0,0,0,0,"Lote 92","","","","","",""," días",null,0,0]
[93,null,null,null,"","","","","",null,"",null,null,null,null,null,null,null,null,null,null,null,null,null,null,null,null,null,null,null,0,0,0,0,"Lote 93","","","","","",""," días",null,0,0]
[94,null,null,null,"","","","","",null,"",null,null,null,null,null,null,null,null,null,null,null,null,null,null,null,null,null,null,null,0,0,0,0,"Lote 94","","","","","",""," días",null,0,0]
[95,null,null,null,"","","","","",null,"",null,null,null,null,null,null,null,null,null,null,null,null,null,null,null,null,null,null,null,0,0,0,0,"Lote 95","","","","","",""," días",null,0,0]
[96,null,null,null,"","","","","",null,"",null,null,null,null,null,null,null,null,null,null,null,null,null,null,null,null,null,null,null,0,0,0,0,"Lote 96","","","","","",""," días",null,0,0]
[97,null,null,null,"","","",{"$f":"IF(B106=0,\"\",$H$4)","v":""},"",null,{"$f":"IF(H$5=\"sin dato\",\"\",IF(D106=\"\",\"\",D106+$H$5))","v":""},null,null,null,null,null,null,null,null,null,null,null,null,null,null,null,null,null,null,null,{"$f":"B106","v":0},{"$f":"C106","v":0},0,0,{"$f":"\"Lote \"&A106","v":"Lote 97"},{"$f":"IF(B106=0,\"\",B106&\" animales\")","v":""},{"$f":"IF(C106=0,\"\",C106&\" animales\")","v":""},{"$f":"IF(D106=\"\",\"\",D106)","v":""},{"$f":"H106","v":""},{"$f":"IF(F106=\"\",\"\",F106)","v":""},{"$f":"I106","v":""}," días",null,{"$f":"IF(AH106=0,0,AO106*AH106)","v":0},{"$f":"IF(AH106=0,0,AM106*AH106)","v":0}]
[98,null,null,null,"","","","","",null,"",null,null,null,null,null,null,null,null,null,null,null,null,null,null,null,null,null,null,null,0,0,0,0,"Lote 98","","","","","",""," días",null,0,0]
[99,null,null,null,"","","","","",null,"",null,null,null,null,null,null,null,null,null,null,null,null,null,null,null,null,null,null,null,0,0,0,0,"Lote 99","","","","","",""," días",null,0,0]
[100,null,null,null,"","","","","",null,"",null,null,null,null,null,null,null,null,null,null,null,null,null,null,null,null,null,null,null,0,0,0,0,"Lote 100","","","","","",""," días",null,0,0]
[101,null,null,null,"","","","","",null,"",null,null,null,null,null,null,null,null,null,null,null,null,null,null,null,null,null,null,null,0,0,0,0,"Lote 101","","","","","",""," días",null,0,0]
[102,null,null,null,"","","","","",null,"",null,null,null,null,null,null,null,null,null,null,null,null,null,null,null,null,null,null,null,0,0,0,0,"Lote 102","","","","","",""," días",null,0,0]
[103,null,null,null,"","","","","",null,"",null,null,null,null,null,null,null,null,null,null,null,null,null,null,null,null,null,null,null,0,0,0,0,"Lote 103","","","","","",""," días",null,0,0]
[104,null,null,null,"","","","","",null,"",null,null,null,null,null,null,null,null,null,null,null,null,null,null,null,null,null,null,null,0,0,0,0,"Lote 104","","","","","",""," días",null,0,0]
[105,null,null,null,"","","","","",null,"",null,null,null,null,null,null,null,null,null,null,null,null,null,null,null,null,null,null,null,0,0,0,0,"Lote 105","","","","","",""," días",null,0,0]
[106,null,null,null,"","","","","",null,"",null,null,null,null,null,null,null,null,null,null,null,null,null,null,null,null,null,null,null,0,0,0,0,"Lote 106","","","","","",""," días",null,0,0]
[107,null,null,null,"","","","","",null,"",null,null,null,null,null,null,null,null,null,null,null,null,null,null,null,null,null,null,null,0,0,0,0,"Lote 107","","","","","",""," días",null,0,0]
[108,null,null,null,"","","","","",null,"",null,null,null,null,null,null,null,null,null,null,null,null,null,null,null,null,null,null,null,0,0,0,0,"Lote 108","","","","","",""," días",null,0,0]
[109,null,null,null,"","","","","",null,"",null,null,null,null,null,null,null,null,null,null,null,null,null,null,null,null,null,null,null,0,0,0,0,"Lote 109","","","","","",""," días",null,0,0]
[110,null,null,null,"","","","","",null,"",null,null,null,null,null,null,null,null,null,null,null,null,null,null,null,null,null,null,null,0,0,0,0,"Lote 110","","","","","",""," días",null,0,0]
[111,null,null,null,"","","","","",null,"",null,null,null,null,null,null,null,null,null,null,null,null,null,null,null,null,null,null,null,0,0,0,0,"Lote 111","","","","","",""," días",null,0,0]
[112,null,null,null,"","","","","",null,"",null,null,null,null,null,null,null,null,null,null,null,null,null,null,null,null,null,null,null,0,0,0,0,"Lote 112","","","","","",""," días",null,0,0]
[113,null,null,null,"","","","","",null,"",null,null,null,null,null,null,null,null,null,null,null,null,null,null,null,null,null,null,null,0,0,0,0,"Lote 113","","","","","",""," días",null,0,0]
[114,null,null,null,"","","","","",null,"",null,null,null,null,null,null,null,null,null,null,null,null,null,null,null,null,null,null,null,0,0,0,0,"Lote 114","","","","","",""," días",null,0,0]
[115,null,null,null,"","","","","",null,"",null,null,null,null,null,null,null,null,null,null,null,null,null,null,null,null,null,null,null,0,0,0,0,"Lote 115","","","","","",""," días",null,0,0]
[116,null,null,null,"","","","","",null,"",null,null,null,null,null,null,null,null,null,null,null,null,null,null,null,null,null,null,null,0,0,0,0,"Lote 116","","","","","",""," días",null,0,0]
[117,null,null,null,"","","","","",null,"",null,null,null,null,null,null,null,null,null,null,null,null,null,null,null,null,null,null,null,0,0,0,0,"Lote 117","","","","","",""," días",null,0,0]
[118,null,null,null,"","","","","",null,"",null,null,null,null,null,null,null,null,null,null,null,null,null,null,null,null,null,null,null,0,0,0,0,"Lote 118","","","","","",""," días",null,0,0]
[119,null,null,null,"","","","","",null,"",null,null,null,null,null,null,null,null,null,null,null,null,null,null,null,null,null,null,null,0,0,0,0,"Lote 119","","","","","",""," días",null,0,0]
[120,null,null,null,"","","","","",null,"",null,null,null,null,null,null,null,null,null,null,null,null,null,null,null,null,null,null,null,0,0,0,0,"Lote 120","","","","","",""," días",null,0,0]
[121,null,null,null,"","","","","",null,"",null,null,null,null,null,null,null,null,null,null,null,null,null,null,null,null,null,null,null,0,0,0,0,"Lote 121","","","","","",""," días",null,0,0]
[122,null,null,null,"","","","","",null,"",null,null,null,null,null,null,null,null,null,null,null,null,null,null,null,null,null,null,null,0,0,0,0,"Lote 122","","","","","",""," días",null,0,0]
[123,null,null,null,"","","","","",null,"",null,null,null,null,null,null,null,null,null,null,null,null,null,null,null,null,null,null,null,0,0,0,0,"Lote 123","","","","","",""," días",null,0,0]
[124,null,null,null,"","","","","",null,"",null,null,null,null,null,null,null,null,null,null,null,null,null,null,null,null,null,null,null,0,0,0,0,"Lote 124","","","","","",""," días",null,0,0]
[125,null,null,null,"","","","","",null,"",null,null,null,null,null,null,null,null,null,null,null,null,null,null,null,null,null,null,null,0,0,0,0,"Lote 125","","","","","",""," días",null,0,0]
[126,null,null,null,"","","","","",null,"",null,null,null,null,null,null,null,null,null,null,null,null,null,null,null,null,null,null,null,0,0,0,0,"Lote 126","","","","","",""," días",null,0,0]
[127,null,null,null,"","","","","",null,"",null,null,null,null,null,null,null,null,null,null,null,null,null,null,null,null,null,null,null,0,0,0,0,"Lote 127","","","","","",""," días",null,0,0]
[128,null,null,null,"","","","","",null,"",null,null,null,null,null,null,null,null,null,null,null,null,null,null,null,null,null,null,null,0,0,0,0,"Lote 128","","","","","",""," días",null,0,0]
[129,null,null,null,{"$f":"IF($D138 =\"\",\"\",IF(YEAR($D138)=$F$1,$D138,\"01/01/2025\"))","v":""},"",{"$f":"IF($F138=\"\",\"\",IF(YEAR($F138)=$F$1,$F138,\"31/12/2025\"))","v":""},{"$f":"IF(B138=0,\"\",$H$4)","v":""},"",null,{"$f":"IF(H$5=\"sin dato\",\"\",IF(D138=\"\",\"\",D138+$H$5))","v":""},null,null,null,null,null,null,null,null,null,null,null,null,null,null,null,null,null,null,null,{"$f":"B138","v":0},{"$f":"C138","v":0},0,0,{"$f":"\"Lote \"&A138","v":"Lote 129"},{"$f":"IF(B138=0,\"\",B138&\" animales\")","v":""},{"$f":"IF(C138=0,\"\",C138&\" animales\")","v":""},{"$f":"IF(D138=\"\",\"\",D138)","v":""},{"$f":"H138","v":""},{"$f":"IF(F138=\"\",\"\",F138)","v":""},{"$f":"I138","v":""}," días",null,{"$f":"IF(AH138=0,0,AO138*AH138)","v":0},0]
[130,null,null,null,"",{"$f":"IF(D139=\"\",\"\",D139+H139)","v":""},"","",{"$f":"IF(G139=\"\",\"\",_xlfn.DAYS(G139,E139))","v":""},null,"",null,null,null,null,null,null,null,null,null,null,null,null,null,null,null,null,null,null,null,0,0,{"$f":"(AE139+AF139)/2","v":0},{"$f":"IF($AG$160=0,0,AG139/$AG$160)","v":0},"Lote 130","","","","","","",{"$f":"IF(AO139=0,\"\",AO139& \" días\")","v":" días"},null,0,{"$f":"IF(AH139=0,0,AM139*AH139)","v":0}]
[131,null,null,null,"","","","","",null,"",null,null,null,null,null,null,null,null,null,null,null,null,null,null,null,null,null,null,null,0,0,0,0,"Lote 131","","","","","",""," días",null,0,0]
[132,null,null,null,"","","","","",null,"",null,null,null,null,null,null,null,null,null,null,null,null,null,null,null,null,null,null,null,0,0,0,0,"Lote 132","","","","","",""," días",null,0,0]
[133,null,null,null,"","","","","",null,"",null,null,null,null,null,null,null,null,null,null,null,null,null,null,null,null,null,null,null,0,0,0,0,"Lote 133","","","","","",""," días",null,0,0]
[134,null,null,null,"","","","","",null,"",null,null,null,null,null,null,null,null,null,null,null,null,null,null,null,null,null,null,null,0,0,0,0,"Lote 134","","","","","",""," días",null,0,0]
[135,null,null,null,"","","","","",null,"",null,null,null,null,null,null,null,null,null,null,null,null,null,null,null,null,null,null,null,0,0,0,0,"Lote 135","","","","","",""," días",null,0,0]
[136,null,null,null,"","","","","",null,"",null,null,null,null,null,null,null,null,null,null,null,null,null,null,null,null,null,null,null,0,0,0,0,"Lote 136","","","","","",""," días",null,0,0]
[137,null,null,null,"","","","","",null,"",null,null,null,null,null,null,null,null,null,null,null,null,null,null,null,null,null,null,null,0,0,0,0,"Lote 137","","","","","",""," días",null,0,0]
[138,null,null,null,"","","","","",null,"",null,null,null,null,null,null,null,null,null,null,null,null,null,null,null,null,null,null,null,0,0,0,0,"Lote 138","","","","","",""," días",null,0,0]
[139,null,null,null,"","","","","",null,"",null,null,null,null,null,null,null,null,null,null,null,null,null,null,null,null,null,null,null,0,0,0,0,"Lote 139","","","","","",""," días",null,0,0]
[140,null,null,null,"","","","","",null,"",null,null,null,null,null,null,null,null,null,null,null,null,null,null,null,null,null,null,null,0,0,0,0,"Lote 140","","","","","",""," días",null,0,0]
[141,null,null,null,"","","","","",null,"",null,null,null,null,null,null,null,null,null,null,null,null,null,null,null,null,null,null,null,0,0,0,0,"Lote 141","","","","","",""," días",null,0,0]
[142,null,null,null,"","","","","",null,"",null,null,null,null,null,null,null,null,null,null,null,null,null,null,null,null,null,null,null,0,0,0,0,"Lote 142","","","","","",""," días",null,0,0]
[143,null,null,null,"","","","","",null,"",null,null,null,null,null,null,null,null,null,null,null,null,null,null,null,null,null,null,null,0,0,0,0,"Lote 143","","","","","",""," días",null,0,0]
[144,null,null,null,"","","","","",null,"",null,null,null,null,null,null,null,null,null,null,null,null,null,null,null,null,null,null,null,0,0,0,0,"Lote 144","","","","","",""," días",null,0,0]
[145,null,null,null,"","","","","",null,"",null,null,null,null,null,null,null,null,null,null,null,null,null,null,null,null,null,null,null,0,0,0,0,"Lote 145","","","","","",""," días",null,0,0]
[146,null,null,null,"","","","","",null,"",null,null,null,null,null,null,null,null,null,null,null,null,null,null,null,null,null,null,null,0,0,0,0,"Lote 146","","","","","",""," días",null,0,0]
[147,null,null,null,"","","","","",null,"",null,null,null,null,null,null,null,null,null,null,null,null,null,null,null,null,null,null,null,0,0,0,0,"Lote 147","","","","","",""," días",null,0,0]
[148,null,null,null,"","","","","",null,"",null,null,null,null,null,null,null,null,null,null,null,null,null,null,null,null,null,null,null,0,0,0,0,"Lote 148","","","","","",""," días",null,0,0]
[149,null,null,null,"","","","","",null,"",null,null,null,null,null,null,null,null,null,null,null,null,null,null,null,null,null,null,null,0,0,0,0,"Lote 149","","","","","",""," días",null,0,0]
[150,null,null,null,"","","","","",null,"",null,null,null,null,null,null,null,null,null,null,null,null,null,null,null,null,null,null,null,0,0,0,0,"Lote 150","","","","","",""," días",null,0,0]
[null,null,null,null,null,null,null,null,null,null,null,null,null,null,null,null,null,null,null,null,null,null,null,null,null,null,null,null,null,null,{"$f":"SUM(AE10:AE159)","v":0},{"$f":"SUM(AF10:AF159)","v":0},{"$f":"ROUND(SUM(AG10:AG159),0)","v":0},{"$f":"SUM(AH10:AH159)","v":0},null,null,null,null,null,null,null,null,null,{"$f":"ROUND(SUM(AR10:AR159),0)","v":0},{"$f":"ROUND(SUM(AS10:AS159),0)","v":0}]

{"sheet":"Categoria 6","index":8,"n_rows":160,"n_cols":45,"rows_kept":160,"cut":false,"hidden":false,"merged":[[7,1,7,8],[7,12,7,24],[4,13,4,17],[0,1,0,3],[2,0,2,2],[2,3,2,8],[5,1,5,8],[0,12,0,17],[0,18,0,23]]}
[null,"Año de declaración: ",null,null,null,{"$f":"Base!B12","v":2025},null,null,null,null,null,null,"Datos a grabar en el paso 2 de ECOGAN",null,null,null,null,null,"Datos a grabar en el paso 4 de ECOGAN"]
[null,null,null,null,null,null,null,null,null,null,null,null,null,null,null,null,"nº total de animales que entran de esta categoría productiva:",{"$f":"AE160","v":0},null,null,null,null,"Periodo productivo total medio de la categoría productiva:",{"$f":"H4","v":0}]
["Categoría productiva: ",null,null,"Pasteros Hembra procedentes de vacas nodriza",null,null,null,null,null,null,null,null,null,null,null,null,"nº total de animales vivos que finalizan de esta categoría productiva:",{"$f":"AF160","v":0},null,null,null,null,"días medios presentes de la categoría productiva:",{"$f":"AR160","v":0}]
[null,null,null,null,null,"Indique el periodo productivo medio de la categoría productiva (días):",null,null,"*"]
[null,null,null,null,null,"Periodo productivo medio de referencia (días):",null,{"$f":"IFERROR(VLOOKUP(D3,Base!A2:B7,2,FALSE),\"sin dato\")","v":165},{"$f":"IF(H5=\"sin dato\",\"\",\"(\"&ROUND(H5*0.9,0) &\" - \"&ROUND(H5*1.1,0)&\")\")","v":"(149 - 182)"},null,null,null,null,"Si desea borrar datos grabados anteriormente, pulse aquí\n¡Cuidado! Perderá toda la información"]
["*","Número de días que por término medio los animales de una linea productiva permanecen en la granja desde que entran hasta que salen de ese alojamiento, de modo que el periodo es por ciclo productivo y no por año natural. "]
[null,null,null,null,null,null,null,null,null,null,null,null,{"$f":"Base!F2","v":45292},{"$f":"Base!H3","v":46387}]
["u","Lote es el grupo de animales que van entrando de forma escalonada a los corrales.",null,null,null,null,null,null,null,null,null,null,"Diagrama de entradas y salidas"]
["lote u","nº de animales que entran\nen cada lote","nº de animales vivos que finalizan\nen cada lote","Fecha de entrada                                                                                                                                                                                                                                                                del lote\n(dd/mm/aa)",null,"Fecha de\nfinalización                                                                                                                                                                                                                                  del lote\n(dd/mm/aa)",null,"Periodo productivo total\nmedio\n(días)",{"$f":"\"días presentes del lote\nen el año \" & F1","v":"días presentes del lote\nen el año 2025"},null,{"$f":"IF(H5=\"sin dato\",\"\",\"Fecha fin según fecha entrada y periodo de \"&H5&\" días\")","v":"Fecha fin según fecha entrada y periodo de 165 días"},null,null,null,null,null,null,null,null,null,null,null,null,null,null,null,null,null,null,null,null,null,null,null,"lote",null,null,"Fecha de entrada                                                                                                                                                                                                                                                                del lote","Periodo productivo total","Fecha de entrada                                                                                                                                                                                                                                                                del lote",{"$f":"\"días presentes del lote\nen el año \" & AL1","v":"días presentes del lote\nen el año "},null,null,{"$f":"\"días presentes del lote\nen el año \" & AO1","v":"días presentes del lote\nen el año "},"Periodo productivo total"]
[1,null,null,null,{"$f":"IF($D10 =\"\",\"\",IF(YEAR($D10)=$F$1,$D10,\"01/01/2025\"))","v":""},{"$f":"IF(D10=\"\",\"\",D10+H10)","v":""},{"$f":"IF($F10=\"\",\"\",IF(YEAR($F10)=$F$1,$F10,\"31/12/2025\"))","v":""},{"$f":"IF(B10=0,\"\",$H$4)","v":""},{"$f":"IF(G10=\"\",\"\",_xlfn.DAYS(G10,E10))","v":""},null,{"$f":"IF(H$5=\"sin dato\",\"\",IF(D10=\"\",\"\",D10+$H$5))","v":""},null,null,null,null,null,null,null,null,null,null,null,null,null,null,null,null,null,null,null,{"$f":"B10","v":0},0,{"$f":"(AE10+AF10)/2","v":0},{"$f":"IF($AG$160=0,0,AG10/$AG$160)","v":0},{"$f":"\"Lote \"&A10","v":"Lote 1"},{"$f":"IF(B10=0,\"\",B10&\" animales\")","v":""},"",{"$f":"IF(D10=\"\",\"\",D10)","v":""},{"$f":"H10","v":""},{"$f":"IF(F10=\"\",\"\",F10)","v":""},{"$f":"I10","v":""},{"$f":"IF(AO10=0,\"\",AO10& \" días\")","v":" días"},null,{"$f":"IF(AH10=0,0,AO10*AH10)","v":0},{"$f":"IF(AH10=0,0,AM10*AH10)","v":0}]
[2,null,null,null,"",{"$f":"IF(D11=\"\",\"\",D11+H11)","v":""},"","",{"$f":"IF(G11=\"\",\"\",_xlfn.DAYS(G11,E11))","v":""},null,"",null,null,null,null,null,null,null,null,null,null,null,null,null,null,null,null,null,null,null,0,0,{"$f":"(AE11+AF11)/2","v":0},{"$f":"IF($AG$160=0,0,AG11/$AG$160)","v":0},"Lote 2","","","","","","",{"$f":"IF(AO11=0,\"\",AO11& \" días\")","v":" días"},null,0,0]
[3,null,null,null,"","","","","",null,"",null,null,null,null,null,null,null,null,null,null,null,null,null,null,null,null,null,null,null,0,0,0,0,"Lote 3","","","","","",""," días",null,0,0]
[4,null,null,null,"","","","","",null,"",null,null,null,null,null,null,null,null,null,null,null,null,null,null,null,null,null,null,null,0,0,0,0,"Lote 4","","","","","",""," días",null,0,0]
[5,null,null,null,"","","","","",null,"",null,null,null,null,null,null,null,null,null,null,null,null,null,null,null,null,null,null,null,0,0,0,0,"Lote 5","","","","","",""," días",null,0,0]
[6,null,null,null,"","","","","",null,"",null,null,null,null,null,null,null,null,null,null,null,null,null,null,null,null,null,null,null,0,0,0,0,"Lote 6","","","","","",""," días",null,0,0]
[7,null,null,null,"","","","","",null,"",null,null,null,null,null,null,null,null,null,null,null,null,null,null,null,null,null,null,null,0,0,0,0,"Lote 7","","","","","",""," días",null,0,0]
[8,null,null,null,"","","","","",null,"",null,null,null,null,null,null,null,null,null,null,null,null,null,null,null,null,null,null,null,0,0,0,0,"Lote 8","","","","","",""," días",null,0,0]
[9,null,null,null,"","","","","",null,"",null,null,null,null,null,null,null,null,null,null,null,null,null,null,null,null,null,null,null,0,0,0,0,"Lote 9","","","","","",""," días",null,0,0]
[10,null,null,null,"","","","","",null,"",null,null,null,null,null,null,null,null,null,null,null,null,null,null,null,null,null,null,null,0,0,0,0,"Lote 10","","","","","",""," días",null,0,0]
[11,null,null,null,"","","","","",null,"",null,null,null,null,null,null,null,null,null,null,null,null,null,null,null,null,null,null,null,0,0,0,0,"Lote 11","","","","","",""," días",null,0,0]
[12,null,null,null,"","","","","",null,"",null,null,null,null,null,null,null,null,null,null,null,null,null,null,null,null,null,null,null,0,0,0,0,"Lote 12","","","","","",""," días",null,0,0]
[13,null,null,null,"","","","","",null,"",null,null,null,null,null,null,null,null,null,null,null,null,null,null,null,null,null,null,null,0,0,0,0,"Lote 13","","","","","",""," días",null,0,0]
[14,null,null,null,"","","","","",null,"",null,null,null,null,null,null,null,null,null,null,null,null,null,null,null,null,null,null,null,0,0,0,0,"Lote 14","","","","","",""," días",null,0,0]
[15,null,null,null,"","","","","",null,"",null,null,null,null,null,null,null,null,null,null,null,null,null,null,null,null,null,null,null,0,0,0,0,"Lote 15","","","","","",""," días",null,0,0]
[16,null,null,null,"","","","","",null,"",null,null,null,null,null,null,null,null,null,null,null,null,null,null,null,null,null,null,null,0,0,0,0,"Lote 16","","","","","",""," días",null,0,0]
[17,null,null,null,"","","","","",null,"",null,null,null,null,null,null,null,null,null,null,null,null,null,null,null,null,null,null,null,0,0,0,0,"Lote 17","","","","","",""," días",null,0,0]
[18,null,null,null,"","","","","",null,"",null,null,null,null,null,null,null,null,null,null,null,null,null,null,null,null,null,null,null,0,0,0,0,"Lote 18","","","","","",""," días",null,0,0]
[19,null,null,null,"","","","","",null,"",null,null,null,null,null,null,null,null,null,null,null,null,null,null,null,null,null,null,null,0,0,0,0,"Lote 19","","","","","",""," días",null,0,0]
[20,null,null,null,"","","","","",null,"",null,null,null,null,null,null,null,null,null,null,null,null,null,null,null,null,null,null,null,0,0,0,0,"Lote 20","","","","","",""," días",null,0,0]
[21,null,null,null,"","","","","",null,"",null,null,null,null,null,null,null,null,null,null,null,null,null,null,null,null,null,null,null,0,0,0,0,"Lote 21","","","","","",""," días",null,0,0]
[22,null,null,null,"","","","","",null,"",null,null,null,null,null,null,null,null,null,null,null,null,null,null,null,null,null,null,null,0,0,0,0,"Lote 22","","","","","",""," días",null,0,0]
[23,null,null,null,"","","","","",null,"",null,null,null,null,null,null,null,null,null,null,null,null,null,null,null,null,null,null,null,0,0,0,0,"Lote 23","","","","","",""," días",null,0,0]
[24,null,null,null,"","","","","",null,"",null,null,null,null,null,null,null,null,null,null,null,null,null,null,null,null,null,null,null,0,0,0,0,"Lote 24","","","","","",""," días",null,0,0]
[25,null,null,null,"","","","","",null,"",null,null,null,null,null,null,null,null,null,null,null,null,null,null,null,null,null,null,null,0,0,0,0,"Lote 25","","","","","",""," días",null,0,0]
[26,null,null,null,"","","","","",null,"",null,null,null,null,null,null,null,null,null,null,null,null,null,null,null,null,null,null,null,0,0,0,0,"Lote 26","","","","","",""," días",null,0,0]
[27,null,null,null,"","","","","",null,"",null,null,null,null,null,null,null,null,null,null,null,null,null,null,null,null,null,null,null,0,0,0,0,"Lote 27","","","","","",""," días",null,0,0]
[28,null,null,null,"","","","","",null,"",null,null,null,null,null,null,null,null,null,null,null,null,null,null,null,null,null,null,null,0,0,0,0,"Lote 28","","","","","",""," días",null,0,0]
[29,null,null,null,"","","","","",null,"",null,null,null,null,null,null,null,null,null,null,null,null,null,null,null,null,null,null,null,0,0,0,0,"Lote 29","","","","","",""," días",null,0,0]
[30,null,null,null,"","","","","",null,"",null,null,null,null,null,null,null,null,null,null,null,null,null,null,null,null,null,null,null,0,0,0,0,"Lote 30","","","","","",""," días",null,0,0]
[31,null,null,null,"","","","","",null,"",null,null,null,null,null,null,null,null,null,null,null,null,null,null,null,null,null,null,null,0,0,0,0,"Lote 31","","","","","",""," días",null,0,0]
[32,null,null,null,"","","","","",null,"",null,null,null,null,null,null,null,null,null,null,null,null,null,null,null,null,null,null,null,0,0,0,0,"Lote 32","","","","","",""," días",null,0,0]
[33,null,null,null,"","","",{"$f":"IF(B42=0,\"\",$H$4)","v":""},"",null,{"$f":"IF(H$5=\"sin dato\",\"\",IF(D42=\"\",\"\",D42+$H$5))","v":""},null,null,null,null,null,null,null,null,null,null,null,null,null,null,null,null,null,null,null,{"$f":"B42","v":0},0,0,0,"Lote 33",{"$f":"IF(B42=0,\"\",B42&\" animales\")","v":""},"","","","",""," días",null,0,0]
[34,null,null,null,"","","","","",null,"",null,null,null,null,null,null,null,null,null,null,null,null,null,null,null,null,null,null,null,0,0,0,0,"Lote 34","","","","","",""," días",null,0,0]
[35,null,null,null,"","","","","",null,"",null,null,null,null,null,null,null,null,null,null,null,null,null,null,null,null,null,null,null,0,0,0,0,"Lote 35","","","","","",""," días",null,0,0]
[36,null,null,null,"","","","","",null,"",null,null,null,null,null,null,null,null,null,null,null,null,null,null,null,null,null,null,null,0,0,0,0,"Lote 36","","","","","",""," días",null,0,0]
[37,null,null,null,"","","","","",null,"",null,null,null,null,null,null,null,null,null,null,null,null,null,null,null,null,null,null,null,0,0,0,0,"Lote 37","","","","","",""," días",null,0,0]
[38,null,null,null,"","","","","",null,"",null,null,null,null,null,null,null,null,null,null,null,null,null,null,null,null,null,null,null,0,0,0,0,"Lote 38","","","","","",""," días",null,0,0]
[39,null,null,null,"","","","","",null,"",null,null,null,null,null,null,null,null,null,null,null,null,null,null,null,null,null,null,null,0,0,0,0,"Lote 39","","","","","",""," días",null,0,0]
[40,null,null,null,"","","","","",null,"",null,null,null,null,null,null,null,null,null,null,null,null,null,null,null,null,null,null,null,0,0,0,0,"Lote 40","","","","","",""," días",null,0,0]
[41,null,null,null,"","","","","",null,"",null,null,null,null,null,null,null,null,null,null,null,null,null,null,null,null,null,null,null,0,0,0,0,"Lote 41","","","","","",""," días",null,0,0]
[42,null,null,null,"","","","","",null,"",null,null,null,null,null,null,null,null,null,null,null,null,null,null,null,null,null,null,null,0,0,0,0,"Lote 42","","","","","",""," días",null,0,0]
[43,null,null,null,"","","","","",null,"",null,null,null,null,null,null,null,null,null,null,null,null,null,null,null,null,null,null,null,0,0,0,0,"Lote 43","","","","","",""," días",null,0,0]
[44,null,null,null,"","","","","",null,"",null,null,null,null,null,null,null,null,null,null,null,null,null,null,null,null,null,null,null,0,0,0,0,"Lote 44","","","","","",""," días",null,0,0]
[45,null,null,null,"","","","","",null,"",null,null,null,null,null,null,null,null,null,null,null,null,null,null,null,null,null,null,null,0,0,0,0,"Lote 45","","","","","",""," días",null,0,0]
[46,null,null,null,"","","","","",null,"",null,null,null,null,null,null,null,null,null,null,null,null,null,null,null,null,null,null,null,0,0,0,0,"Lote 46","","","","","",""," días",null,0,0]
[47,null,null,null,"","","","","",null,"",null,null,null,null,null,null,null,null,null,null,null,null,null,null,null,null,null,null,null,0,0,0,0,"Lote 47","","","","","",""," días",null,0,0]
[48,null,null,null,"","","","","",null,"",null,null,null,null,null,null,null,null,null,null,null,null,null,null,null,null,null,null,null,0,0,0,0,"Lote 48","","","","","",""," días",null,0,0]
[49,null,null,null,"","","","","",null,"",null,null,null,null,null,null,null,null,null,null,null,null,null,null,null,null,null,null,null,0,0,0,0,"Lote 49","","","","","",""," días",null,0,0]
[50,null,null,null,"","","","","",null,"",null,null,null,null,null,null,null,null,null,null,null,null,null,null,null,null,null,null,null,0,0,0,0,"Lote 50","","","","","",""," días",null,0,0]
[51,null,null,null,"","","","","",null,"",null,null,null,null,null,null,null,null,null,null,null,null,null,null,null,null,null,null,null,0,0,0,0,"Lote 51","","","","","",""," días",null,0,0]
[52,null,null,null,"","","","","",null,"",null,null,null,null,null,null,null,null,null,null,null,null,null,null,null,null,null,null,null,0,0,0,0,"Lote 52","","","","","",""," días",null,0,0]
[53,null,null,null,"","","","","",null,"",null,null,null,null,null,null,null,null,null,null,null,null,null,null,null,null,null,null,null,0,0,0,0,"Lote 53","","","","","",""," días",null,0,0]
[54,null,null,null,"","","","","",null,"",null,null,null,null,null,null,null,null,null,null,null,null,null,null,null,null,null,null,null,0,0,0,0,"Lote 54","","","","","",""," días",null,0,0]
[55,null,null,null,"","","","","",null,"",null,null,null,null,null,null,null,null,null,null,null,null,null,null,null,null,null,null,null,0,0,0,0,"Lote 55","","","","","",""," días",null,0,0]
[56,null,null,null,"","","","","",null,"",null,null,null,null,null,null,null,null,null,null,null,null,null,null,null,null,null,null,null,0,0,0,0,"Lote 56","","","","","",""," días",null,0,0]
[57,null,null,null,"","","","","",null,"",null,null,null,null,null,null,null,null,null,null,null,null,null,null,null,null,null,null,null,0,0,0,0,"Lote 57","","","","","",""," días",null,0,0]
[58,null,null,null,"","","","","",null,"",null,null,null,null,null,null,null,null,null,null,null,null,null,null,null,null,null,null,null,0,0,0,0,"Lote 58","","","","","",""," días",null,0,0]
[59,null,null,null,"","","","","",null,"",null,null,null,null,null,null,null,null,null,null,null,null,null,null,null,null,null,null,null,0,0,0,0,"Lote 59","","","","","",""," días",null,0,0]
[60,null,null,null,"","","","","",null,"",null,null,null,null,null,null,null,null,null,null,null,null,null,null,null,null,null,null,null,0,0,0,0,"Lote 60","","","","","",""," días",null,0,0]
[61,null,null,null,"","","","","",null,"",null,null,null,null,null,null,null,null,null,null,null,null,null,null,null,null,null,null,null,0,0,0,0,"Lote 61","","","","","",""," días",null,0,0]
[62,null,null,null,"","","","","",null,"",null,null,null,null,null,null,null,null,null,null,null,null,null,null,null,null,null,null,null,0,0,0,0,"Lote 62","","","","","",""," días",null,0,0]
[63,null,null,null,"","","","","",null,"",null,null,null,null,null,null,null,null,null,null,null,null,null,null,null,null,null,null,null,0,0,0,0,"Lote 63","","","","","",""," días",null,0,0]
[64,null,null,null,"","","","","",null,"",null,null,null,null,null,null,null,null,null,null,null,null,null,null,null,null,null,null,null,0,0,0,0,"Lote 64","","","","","",""," días",null,0,0]
[65,null,null,null,{"$f":"IF($D74 =\"\",\"\",IF(YEAR($D74)=$F$1,$D74,\"01/01/2025\"))","v":""},"",{"$f":"IF($F74=\"\",\"\",IF(YEAR($F74)=$F$1,$F74,\"31/12/2025\"))","v":""},{"$f":"IF(B74=0,\"\",$H$4)","v":""},"",null,{"$f":"IF(H$5=\"sin dato\",\"\",IF(D74=\"\",\"\",D74+$H$5))","v":""},null,null,null,null,null,null,null,null,null,null,null,null,null,null,null,null,null,null,null,{"$f":"B74","v":0},0,0,0,{"$f":"\"Lote \"&A74","v":"Lote 65"},{"$f":"IF(B74=0,\"\",B74&\" animales\")","v":""},"",{"$f":"IF(D74=\"\",\"\",D74)","v":""},{"$f":"H74","v":""},{"$f":"IF(F74=\"\",\"\",F74)","v":""},{"$f":"I74","v":""}," días",null,{"$f":"IF(AH74=0,0,AO74*AH74)","v":0},{"$f":"IF(AH74=0,0,AM74*AH74)","v":0}]
[66,null,null,null,"",{"$f":"IF(D75=\"\",\"\",D75+H75)","v":""},"","",{"$f":"IF(G75=\"\",\"\",_xlfn.DAYS(G75,E75))","v":""},null,"",null,null,null,null,null,null,null,null,null,null,null,null,null,null,null,null,null,null,null,0,0,{"$f":"(AE75+AF75)/2","v":0},{"$f":"IF($AG$160=0,0,AG75/$AG$160)","v":0},"Lote 66","","","","","","",{"$f":"IF(AO75=0,\"\",AO75& \" días\")","v":" días"},null,0,0]
[67,null,null,null,"","","","","",null,"",null,null,null,null,null,null,null,null,null,null,null,null,null,null,null,null,null,null,null,0,0,0,0,"Lote 67","","","","","",""," días",null,0,0]
[68,null,null,null,"","","","","",null,"",null,null,null,null,null,null,null,null,null,null,null,null,null,null,null,null,null,null,null,0,0,0,0,"Lote 68","","","","","",""," días",null,0,0]
[69,null,null,null,"","","","","",null,"",null,null,null,null,null,null,null,null,null,null,null,null,null,null,null,null,null,null,null,0,0,0,0,"Lote 69","","","","","",""," días",null,0,0]
[70,null,null,null,"","","","","",null,"",null,null,null,null,null,null,null,null,null,null,null,null,null,null,null,null,null,null,null,0,0,0,0,"Lote 70","","","","","",""," días",null,0,0]
[71,null,null,null,"","","","","",null,"",null,null,null,null,null,null,null,null,null,null,null,null,null,null,null,null,null,null,null,0,0,0,0,"Lote 71","","","","","",""," días",null,0,0]
[72,null,null,null,"","","","","",null,"",null,null,null,null,null,null,null,null,null,null,null,null,null,null,null,null,null,null,null,0,0,0,0,"Lote 72","","","","","",""," días",null,0,0]
[73,null,null,null,"","","","","",null,"",null,null,null,null,null,null,null,null,null,null,null,null,null,null,null,null,null,null,null,0,0,0,0,"Lote 73","","","","","",""," días",null,0,0]
[74,null,null,null,"","","","","",null,"",null,null,null,null,null,null,null,null,null,null,null,null,null,null,null,null,null,null,null,0,0,0,0,"Lote 74","","","","","",""," días",null,0,0]
[75,null,null,null,"","","","","",null,"",null,null,null,null,null,null,null,null,null,null,null,null,null,null,null,null,null,null,null,0,0,0,0,"Lote 75","","","","","",""," días",null,0,0]
[76,null,null,null,"","","","","",null,"",null,null,null,null,null,null,null,null,null,null,null,null,null,null,null,null,null,null,null,0,0,0,0,"Lote 76","","","","","",""," días",null,0,0]
[77,null,null,null,"","","","","",null,"",null,null,null,null,null,null,null,null,null,null,null,null,null,null,null,null,null,null,null,0,0,0,0,"Lote 77","","","","","",""," días",null,0,0]
[78,null,null,null,"","","","","",null,"",null,null,null,null,null,null,null,null,null,null,null,null,null,null,null,null,null,null,null,0,0,0,0,"Lote 78","","","","","",""," días",null,0,0]
[79,null,null,null,"","","","","",null,"",null,null,null,null,null,null,null,null,null,null,null,null,null,null,null,null,null,null,null,0,0,0,0,"Lote 79","","","","","",""," días",null,0,0]
[80,null,null,null,"","","","","",null,"",null,null,null,null,null,null,null,null,null,null,null,null,null,null,null,null,null,null,null,0,0,0,0,"Lote 80","","","","","",""," días",null,0,0]
[81,null,null,null,"","","","","",null,"",null,null,null,null,null,null,null,null,null,null,null,null,null,null,null,null,null,null,null,0,0,0,0,"Lote 81","","","","","",""," días",null,0,0]
[82,null,null,null,"","","","","",null,"",null,null,null,null,null,null,null,null,null,null,null,null,null,null,null,null,null,null,null,0,0,0,0,"Lote 82","","","","","",""," días",null,0,0]
[83,null,null,null,"","","","","",null,"",null,null,null,null,null,null,null,null,null,null,null,null,null,null,null,null,null,null,null,0,0,0,0,"Lote 83","","","","","",""," días",null,0,0]
[84,null,null,null,"","","","","",null,"",null,null,null,null,null,null,null,null,null,null,null,null,null,null,null,null,null,null,null,0,0,0,0,"Lote 84","","","","","",""," días",null,0,0]
[85,null,null,null,"","","","","",null,"",null,null,null,null,null,null,null,null,null,null,null,null,null,null,null,null,null,null,null,0,0,0,0,"Lote 85","","","","","",""," días",null,0,0]
[86,null,null,null,"","","","","",null,"",null,null,null,null,null,null,null,null,null,null,null,null,null,null,null,null,null,null,null,0,0,0,0,"Lote 86","","","","","",""," días",null,0,0]
[87,null,null,null,"","","","","",null,"",null,null,null,null,null,null,null,null,null,null,null,null,null,null,null,null,null,null,null,0,0,0,0,"Lote 87","","","","","",""," días",null,0,0]
[88,null,null,null,"","","","","",null,"",null,null,null,null,null,null,null,null,null,null,null,null,null,null,null,null,null,null,null,0,0,0,0,"Lote 88","","","","","",""," días",null,0,0]
[89,null,null,null,"","","","","",null,"",null,null,null,null,null,null,null,null,null,null,null,null,null,null,null,null,null,null,null,0,0,0,0,"Lote 89","","","","","",""," días",null,0,0]
[90,null,null,null,"","","","","",null,"",null,null,null,null,null,null,null,null,null,null,null,null,null,null,null,null,null,null,null,0,0,0,0,"Lote 90","","","","","",""," días",null,0,0]
[91,null,null,null,"","","","","",null,"",null,null,null,null,null,null,null,null,null,null,null,null,null,null,null,null,null,null,null,0,0,0,0,"Lote 91","","","","","",""," días",null,0,0]
[92,null,null,null,"","","","","",null,"",null,null,null,null,null,null,null,null,null,null,null,null,null,null,null,null,null,null,null,0,0,0,0,"Lote 92","","","","","",""," días",null,0,0]
[93,null,null,null,"","","","","",null,"",null,null,null,null,null,null,null,null,null,null,null,null,null,null,null,null,null,null,null,0,0,0,0,"Lote 93","","","","","",""," días",null,0,0]
[94,null,null,null,"","","","","",null,"",null,null,null,null,null,null,null,null,null,null,null,null,null,null,null,null,null,null,null,0,0,0,0,"Lote 94","","","","","",""," días",null,0,0]
[95,null,null,null,"","","","","",null,"",null,null,null,null,null,null,null,null,null,null,null,null,null,null,null,null,null,null,null,0,0,0,0,"Lote 95","","","","","",""," días",null,0,0]
[96,null,null,null,"","","","","",null,"",null,null,null,null,null,null,null,null,null,null,null,null,null,null,null,null,null,null,null,0,0,0,0,"Lote 96","","","","","",""," días",null,0,0]
[97,null,null,null,"","","",{"$f":"IF(B106=0,\"\",$H$4)","v":""},"",null,{"$f":"IF(H$5=\"sin dato\",\"\",IF(D106=\"\",\"\",D106+$H$5))","v":""},null,null,null,null,null,null,null,null,null,null,null,null,null,null,null,null,null,null,null,{"$f":"B106","v":0},0,0,0,"Lote 97",{"$f":"IF(B106=0,\"\",B106&\" animales\")","v":""},"","","","",""," días",null,0,0]
[98,null,null,null,"","","","","",null,"",null,null,null,null,null,null,null,null,null,null,null,null,null,null,null,null,null,null,null,0,0,0,0,"Lote 98","","","","","",""," días",null,0,0]
[99,null,null,null,"","","","","",null,"",null,null,null,null,null,null,null,null,null,null,null,null,null,null,null,null,null,null,null,0,0,0,0,"Lote 99","","","","","",""," días",null,0,0]
[100,null,null,null,"","","","","",null,"",null,null,null,null,null,null,null,null,null,null,null,null,null,null,null,null,null,null,null,0,0,0,0,"Lote 100","","","","","",""," días",null,0,0]
[101,null,null,null,"","","","","",null,"",null,null,null,null,null,null,null,null,null,null,null,null,null,null,null,null,null,null,null,0,0,0,0,"Lote 101","","","","","",""," días",null,0,0]
[102,null,null,null,"","","","","",null,"",null,null,null,null,null,null,null,null,null,null,null,null,null,null,null,null,null,null,null,0,0,0,0,"Lote 102","","","","","",""," días",null,0,0]
[103,null,null,null,"","","","","",null,"",null,null,null,null,null,null,null,null,null,null,null,null,null,null,null,null,null,null,null,0,0,0,0,"Lote 103","","","","","",""," días",null,0,0]
[104,null,null,null,"","","","","",null,"",null,null,null,null,null,null,null,null,null,null,null,null,null,null,null,null,null,null,null,0,0,0,0,"Lote 104","","","","","",""," días",null,0,0]
[105,null,null,null,"","","","","",null,"",null,null,null,null,null,null,null,null,null,null,null,null,null,null,null,null,null,null,null,0,0,0,0,"Lote 105","","","","","",""," días",null,0,0]
[106,null,null,null,"","","","","",null,"",null,null,null,null,null,null,null,null,null,null,null,null,null,null,null,null,null,null,null,0,0,0,0,"Lote 106","","","","","",""," días",null,0,0]
[107,null,null,null,"","","","","",null,"",null,null,null,null,null,null,null,null,null,null,null,null,null,null,null,null,null,null,null,0,0,0,0,"Lote 107","","","","","",""," días",null,0,0]
[108,null,null,null,"","","","","",null,"",null,null,null,null,null,null,null,null,null,null,null,null,null,null,null,null,null,null,null,0,0,0,0,"Lote 108","","","","","",""," días",null,0,0]
[109,null,null,null,"","","","","",null,"",null,null,null,null,null,null,null,null,null,null,null,null,null,null,null,null,null,null,null,0,0,0,0,"Lote 109","","","","","",""," días",null,0,0]
[110,null,null,null,"","","","","",null,"",null,null,null,null,null,null,null,null,null,null,null,null,null,null,null,null,null,null,null,0,0,0,0,"Lote 110","","","","","",""," días",null,0,0]
[111,null,null,null,"","","","","",null,"",null,null,null,null,null,null,null,null,null,null,null,null,null,null,null,null,null,null,null,0,0,0,0,"Lote 111","","","","","",""," días",null,0,0]
[112,null,null,null,"","","","","",null,"",null,null,null,null,null,null,null,null,null,null,null,null,null,null,null,null,null,null,null,0,0,0,0,"Lote 112","","","","","",""," días",null,0,0]
[113,null,null,null,"","","","","",null,"",null,null,null,null,null,null,null,null,null,null,null,null,null,null,null,null,null,null,null,0,0,0,0,"Lote 113","","","","","",""," días",null,0,0]
[114,null,null,null,"","","","","",null,"",null,null,null,null,null,null,null,null,null,null,null,null,null,null,null,null,null,null,null,0,0,0,0,"Lote 114","","","","","",""," días",null,0,0]
[115,null,null,null,"","","","","",null,"",null,null,null,null,null,null,null,null,null,null,null,null,null,null,null,null,null,null,null,0,0,0,0,"Lote 115","","","","","",""," días",null,0,0]
[116,null,null,null,"","","","","",null,"",null,null,null,null,null,null,null,null,null,null,null,null,null,null,null,null,null,null,null,0,0,0,0,"Lote 116","","","","","",""," días",null,0,0]
[117,null,null,null,"","","","","",null,"",null,null,null,null,null,null,null,null,null,null,null,null,null,null,null,null,null,null,null,0,0,0,0,"Lote 117","","","","","",""," días",null,0,0]
[118,null,null,null,"","","","","",null,"",null,null,null,null,null,null,null,null,null,null,null,null,null,null,null,null,null,null,null,0,0,0,0,"Lote 118","","","","","",""," días",null,0,0]
[119,null,null,null,"","","","","",null,"",null,null,null,null,null,null,null,null,null,null,null,null,null,null,null,null,null,null,null,0,0,0,0,"Lote 119","","","","","",""," días",null,0,0]
[120,null,null,null,"","","","","",null,"",null,null,null,null,null,null,null,null,null,null,null,null,null,null,null,null,null,null,null,0,0,0,0,"Lote 120","","","","","",""," días",null,0,0]
[121,null,null,null,"","","","","",null,"",null,null,null,null,null,null,null,null,null,null,null,null,null,null,null,null,null,null,null,0,0,0,0,"Lote 121","","","","","",""," días",null,0,0]
[122,null,null,null,"","","","","",null,"",null,null,null,null,null,null,null,null,null,null,null,null,null,null,null,null,null,null,null,0,0,0,0,"Lote 122","","","","","",""," días",null,0,0]
[123,null,null,null,"","","","","",null,"",null,null,null,null,null,null,null,null,null,null,null,null,null,null,null,null,null,null,null,0,0,0,0,"Lote 123","","","","","",""," días",null,0,0]
[124,null,null,null,"","","","","",null,"",null,null,null,null,null,null,null,null,null,null,null,null,null,null,null,null,null,null,null,0,0,0,0,"Lote 124","","","","","",""," días",null,0,0]
[125,null,null,null,"","","","","",null,"",null,null,null,null,null,null,null,null,null,null,null,null,null,null,null,null,null,null,null,0,0,0,0,"Lote 125","","","","","",""," días",null,0,0]
[126,null,null,null,"","","","","",null,"",null,null,null,null,null,null,null,null,null,null,null,null,null,null,null,null,null,null,null,0,0,0,0,"Lote 126","","","","","",""," días",null,0,0]
[127,null,null,null,"","","","","",null,"",null,null,null,null,null,null,null,null,null,null,null,null,null,null,null,null,null,null,null,0,0,0,0,"Lote 127","","","","","",""," días",null,0,0]
[128,null,null,null,"","","","","",null,"",null,null,null,null,null,null,null,null,null,null,null,null,null,null,null,null,null,null,null,0,0,0,0,"Lote 128","","","","","",""," días",null,0,0]
[129,null,null,null,{"$f":"IF($D138 =\"\",\"\",IF(YEAR($D138)=$F$1,$D138,\"01/01/2025\"))","v":""},"",{"$f":"IF($F138=\"\",\"\",IF(YEAR($F138)=$F$1,$F138,\"31/12/2025\"))","v":""},{"$f":"IF(B138=0,\"\",$H$4)","v":""},"",null,{"$f":"IF(H$5=\"sin dato\",\"\",IF(D138=\"\",\"\",D138+$H$5))","v":""},null,null,null,null,null,null,null,null,null,null,null,null,null,null,null,null,null,null,null,{"$f":"B138","v":0},0,0,0,{"$f":"\"Lote \"&A138","v":"Lote 129"},{"$f":"IF(B138=0,\"\",B138&\" animales\")","v":""},"",{"$f":"IF(D138=\"\",\"\",D138)","v":""},{"$f":"H138","v":""},{"$f":"IF(F138=\"\",\"\",F138)","v":""},{"$f":"I138","v":""}," días",null,{"$f":"IF(AH138=0,0,AO138*AH138)","v":0},{"$f":"IF(AH138=0,0,AM138*AH138)","v":0}]
[130,null,null,null,"",{"$f":"IF(D139=\"\",\"\",D139+H139)","v":""},"","",{"$f":"IF(G139=\"\",\"\",_xlfn.DAYS(G139,E139))","v":""},null,"",null,null,null,null,null,null,null,null,null,null,null,null,null,null,null,null,null,null,null,0,0,{"$f":"(AE139+AF139)/2","v":0},{"$f":"IF($AG$160=0,0,AG139/$AG$160)","v":0},"Lote 130","","","","","","",{"$f":"IF(AO139=0,\"\",AO139& \" días\")","v":" días"},null,0,0]
[131,null,null,null,"","","","","",null,"",null,null,null,null,null,null,null,null,null,null,null,null,null,null,null,null,null,null,null,0,0,0,0,"Lote 131","","","","","",""," días",null,0,0]
[132,null,null,null,"","","","","",null,"",null,null,null,null,null,null,null,null,null,null,null,null,null,null,null,null,null,null,null,0,0,0,0,"Lote 132","","","","","",""," días",null,0,0]
[133,null,null,null,"","","","","",null,"",null,null,null,null,null,null,null,null,null,null,null,null,null,null,null,null,null,null,null,0,0,0,0,"Lote 133","","","","","",""," días",null,0,0]
[134,null,null,null,"","","","","",null,"",null,null,null,null,null,null,null,null,null,null,null,null,null,null,null,null,null,null,null,0,0,0,0,"Lote 134","","","","","",""," días",null,0,0]
[135,null,null,null,"","","","","",null,"",null,null,null,null,null,null,null,null,null,null,null,null,null,null,null,null,null,null,null,0,0,0,0,"Lote 135","","","","","",""," días",null,0,0]
[136,null,null,null,"","","","","",null,"",null,null,null,null,null,null,null,null,null,null,null,null,null,null,null,null,null,null,null,0,0,0,0,"Lote 136","","","","","",""," días",null,0,0]
[137,null,null,null,"","","","","",null,"",null,null,null,null,null,null,null,null,null,null,null,null,null,null,null,null,null,null,null,0,0,0,0,"Lote 137","","","","","",""," días",null,0,0]
[138,null,null,null,"","","","","",null,"",null,null,null,null,null,null,null,null,null,null,null,null,null,null,null,null,null,null,null,0,0,0,0,"Lote 138","","","","","",""," días",null,0,0]
[139,null,null,null,"","","","","",null,"",null,null,null,null,null,null,null,null,null,null,null,null,null,null,null,null,null,null,null,0,0,0,0,"Lote 139","","","","","",""," días",null,0,0]
[140,null,null,null,"","","","","",null,"",null,null,null,null,null,null,null,null,null,null,null,null,null,null,null,null,null,null,null,0,0,0,0,"Lote 140","","","","","",""," días",null,0,0]
[141,null,null,null,"","","","","",null,"",null,null,null,null,null,null,null,null,null,null,null,null,null,null,null,null,null,null,null,0,0,0,0,"Lote 141","","","","","",""," días",null,0,0]
[142,null,null,null,"","","","","",null,"",null,null,null,null,null,null,null,null,null,null,null,null,null,null,null,null,null,null,null,0,0,0,0,"Lote 142","","","","","",""," días",null,0,0]
[143,null,null,null,"","","","","",null,"",null,null,null,null,null,null,null,null,null,null,null,null,null,null,null,null,null,null,null,0,0,0,0,"Lote 143","","","","","",""," días",null,0,0]
[144,null,null,null,"","","","","",null,"",null,null,null,null,null,null,null,null,null,null,null,null,null,null,null,null,null,null,null,0,0,0,0,"Lote 144","","","","","",""," días",null,0,0]
[145,null,null,null,"","","","","",null,"",null,null,null,null,null,null,null,null,null,null,null,null,null,null,null,null,null,null,null,0,0,0,0,"Lote 145","","","","","",""," días",null,0,0]
[146,null,null,null,"","","","","",null,"",null,null,null,null,null,null,null,null,null,null,null,null,null,null,null,null,null,null,null,0,0,0,0,"Lote 146","","","","","",""," días",null,0,0]
[147,null,null,null,"","","","","",null,"",null,null,null,null,null,null,null,null,null,null,null,null,null,null,null,null,null,null,null,0,0,0,0,"Lote 147","","","","","",""," días",null,0,0]
[148,null,null,null,"","","","","",null,"",null,null,null,null,null,null,null,null,null,null,null,null,null,null,null,null,null,null,null,0,0,0,0,"Lote 148","","","","","",""," días",null,0,0]
[149,null,null,null,"","","","","",null,"",null,null,null,null,null,null,null,null,null,null,null,null,null,null,null,null,null,null,null,0,0,0,0,"Lote 149","","","","","",""," días",null,0,0]
[150,null,null,null,"","","","","",null,"",null,null,null,null,null,null,null,null,null,null,null,null,null,null,null,null,null,null,null,0,0,0,0,"Lote 150","","","","","",""," días",null,0,0]
[null,null,null,null,null,null,null,null,null,null,null,null,null,null,null,null,null,null,null,null,null,null,null,null,null,null,null,null,null,null,{"$f":"SUM(AE10:AE159)","v":0},{"$f":"SUM(AF10:AF159)","v":0},{"$f":"ROUND(SUM(AG10:AG159),0)","v":0},{"$f":"SUM(AH10:AH159)","v":0},null,null,null,null,null,null,null,null,null,{"$f":"ROUND(SUM(AR10:AR159),0)","v":0},{"$f":"ROUND(SUM(AS10:AS159),0)","v":0}]

{"sheet":"Categoria 7","index":9,"n_rows":160,"n_cols":45,"rows_kept":160,"cut":false,"hidden":false,"merged":[[7,1,7,8],[7,12,7,24],[4,13,4,17],[0,1,0,3],[2,0,2,2],[2,3,2,8],[5,1,5,8],[0,12,0,17],[0,18,0,23]]}
[null,"Año de declaración: ",null,null,null,{"$f":"Base!B12","v":2025},null,null,null,null,null,null,"Datos a grabar en el paso 2 de ECOGAN",null,null,null,null,null,"Datos a grabar en el paso 4 de ECOGAN"]
[null,null,null,null,null,null,null,null,null,null,null,null,null,null,null,null,"nº total de animales que entran de esta categoría productiva:",{"$f":"AE160","v":0},null,null,null,null,"Periodo productivo total medio de la categoría productiva:",{"$f":"H4","v":0}]
["Categoría productiva: ",null,null,"Hembras adultas de descarte o desvieje",null,null,null,null,null,null,null,null,null,null,null,null,"nº total de animales vivos que finalizan de esta categoría productiva:",{"$f":"AF160","v":0},null,null,null,null,"días medios presentes de la categoría productiva:",{"$f":"AR160","v":0}]
[null,null,null,null,null,"Indique el periodo productivo medio de la categoría productiva (días):",null,null,"*"]
[null,null,null,null,null,"Periodo productivo medio de referencia (días):",null,{"$f":"IFERROR(VLOOKUP(D3,Base!A2:B7,2,FALSE),\"sin dato\")","v":"sin dato"},{"$f":"IF(H5=\"sin dato\",\"\",\"(\"&ROUND(H5*0.9,0) &\" - \"&ROUND(H5*1.1,0)&\")\")","v":""},null,null,null,null,"Si desea borrar datos grabados anteriormente, pulse aquí\n¡Cuidado! Perderá toda la información"]
["*","Número de días que por término medio los animales de una linea productiva permanecen en la granja desde que entran hasta que salen de ese alojamiento, de modo que el periodo es por ciclo productivo y no por año natural. "]
[null,null,null,null,null,null,null,null,null,null,null,null,{"$f":"Base!F2","v":45292},{"$f":"Base!H3","v":46387}]
["u","Lote es el grupo de animales que van entrando de forma escalonada a los corrales.",null,null,null,null,null,null,null,null,null,null,"Diagrama de entradas y salidas"]
["lote u","nº de animales que entran\nen cada lote","nº de animales vivos que finalizan\nen cada lote","Fecha de entrada                                                                                                                                                                                                                                                                del lote\n(dd/mm/aa)",null,"Fecha de\nfinalización                                                                                                                                                                                                                                  del lote\n(dd/mm/aa)",null,"Periodo productivo total\nmedio\n(días)",{"$f":"\"días presentes del lote\nen el año \" & F1","v":"días presentes del lote\nen el año 2025"},null,{"$f":"IF(H5=\"sin dato\",\"\",\"Fecha fin según fecha entrada y periodo de \"&H5&\" días\")","v":""},null,null,null,null,null,null,null,null,null,null,null,null,null,null,null,null,null,null,null,null,null,null,null,"lote",null,null,"Fecha de entrada                                                                                                                                                                                                                                                                del lote","Periodo productivo total","Fecha de entrada                                                                                                                                                                                                                                                                del lote",{"$f":"\"días presentes del lote\nen el año \" & AL1","v":"días presentes del lote\nen el año "},null,null,{"$f":"\"días presentes del lote\nen el año \" & AO1","v":"días presentes del lote\nen el año "},"Periodo productivo total"]
[1,null,null,null,{"$f":"IF($D10 =\"\",\"\",IF(YEAR($D10)=$F$1,$D10,\"01/01/2025\"))","v":""},{"$f":"IF(D10=\"\",\"\",D10+H10)","v":""},{"$f":"IF($F10=\"\",\"\",IF(YEAR($F10)=$F$1,$F10,\"31/12/2025\"))","v":""},{"$f":"IF(B10=0,\"\",$H$4)","v":""},{"$f":"IF(G10=\"\",\"\",_xlfn.DAYS(G10,E10))","v":""},null,{"$f":"IF(H$5=\"sin dato\",\"\",IF(D10=\"\",\"\",D10+$H$5))","v":""},null,null,null,null,null,null,null,null,null,null,null,null,null,null,null,null,null,null,null,{"$f":"B10","v":0},0,{"$f":"(AE10+AF10)/2","v":0},{"$f":"IF($AG$160=0,0,AG10/$AG$160)","v":0},{"$f":"\"Lote \"&A10","v":"Lote 1"},{"$f":"IF(B10=0,\"\",B10&\" animales\")","v":""},"",{"$f":"IF(D10=\"\",\"\",D10)","v":""},{"$f":"H10","v":""},{"$f":"IF(F10=\"\",\"\",F10)","v":""},{"$f":"I10","v":""},{"$f":"IF(AO10=0,\"\",AO10& \" días\")","v":" días"},null,{"$f":"IF(AH10=0,0,AO10*AH10)","v":0},{"$f":"IF(AH10=0,0,AM10*AH10)","v":0}]
[2,null,null,null,"",{"$f":"IF(D11=\"\",\"\",D11+H11)","v":""},"","",{"$f":"IF(G11=\"\",\"\",_xlfn.DAYS(G11,E11))","v":""},null,"",null,null,null,null,null,null,null,null,null,null,null,null,null,null,null,null,null,null,null,0,0,{"$f":"(AE11+AF11)/2","v":0},{"$f":"IF($AG$160=0,0,AG11/$AG$160)","v":0},"Lote 2","","","","","","",{"$f":"IF(AO11=0,\"\",AO11& \" días\")","v":" días"},null,0,0]
[3,null,null,null,"","","","","",null,"",null,null,null,null,null,null,null,null,null,null,null,null,null,null,null,null,null,null,null,0,0,0,0,"Lote 3","","","","","",""," días",null,0,0]
[4,null,null,null,"","","","","",null,"",null,null,null,null,null,null,null,null,null,null,null,null,null,null,null,null,null,null,null,0,0,0,0,"Lote 4","","","","","",""," días",null,0,0]
[5,null,null,null,"","","","","",null,"",null,null,null,null,null,null,null,null,null,null,null,null,null,null,null,null,null,null,null,0,0,0,0,"Lote 5","","","","","",""," días",null,0,0]
[6,null,null,null,"","","","","",null,"",null,null,null,null,null,null,null,null,null,null,null,null,null,null,null,null,null,null,null,0,0,0,0,"Lote 6","","","","","",""," días",null,0,0]
[7,null,null,null,"","","","","",null,"",null,null,null,null,null,null,null,null,null,null,null,null,null,null,null,null,null,null,null,0,0,0,0,"Lote 7","","","","","",""," días",null,0,0]
[8,null,null,null,"","","","","",null,"",null,null,null,null,null,null,null,null,null,null,null,null,null,null,null,null,null,null,null,0,0,0,0,"Lote 8","","","","","",""," días",null,0,0]
[9,null,null,null,"","","","","",null,"",null,null,null,null,null,null,null,null,null,null,null,null,null,null,null,null,null,null,null,0,0,0,0,"Lote 9","","","","","",""," días",null,0,0]
[10,null,null,null,"","","","","",null,"",null,null,null,null,null,null,null,null,null,null,null,null,null,null,null,null,null,null,null,0,0,0,0,"Lote 10","","","","","",""," días",null,0,0]
[11,null,null,null,"","","","","",null,"",null,null,null,null,null,null,null,null,null,null,null,null,null,null,null,null,null,null,null,0,0,0,0,"Lote 11","","","","","",""," días",null,0,0]
[12,null,null,null,"","","","","",null,"",null,null,null,null,null,null,null,null,null,null,null,null,null,null,null,null,null,null,null,0,0,0,0,"Lote 12","","","","","",""," días",null,0,0]
[13,null,null,null,"","","","","",null,"",null,null,null,null,null,null,null,null,null,null,null,null,null,null,null,null,null,null,null,0,0,0,0,"Lote 13","","","","","",""," días",null,0,0]
[14,null,null,null,"","","","","",null,"",null,null,null,null,null,null,null,null,null,null,null,null,null,null,null,null,null,null,null,0,0,0,0,"Lote 14","","","","","",""," días",null,0,0]
[15,null,null,null,"","","","","",null,"",null,null,null,null,null,null,null,null,null,null,null,null,null,null,null,null,null,null,null,0,0,0,0,"Lote 15","","","","","",""," días",null,0,0]
[16,null,null,null,"","","","","",null,"",null,null,null,null,null,null,null,null,null,null,null,null,null,null,null,null,null,null,null,0,0,0,0,"Lote 16","","","","","",""," días",null,0,0]
[17,null,null,null,"","","","","",null,"",null,null,null,null,null,null,null,null,null,null,null,null,null,null,null,null,null,null,null,0,0,0,0,"Lote 17","","","","","",""," días",null,0,0]
[18,null,null,null,"","","","","",null,"",null,null,null,null,null,null,null,null,null,null,null,null,null,null,null,null,null,null,null,0,0,0,0,"Lote 18","","","","","",""," días",null,0,0]
[19,null,null,null,"","","","","",null,"",null,null,null,null,null,null,null,null,null,null,null,null,null,null,null,null,null,null,null,0,0,0,0,"Lote 19","","","","","",""," días",null,0,0]
[20,null,null,null,"","","","","",null,"",null,null,null,null,null,null,null,null,null,null,null,null,null,null,null,null,null,null,null,0,0,0,0,"Lote 20","","","","","",""," días",null,0,0]
[21,null,null,null,"","","","","",null,"",null,null,null,null,null,null,null,null,null,null,null,null,null,null,null,null,null,null,null,0,0,0,0,"Lote 21","","","","","",""," días",null,0,0]
[22,null,null,null,"","","","","",null,"",null,null,null,null,null,null,null,null,null,null,null,null,null,null,null,null,null,null,null,0,0,0,0,"Lote 22","","","","","",""," días",null,0,0]
[23,null,null,null,"","","","","",null,"",null,null,null,null,null,null,null,null,null,null,null,null,null,null,null,null,null,null,null,0,0,0,0,"Lote 23","","","","","",""," días",null,0,0]
[24,null,null,null,"","","","","",null,"",null,null,null,null,null,null,null,null,null,null,null,null,null,null,null,null,null,null,null,0,0,0,0,"Lote 24","","","","","",""," días",null,0,0]
[25,null,null,null,"","","","","",null,"",null,null,null,null,null,null,null,null,null,null,null,null,null,null,null,null,null,null,null,0,0,0,0,"Lote 25","","","","","",""," días",null,0,0]
[26,null,null,null,"","","","","",null,"",null,null,null,null,null,null,null,null,null,null,null,null,null,null,null,null,null,null,null,0,0,0,0,"Lote 26","","","","","",""," días",null,0,0]
[27,null,null,null,"","","","","",null,"",null,null,null,null,null,null,null,null,null,null,null,null,null,null,null,null,null,null,null,0,0,0,0,"Lote 27","","","","","",""," días",null,0,0]
[28,null,null,null,"","","","","",null,"",null,null,null,null,null,null,null,null,null,null,null,null,null,null,null,null,null,null,null,0,0,0,0,"Lote 28","","","","","",""," días",null,0,0]
[29,null,null,null,"","","","","",null,"",null,null,null,null,null,null,null,null,null,null,null,null,null,null,null,null,null,null,null,0,0,0,0,"Lote 29","","","","","",""," días",null,0,0]
[30,null,null,null,"","","","","",null,"",null,null,null,null,null,null,null,null,null,null,null,null,null,null,null,null,null,null,null,0,0,0,0,"Lote 30","","","","","",""," días",null,0,0]
[31,null,null,null,"","","","","",null,"",null,null,null,null,null,null,null,null,null,null,null,null,null,null,null,null,null,null,null,0,0,0,0,"Lote 31","","","","","",""," días",null,0,0]
[32,null,null,null,"","","","","",null,"",null,null,null,null,null,null,null,null,null,null,null,null,null,null,null,null,null,null,null,0,0,0,0,"Lote 32","","","","","",""," días",null,0,0]
[33,null,null,null,"","","",{"$f":"IF(B42=0,\"\",$H$4)","v":""},"",null,{"$f":"IF(H$5=\"sin dato\",\"\",IF(D42=\"\",\"\",D42+$H$5))","v":""},null,null,null,null,null,null,null,null,null,null,null,null,null,null,null,null,null,null,null,{"$f":"B42","v":0},0,0,0,"Lote 33",{"$f":"IF(B42=0,\"\",B42&\" animales\")","v":""},"","","","",""," días",null,0,0]
[34,null,null,null,"","","","","",null,"",null,null,null,null,null,null,null,null,null,null,null,null,null,null,null,null,null,null,null,0,0,0,0,"Lote 34","","","","","",""," días",null,0,0]
[35,null,null,null,"","","","","",null,"",null,null,null,null,null,null,null,null,null,null,null,null,null,null,null,null,null,null,null,0,0,0,0,"Lote 35","","","","","",""," días",null,0,0]
[36,null,null,null,"","","","","",null,"",null,null,null,null,null,null,null,null,null,null,null,null,null,null,null,null,null,null,null,0,0,0,0,"Lote 36","","","","","",""," días",null,0,0]
[37,null,null,null,"","","","","",null,"",null,null,null,null,null,null,null,null,null,null,null,null,null,null,null,null,null,null,null,0,0,0,0,"Lote 37","","","","","",""," días",null,0,0]
[38,null,null,null,"","","","","",null,"",null,null,null,null,null,null,null,null,null,null,null,null,null,null,null,null,null,null,null,0,0,0,0,"Lote 38","","","","","",""," días",null,0,0]
[39,null,null,null,"","","","","",null,"",null,null,null,null,null,null,null,null,null,null,null,null,null,null,null,null,null,null,null,0,0,0,0,"Lote 39","","","","","",""," días",null,0,0]
[40,null,null,null,"","","","","",null,"",null,null,null,null,null,null,null,null,null,null,null,null,null,null,null,null,null,null,null,0,0,0,0,"Lote 40","","","","","",""," días",null,0,0]
[41,null,null,null,"","","","","",null,"",null,null,null,null,null,null,null,null,null,null,null,null,null,null,null,null,null,null,null,0,0,0,0,"Lote 41","","","","","",""," días",null,0,0]
[42,null,null,null,"","","","","",null,"",null,null,null,null,null,null,null,null,null,null,null,null,null,null,null,null,null,null,null,0,0,0,0,"Lote 42","","","","","",""," días",null,0,0]
[43,null,null,null,"","","","","",null,"",null,null,null,null,null,null,null,null,null,null,null,null,null,null,null,null,null,null,null,0,0,0,0,"Lote 43","","","","","",""," días",null,0,0]
[44,null,null,null,"","","","","",null,"",null,null,null,null,null,null,null,null,null,null,null,null,null,null,null,null,null,null,null,0,0,0,0,"Lote 44","","","","","",""," días",null,0,0]
[45,null,null,null,"","","","","",null,"",null,null,null,null,null,null,null,null,null,null,null,null,null,null,null,null,null,null,null,0,0,0,0,"Lote 45","","","","","",""," días",null,0,0]
[46,null,null,null,"","","","","",null,"",null,null,null,null,null,null,null,null,null,null,null,null,null,null,null,null,null,null,null,0,0,0,0,"Lote 46","","","","","",""," días",null,0,0]
[47,null,null,null,"","","","","",null,"",null,null,null,null,null,null,null,null,null,null,null,null,null,null,null,null,null,null,null,0,0,0,0,"Lote 47","","","","","",""," días",null,0,0]
[48,null,null,null,"","","","","",null,"",null,null,null,null,null,null,null,null,null,null,null,null,null,null,null,null,null,null,null,0,0,0,0,"Lote 48","","","","","",""," días",null,0,0]
[49,null,null,null,"","","","","",null,"",null,null,null,null,null,null,null,null,null,null,null,null,null,null,null,null,null,null,null,0,0,0,0,"Lote 49","","","","","",""," días",null,0,0]
[50,null,null,null,"","","","","",null,"",null,null,null,null,null,null,null,null,null,null,null,null,null,null,null,null,null,null,null,0,0,0,0,"Lote 50","","","","","",""," días",null,0,0]
[51,null,null,null,"","","","","",null,"",null,null,null,null,null,null,null,null,null,null,null,null,null,null,null,null,null,null,null,0,0,0,0,"Lote 51","","","","","",""," días",null,0,0]
[52,null,null,null,"","","","","",null,"",null,null,null,null,null,null,null,null,null,null,null,null,null,null,null,null,null,null,null,0,0,0,0,"Lote 52","","","","","",""," días",null,0,0]
[53,null,null,null,"","","","","",null,"",null,null,null,null,null,null,null,null,null,null,null,null,null,null,null,null,null,null,null,0,0,0,0,"Lote 53","","","","","",""," días",null,0,0]
[54,null,null,null,"","","","","",null,"",null,null,null,null,null,null,null,null,null,null,null,null,null,null,null,null,null,null,null,0,0,0,0,"Lote 54","","","","","",""," días",null,0,0]
[55,null,null,null,"","","","","",null,"",null,null,null,null,null,null,null,null,null,null,null,null,null,null,null,null,null,null,null,0,0,0,0,"Lote 55","","","","","",""," días",null,0,0]
[56,null,null,null,"","","","","",null,"",null,null,null,null,null,null,null,null,null,null,null,null,null,null,null,null,null,null,null,0,0,0,0,"Lote 56","","","","","",""," días",null,0,0]
[57,null,null,null,"","","","","",null,"",null,null,null,null,null,null,null,null,null,null,null,null,null,null,null,null,null,null,null,0,0,0,0,"Lote 57","","","","","",""," días",null,0,0]
[58,null,null,null,"","","","","",null,"",null,null,null,null,null,null,null,null,null,null,null,null,null,null,null,null,null,null,null,0,0,0,0,"Lote 58","","","","","",""," días",null,0,0]
[59,null,null,null,"","","","","",null,"",null,null,null,null,null,null,null,null,null,null,null,null,null,null,null,null,null,null,null,0,0,0,0,"Lote 59","","","","","",""," días",null,0,0]
[60,null,null,null,"","","","","",null,"",null,null,null,null,null,null,null,null,null,null,null,null,null,null,null,null,null,null,null,0,0,0,0,"Lote 60","","","","","",""," días",null,0,0]
[61,null,null,null,"","","","","",null,"",null,null,null,null,null,null,null,null,null,null,null,null,null,null,null,null,null,null,null,0,0,0,0,"Lote 61","","","","","",""," días",null,0,0]
[62,null,null,null,"","","","","",null,"",null,null,null,null,null,null,null,null,null,null,null,null,null,null,null,null,null,null,null,0,0,0,0,"Lote 62","","","","","",""," días",null,0,0]
[63,null,null,null,"","","","","",null,"",null,null,null,null,null,null,null,null,null,null,null,null,null,null,null,null,null,null,null,0,0,0,0,"Lote 63","","","","","",""," días",null,0,0]
[64,null,null,null,"","","","","",null,"",null,null,null,null,null,null,null,null,null,null,null,null,null,null,null,null,null,null,null,0,0,0,0,"Lote 64","","","","","",""," días",null,0,0]
[65,null,null,null,{"$f":"IF($D74 =\"\",\"\",IF(YEAR($D74)=$F$1,$D74,\"01/01/2025\"))","v":""},"",{"$f":"IF($F74=\"\",\"\",IF(YEAR($F74)=$F$1,$F74,\"31/12/2025\"))","v":""},{"$f":"IF(B74=0,\"\",$H$4)","v":""},"",null,{"$f":"IF(H$5=\"sin dato\",\"\",IF(D74=\"\",\"\",D74+$H$5))","v":""},null,null,null,null,null,null,null,null,null,null,null,null,null,null,null,null,null,null,null,{"$f":"B74","v":0},0,0,0,{"$f":"\"Lote \"&A74","v":"Lote 65"},{"$f":"IF(B74=0,\"\",B74&\" animales\")","v":""},"",{"$f":"IF(D74=\"\",\"\",D74)","v":""},{"$f":"H74","v":""},{"$f":"IF(F74=\"\",\"\",F74)","v":""},{"$f":"I74","v":""}," días",null,{"$f":"IF(AH74=0,0,AO74*AH74)","v":0},{"$f":"IF(AH74=0,0,AM74*AH74)","v":0}]
[66,null,null,null,"",{"$f":"IF(D75=\"\",\"\",D75+H75)","v":""},"","",{"$f":"IF(G75=\"\",\"\",_xlfn.DAYS(G75,E75))","v":""},null,"",null,null,null,null,null,null,null,null,null,null,null,null,null,null,null,null,null,null,null,0,0,{"$f":"(AE75+AF75)/2","v":0},{"$f":"IF($AG$160=0,0,AG75/$AG$160)","v":0},"Lote 66","","","","","","",{"$f":"IF(AO75=0,\"\",AO75& \" días\")","v":" días"},null,0,0]
[67,null,null,null,"","","","","",null,"",null,null,null,null,null,null,null,null,null,null,null,null,null,null,null,null,null,null,null,0,0,0,0,"Lote 67","","","","","",""," días",null,0,0]
[68,null,null,null,"","","","","",null,"",null,null,null,null,null,null,null,null,null,null,null,null,null,null,null,null,null,null,null,0,0,0,0,"Lote 68","","","","","",""," días",null,0,0]
[69,null,null,null,"","","","","",null,"",null,null,null,null,null,null,null,null,null,null,null,null,null,null,null,null,null,null,null,0,0,0,0,"Lote 69","","","","","",""," días",null,0,0]
[70,null,null,null,"","","","","",null,"",null,null,null,null,null,null,null,null,null,null,null,null,null,null,null,null,null,null,null,0,0,0,0,"Lote 70","","","","","",""," días",null,0,0]
[71,null,null,null,"","","","","",null,"",null,null,null,null,null,null,null,null,null,null,null,null,null,null,null,null,null,null,null,0,0,0,0,"Lote 71","","","","","",""," días",null,0,0]
[72,null,null,null,"","","","","",null,"",null,null,null,null,null,null,null,null,null,null,null,null,null,null,null,null,null,null,null,0,0,0,0,"Lote 72","","","","","",""," días",null,0,0]
[73,null,null,null,"","","","","",null,"",null,null,null,null,null,null,null,null,null,null,null,null,null,null,null,null,null,null,null,0,0,0,0,"Lote 73","","","","","",""," días",null,0,0]
[74,null,null,null,"","","","","",null,"",null,null,null,null,null,null,null,null,null,null,null,null,null,null,null,null,null,null,null,0,0,0,0,"Lote 74","","","","","",""," días",null,0,0]
[75,null,null,null,"","","","","",null,"",null,null,null,null,null,null,null,null,null,null,null,null,null,null,null,null,null,null,null,0,0,0,0,"Lote 75","","","","","",""," días",null,0,0]
[76,null,null,null,"","","","","",null,"",null,null,null,null,null,null,null,null,null,null,null,null,null,null,null,null,null,null,null,0,0,0,0,"Lote 76","","","","","",""," días",null,0,0]
[77,null,null,null,"","","","","",null,"",null,null,null,null,null,null,null,null,null,null,null,null,null,null,null,null,null,null,null,0,0,0,0,"Lote 77","","","","","",""," días",null,0,0]
[78,null,null,null,"","","","","",null,"",null,null,null,null,null,null,null,null,null,null,null,null,null,null,null,null,null,null,null,0,0,0,0,"Lote 78","","","","","",""," días",null,0,0]
[79,null,null,null,"","","","","",null,"",null,null,null,null,null,null,null,null,null,null,null,null,null,null,null,null,null,null,null,0,0,0,0,"Lote 79","","","","","",""," días",null,0,0]
[80,null,null,null,"","","","","",null,"",null,null,null,null,null,null,null,null,null,null,null,null,null,null,null,null,null,null,null,0,0,0,0,"Lote 80","","","","","",""," días",null,0,0]
[81,null,null,null,"","","","","",null,"",null,null,null,null,null,null,null,null,null,null,null,null,null,null,null,null,null,null,null,0,0,0,0,"Lote 81","","","","","",""," días",null,0,0]
[82,null,null,null,"","","","","",null,"",null,null,null,null,null,null,null,null,null,null,null,null,null,null,null,null,null,null,null,0,0,0,0,"Lote 82","","","","","",""," días",null,0,0]
[83,null,null,null,"","","","","",null,"",null,null,null,null,null,null,null,null,null,null,null,null,null,null,null,null,null,null,null,0,0,0,0,"Lote 83","","","","","",""," días",null,0,0]
[84,null,null,null,"","","","","",null,"",null,null,null,null,null,null,null,null,null,null,null,null,null,null,null,null,null,null,null,0,0,0,0,"Lote 84","","","","","",""," días",null,0,0]
[85,null,null,null,"","","","","",null,"",null,null,null,null,null,null,null,null,null,null,null,null,null,null,null,null,null,null,null,0,0,0,0,"Lote 85","","","","","",""," días",null,0,0]
[86,null,null,null,"","","","","",null,"",null,null,null,null,null,null,null,null,null,null,null,null,null,null,null,null,null,null,null,0,0,0,0,"Lote 86","","","","","",""," días",null,0,0]
[87,null,null,null,"","","","","",null,"",null,null,null,null,null,null,null,null,null,null,null,null,null,null,null,null,null,null,null,0,0,0,0,"Lote 87","","","","","",""," días",null,0,0]
[88,null,null,null,"","","","","",null,"",null,null,null,null,null,null,null,null,null,null,null,null,null,null,null,null,null,null,null,0,0,0,0,"Lote 88","","","","","",""," días",null,0,0]
[89,null,null,null,"","","","","",null,"",null,null,null,null,null,null,null,null,null,null,null,null,null,null,null,null,null,null,null,0,0,0,0,"Lote 89","","","","","",""," días",null,0,0]
[90,null,null,null,"","","","","",null,"",null,null,null,null,null,null,null,null,null,null,null,null,null,null,null,null,null,null,null,0,0,0,0,"Lote 90","","","","","",""," días",null,0,0]
[91,null,null,null,"","","","","",null,"",null,null,null,null,null,null,null,null,null,null,null,null,null,null,null,null,null,null,null,0,0,0,0,"Lote 91","","","","","",""," días",null,0,0]
[92,null,null,null,"","","","","",null,"",null,null,null,null,null,null,null,null,null,null,null,null,null,null,null,null,null,null,null,0,0,0,0,"Lote 92","","","","","",""," días",null,0,0]
[93,null,null,null,"","","","","",null,"",null,null,null,null,null,null,null,null,null,null,null,null,null,null,null,null,null,null,null,0,0,0,0,"Lote 93","","","","","",""," días",null,0,0]
[94,null,null,null,"","","","","",null,"",null,null,null,null,null,null,null,null,null,null,null,null,null,null,null,null,null,null,null,0,0,0,0,"Lote 94","","","","","",""," días",null,0,0]
[95,null,null,null,"","","","","",null,"",null,null,null,null,null,null,null,null,null,null,null,null,null,null,null,null,null,null,null,0,0,0,0,"Lote 95","","","","","",""," días",null,0,0]
[96,null,null,null,"","","","","",null,"",null,null,null,null,null,null,null,null,null,null,null,null,null,null,null,null,null,null,null,0,0,0,0,"Lote 96","","","","","",""," días",null,0,0]
[97,null,null,null,"","","",{"$f":"IF(B106=0,\"\",$H$4)","v":""},"",null,{"$f":"IF(H$5=\"sin dato\",\"\",IF(D106=\"\",\"\",D106+$H$5))","v":""},null,null,null,null,null,null,null,null,null,null,null,null,null,null,null,null,null,null,null,{"$f":"B106","v":0},0,0,0,"Lote 97",{"$f":"IF(B106=0,\"\",B106&\" animales\")","v":""},"","","","",""," días",null,0,0]
[98,null,null,null,"","","","","",null,"",null,null,null,null,null,null,null,null,null,null,null,null,null,null,null,null,null,null,null,0,0,0,0,"Lote 98","","","","","",""," días",null,0,0]
[99,null,null,null,"","","","","",null,"",null,null,null,null,null,null,null,null,null,null,null,null,null,null,null,null,null,null,null,0,0,0,0,"Lote 99","","","","","",""," días",null,0,0]
[100,null,null,null,"","","","","",null,"",null,null,null,null,null,null,null,null,null,null,null,null,null,null,null,null,null,null,null,0,0,0,0,"Lote 100","","","","","",""," días",null,0,0]
[101,null,null,null,"","","","","",null,"",null,null,null,null,null,null,null,null,null,null,null,null,null,null,null,null,null,null,null,0,0,0,0,"Lote 101","","","","","",""," días",null,0,0]
[102,null,null,null,"","","","","",null,"",null,null,null,null,null,null,null,null,null,null,null,null,null,null,null,null,null,null,null,0,0,0,0,"Lote 102","","","","","",""," días",null,0,0]
[103,null,null,null,"","","","","",null,"",null,null,null,null,null,null,null,null,null,null,null,null,null,null,null,null,null,null,null,0,0,0,0,"Lote 103","","","","","",""," días",null,0,0]
[104,null,null,null,"","","","","",null,"",null,null,null,null,null,null,null,null,null,null,null,null,null,null,null,null,null,null,null,0,0,0,0,"Lote 104","","","","","",""," días",null,0,0]
[105,null,null,null,"","","","","",null,"",null,null,null,null,null,null,null,null,null,null,null,null,null,null,null,null,null,null,null,0,0,0,0,"Lote 105","","","","","",""," días",null,0,0]
[106,null,null,null,"","","","","",null,"",null,null,null,null,null,null,null,null,null,null,null,null,null,null,null,null,null,null,null,0,0,0,0,"Lote 106","","","","","",""," días",null,0,0]
[107,null,null,null,"","","","","",null,"",null,null,null,null,null,null,null,null,null,null,null,null,null,null,null,null,null,null,null,0,0,0,0,"Lote 107","","","","","",""," días",null,0,0]
[108,null,null,null,"","","","","",null,"",null,null,null,null,null,null,null,null,null,null,null,null,null,null,null,null,null,null,null,0,0,0,0,"Lote 108","","","","","",""," días",null,0,0]
[109,null,null,null,"","","","","",null,"",null,null,null,null,null,null,null,null,null,null,null,null,null,null,null,null,null,null,null,0,0,0,0,"Lote 109","","","","","",""," días",null,0,0]
[110,null,null,null,"","","","","",null,"",null,null,null,null,null,null,null,null,null,null,null,null,null,null,null,null,null,null,null,0,0,0,0,"Lote 110","","","","","",""," días",null,0,0]
[111,null,null,null,"","","","","",null,"",null,null,null,null,null,null,null,null,null,null,null,null,null,null,null,null,null,null,null,0,0,0,0,"Lote 111","","","","","",""," días",null,0,0]
[112,null,null,null,"","","","","",null,"",null,null,null,null,null,null,null,null,null,null,null,null,null,null,null,null,null,null,null,0,0,0,0,"Lote 112","","","","","",""," días",null,0,0]
[113,null,null,null,"","","","","",null,"",null,null,null,null,null,null,null,null,null,null,null,null,null,null,null,null,null,null,null,0,0,0,0,"Lote 113","","","","","",""," días",null,0,0]
[114,null,null,null,"","","","","",null,"",null,null,null,null,null,null,null,null,null,null,null,null,null,null,null,null,null,null,null,0,0,0,0,"Lote 114","","","","","",""," días",null,0,0]
[115,null,null,null,"","","","","",null,"",null,null,null,null,null,null,null,null,null,null,null,null,null,null,null,null,null,null,null,0,0,0,0,"Lote 115","","","","","",""," días",null,0,0]
[116,null,null,null,"","","","","",null,"",null,null,null,null,null,null,null,null,null,null,null,null,null,null,null,null,null,null,null,0,0,0,0,"Lote 116","","","","","",""," días",null,0,0]
[117,null,null,null,"","","","","",null,"",null,null,null,null,null,null,null,null,null,null,null,null,null,null,null,null,null,null,null,0,0,0,0,"Lote 117","","","","","",""," días",null,0,0]
[118,null,null,null,"","","","","",null,"",null,null,null,null,null,null,null,null,null,null,null,null,null,null,null,null,null,null,null,0,0,0,0,"Lote 118","","","","","",""," días",null,0,0]
[119,null,null,null,"","","","","",null,"",null,null,null,null,null,null,null,null,null,null,null,null,null,null,null,null,null,null,null,0,0,0,0,"Lote 119","","","","","",""," días",null,0,0]
[120,null,null,null,"","","","","",null,"",null,null,null,null,null,null,null,null,null,null,null,null,null,null,null,null,null,null,null,0,0,0,0,"Lote 120","","","","","",""," días",null,0,0]
[121,null,null,null,"","","","","",null,"",null,null,null,null,null,null,null,null,null,null,null,null,null,null,null,null,null,null,null,0,0,0,0,"Lote 121","","","","","",""," días",null,0,0]
[122,null,null,null,"","","","","",null,"",null,null,null,null,null,null,null,null,null,null,null,null,null,null,null,null,null,null,null,0,0,0,0,"Lote 122","","","","","",""," días",null,0,0]
[123,null,null,null,"","","","","",null,"",null,null,null,null,null,null,null,null,null,null,null,null,null,null,null,null,null,null,null,0,0,0,0,"Lote 123","","","","","",""," días",null,0,0]
[124,null,null,null,"","","","","",null,"",null,null,null,null,null,null,null,null,null,null,null,null,null,null,null,null,null,null,null,0,0,0,0,"Lote 124","","","","","",""," días",null,0,0]
[125,null,null,null,"","","","","",null,"",null,null,null,null,null,null,null,null,null,null,null,null,null,null,null,null,null,null,null,0,0,0,0,"Lote 125","","","","","",""," días",null,0,0]
[126,null,null,null,"","","","","",null,"",null,null,null,null,null,null,null,null,null,null,null,null,null,null,null,null,null,null,null,0,0,0,0,"Lote 126","","","","","",""," días",null,0,0]
[127,null,null,null,"","","","","",null,"",null,null,null,null,null,null,null,null,null,null,null,null,null,null,null,null,null,null,null,0,0,0,0,"Lote 127","","","","","",""," días",null,0,0]
[128,null,null,null,"","","","","",null,"",null,null,null,null,null,null,null,null,null,null,null,null,null,null,null,null,null,null,null,0,0,0,0,"Lote 128","","","","","",""," días",null,0,0]
[129,null,null,null,{"$f":"IF($D138 =\"\",\"\",IF(YEAR($D138)=$F$1,$D138,\"01/01/2025\"))","v":""},"",{"$f":"IF($F138=\"\",\"\",IF(YEAR($F138)=$F$1,$F138,\"31/12/2025\"))","v":""},{"$f":"IF(B138=0,\"\",$H$4)","v":""},"",null,{"$f":"IF(H$5=\"sin dato\",\"\",IF(D138=\"\",\"\",D138+$H$5))","v":""},null,null,null,null,null,null,null,null,null,null,null,null,null,null,null,null,null,null,null,{"$f":"B138","v":0},0,0,0,{"$f":"\"Lote \"&A138","v":"Lote 129"},{"$f":"IF(B138=0,\"\",B138&\" animales\")","v":""},"",{"$f":"IF(D138=\"\",\"\",D138)","v":""},{"$f":"H138","v":""},{"$f":"IF(F138=\"\",\"\",F138)","v":""},{"$f":"I138","v":""}," días",null,{"$f":"IF(AH138=0,0,AO138*AH138)","v":0},{"$f":"IF(AH138=0,0,AM138*AH138)","v":0}]
[130,null,null,null,"",{"$f":"IF(D139=\"\",\"\",D139+H139)","v":""},"","",{"$f":"IF(G139=\"\",\"\",_xlfn.DAYS(G139,E139))","v":""},null,"",null,null,null,null,null,null,null,null,null,null,null,null,null,null,null,null,null,null,null,0,0,{"$f":"(AE139+AF139)/2","v":0},{"$f":"IF($AG$160=0,0,AG139/$AG$160)","v":0},"Lote 130","","","","","","",{"$f":"IF(AO139=0,\"\",AO139& \" días\")","v":" días"},null,0,0]
[131,null,null,null,"","","","","",null,"",null,null,null,null,null,null,null,null,null,null,null,null,null,null,null,null,null,null,null,0,0,0,0,"Lote 131","","","","","",""," días",null,0,0]
[132,null,null,null,"","","","","",null,"",null,null,null,null,null,null,null,null,null,null,null,null,null,null,null,null,null,null,null,0,0,0,0,"Lote 132","","","","","",""," días",null,0,0]
[133,null,null,null,"","","","","",null,"",null,null,null,null,null,null,null,null,null,null,null,null,null,null,null,null,null,null,null,0,0,0,0,"Lote 133","","","","","",""," días",null,0,0]
[134,null,null,null,"","","","","",null,"",null,null,null,null,null,null,null,null,null,null,null,null,null,null,null,null,null,null,null,0,0,0,0,"Lote 134","","","","","",""," días",null,0,0]
[135,null,null,null,"","","","","",null,"",null,null,null,null,null,null,null,null,null,null,null,null,null,null,null,null,null,null,null,0,0,0,0,"Lote 135","","","","","",""," días",null,0,0]
[136,null,null,null,"","","","","",null,"",null,null,null,null,null,null,null,null,null,null,null,null,null,null,null,null,null,null,null,0,0,0,0,"Lote 136","","","","","",""," días",null,0,0]
[137,null,null,null,"","","","","",null,"",null,null,null,null,null,null,null,null,null,null,null,null,null,null,null,null,null,null,null,0,0,0,0,"Lote 137","","","","","",""," días",null,0,0]
[138,null,null,null,"","","","","",null,"",null,null,null,null,null,null,null,null,null,null,null,null,null,null,null,null,null,null,null,0,0,0,0,"Lote 138","","","","","",""," días",null,0,0]
[139,null,null,null,"","","","","",null,"",null,null,null,null,null,null,null,null,null,null,null,null,null,null,null,null,null,null,null,0,0,0,0,"Lote 139","","","","","",""," días",null,0,0]
[140,null,null,null,"","","","","",null,"",null,null,null,null,null,null,null,null,null,null,null,null,null,null,null,null,null,null,null,0,0,0,0,"Lote 140","","","","","",""," días",null,0,0]
[141,null,null,null,"","","","","",null,"",null,null,null,null,null,null,null,null,null,null,null,null,null,null,null,null,null,null,null,0,0,0,0,"Lote 141","","","","","",""," días",null,0,0]
[142,null,null,null,"","","","","",null,"",null,null,null,null,null,null,null,null,null,null,null,null,null,null,null,null,null,null,null,0,0,0,0,"Lote 142","","","","","",""," días",null,0,0]
[143,null,null,null,"","","","","",null,"",null,null,null,null,null,null,null,null,null,null,null,null,null,null,null,null,null,null,null,0,0,0,0,"Lote 143","","","","","",""," días",null,0,0]
[144,null,null,null,"","","","","",null,"",null,null,null,null,null,null,null,null,null,null,null,null,null,null,null,null,null,null,null,0,0,0,0,"Lote 144","","","","","",""," días",null,0,0]
[145,null,null,null,"","","","","",null,"",null,null,null,null,null,null,null,null,null,null,null,null,null,null,null,null,null,null,null,0,0,0,0,"Lote 145","","","","","",""," días",null,0,0]
[146,null,null,null,"","","","","",null,"",null,null,null,null,null,null,null,null,null,null,null,null,null,null,null,null,null,null,null,0,0,0,0,"Lote 146","","","","","",""," días",null,0,0]
[147,null,null,null,"","","","","",null,"",null,null,null,null,null,null,null,null,null,null,null,null,null,null,null,null,null,null,null,0,0,0,0,"Lote 147","","","","","",""," días",null,0,0]
[148,null,null,null,"","","","","",null,"",null,null,null,null,null,null,null,null,null,null,null,null,null,null,null,null,null,null,null,0,0,0,0,"Lote 148","","","","","",""," días",null,0,0]
[149,null,null,null,"","","","","",null,"",null,null,null,null,null,null,null,null,null,null,null,null,null,null,null,null,null,null,null,0,0,0,0,"Lote 149","","","","","",""," días",null,0,0]
[150,null,null,null,"","","","","",null,"",null,null,null,null,null,null,null,null,null,null,null,null,null,null,null,null,null,null,null,0,0,0,0,"Lote 150","","","","","",""," días",null,0,0]
[null,null,null,null,null,null,null,null,null,null,null,null,null,null,null,null,null,null,null,null,null,null,null,null,null,null,null,null,null,null,{"$f":"SUM(AE10:AE159)","v":0},{"$f":"SUM(AF10:AF159)","v":0},{"$f":"ROUND(SUM(AG10:AG159),0)","v":0},{"$f":"SUM(AH10:AH159)","v":0},null,null,null,null,null,null,null,null,null,{"$f":"ROUND(SUM(AR10:AR159),0)","v":0},{"$f":"ROUND(SUM(AS10:AS159),0)","v":0}]

{"sheet":"Categoria 8","index":10,"n_rows":160,"n_cols":45,"rows_kept":160,"cut":false,"hidden":false,"merged":[[7,1,7,8],[7,12,7,24],[4,13,4,17],[0,1,0,3],[2,0,2,2],[2,3,2,8],[5,1,5,8],[0,12,0,17],[0,18,0,23]]}
[null,"Año de declaración: ",null,null,null,{"$f":"Base!B12","v":2025},null,null,null,null,null,null,"Datos a grabar en el paso 2 de ECOGAN",null,null,null,null,null,"Datos a grabar en el paso 4 de ECOGAN"]
[null,null,null,null,null,null,null,null,null,null,null,null,null,null,null,null,"nº total de animales que entran de esta categoría productiva:",{"$f":"AE160","v":0},null,null,null,null,"Periodo productivo total medio de la categoría productiva:",{"$f":"H4","v":0}]
["Categoría productiva: ",null,null,"Cebones/Bueyes/Sementales de desvieje",null,null,null,null,null,null,null,null,null,null,null,null,"nº total de animales vivos que finalizan de esta categoría productiva:",{"$f":"AF160","v":0},null,null,null,null,"días medios presentes de la categoría productiva:",{"$f":"AR160","v":0}]
[null,null,null,null,null,"Indique el periodo productivo medio de la categoría productiva (días):",null,null,"*",null,null,null,null,null,null,null,null,null,null,null,null,null,null,{"$f":"IF(X3>X2,\"Los días medios presentes no deben superar el periodo productivo total medio. Revise que no haya casillas sombreadas en amarillo en la fecha de finalización de los lotes\",\"\")","v":""}]
[null,null,null,null,null,"Periodo productivo medio de referencia (días):",null,{"$f":"IFERROR(VLOOKUP(D3,Base!A2:B7,2,FALSE),\"sin dato\")","v":"sin dato"},{"$f":"IF(H5=\"sin dato\",\"\",\"(\"&ROUND(H5*0.9,0) &\" - \"&ROUND(H5*1.1,0)&\")\")","v":""},null,null,null,null,"Si desea borrar datos grabados anteriormente, pulse aquí\n¡Cuidado! Perderá toda la información"]
["*","Número de días que por término medio los animales de una linea productiva permanecen en la granja desde que entran hasta que salen de ese alojamiento, de modo que el periodo es por ciclo productivo y no por año natural. "]
[null,null,null,null,null,null,null,null,null,null,null,null,{"$f":"Base!F2","v":45292},{"$f":"Base!H3","v":46387}]
["u","Lote es el grupo de animales que van entrando de forma escalonada a los corrales.",null,null,null,null,null,null,null,null,null,null,"Diagrama de entradas y salidas"]
["lote u","nº de animales que entran\nen cada lote","nº de animales vivos que finalizan\nen cada lote","Fecha de entrada                                                                                                                                                                                                                                                                del lote\n(dd/mm/aa)",null,"Fecha de\nfinalización                                                                                                                                                                                                                                  del lote\n(dd/mm/aa)",null,"Periodo productivo total\nmedio\n(días)",{"$f":"\"días presentes del lote\nen el año \" & F1","v":"días presentes del lote\nen el año 2025"},null,{"$f":"IF(H5=\"sin dato\",\"\",\"Fecha fin según fecha entrada y periodo de \"&H5&\" días\")","v":""},null,null,null,null,null,null,null,null,null,null,null,null,null,null,null,null,null,null,null,null,null,null,null,"lote",null,null,"Fecha de entrada                                                                                                                                                                                                                                                                del lote","Periodo productivo total","Fecha de entrada                                                                                                                                                                                                                                                                del lote",{"$f":"\"días presentes del lote\nen el año \" & AL1","v":"días presentes del lote\nen el año "},null,null,{"$f":"\"días presentes del lote\nen el año \" & AO1","v":"días presentes del lote\nen el año "},"Periodo productivo total"]
[1,null,null,null,{"$f":"IF($D10 =\"\",\"\",IF(YEAR($D10)=$F$1,$D10,\"01/01/2025\"))","v":""},{"$f":"IF(D10=\"\",\"\",D10+H10)","v":""},{"$f":"IF($F10=\"\",\"\",IF(YEAR($F10)=$F$1,$F10,\"31/12/2025\"))","v":""},{"$f":"IF(B10=0,\"\",$H$4)","v":""},{"$f":"IF(G10=\"\",\"\",_xlfn.DAYS(G10,E10))","v":""},null,{"$f":"IF(H$5=\"sin dato\",\"\",IF(D10=\"\",\"\",D10+$H$5))","v":""},null,null,null,null,null,null,null,null,null,null,null,null,null,null,null,null,null,null,null,{"$f":"B10","v":0},0,{"$f":"(AE10+AF10)/2","v":0},{"$f":"IF($AG$160=0,0,AG10/$AG$160)","v":0},{"$f":"\"Lote \"&A10","v":"Lote 1"},{"$f":"IF(B10=0,\"\",B10&\" animales\")","v":""},"",{"$f":"IF(D10=\"\",\"\",D10)","v":""},{"$f":"H10","v":""},{"$f":"IF(F10=\"\",\"\",F10)","v":""},{"$f":"I10","v":""},{"$f":"IF(AO10=0,\"\",AO10& \" días\")","v":" días"},null,{"$f":"IF(AH10=0,0,AO10*AH10)","v":0},{"$f":"IF(AH10=0,0,AM10*AH10)","v":0}]
[2,null,null,null,"",{"$f":"IF(D11=\"\",\"\",D11+H11)","v":""},"","",{"$f":"IF(G11=\"\",\"\",_xlfn.DAYS(G11,E11))","v":""},null,"",null,null,null,null,null,null,null,null,null,null,null,null,null,null,null,null,null,null,null,0,0,{"$f":"(AE11+AF11)/2","v":0},{"$f":"IF($AG$160=0,0,AG11/$AG$160)","v":0},"Lote 2","","","","","","",{"$f":"IF(AO11=0,\"\",AO11& \" días\")","v":" días"},null,0,0]
[3,null,null,null,"","","","","",null,"",null,null,null,null,null,null,null,null,null,null,null,null,null,null,null,null,null,null,null,0,0,0,0,"Lote 3","","","","","",""," días",null,0,0]
[4,null,null,null,"","","","","",null,"",null,null,null,null,null,null,null,null,null,null,null,null,null,null,null,null,null,null,null,0,0,0,0,"Lote 4","","","","","",""," días",null,0,0]
[5,null,null,null,"","","","","",null,"",null,null,null,null,null,null,null,null,null,null,null,null,null,null,null,null,null,null,null,0,0,0,0,"Lote 5","","","","","",""," días",null,0,0]
[6,null,null,null,"","","","","",null,"",null,null,null,null,null,null,null,null,null,null,null,null,null,null,null,null,null,null,null,0,0,0,0,"Lote 6","","","","","",""," días",null,0,0]
[7,null,null,null,"","","","","",null,"",null,null,null,null,null,null,null,null,null,null,null,null,null,null,null,null,null,null,null,0,0,0,0,"Lote 7","","","","","",""," días",null,0,0]
[8,null,null,null,"","","","","",null,"",null,null,null,null,null,null,null,null,null,null,null,null,null,null,null,null,null,null,null,0,0,0,0,"Lote 8","","","","","",""," días",null,0,0]
[9,null,null,null,"","","","","",null,"",null,null,null,null,null,null,null,null,null,null,null,null,null,null,null,null,null,null,null,0,0,0,0,"Lote 9","","","","","",""," días",null,0,0]
[10,null,null,null,"","","","","",null,"",null,null,null,null,null,null,null,null,null,null,null,null,null,null,null,null,null,null,null,0,0,0,0,"Lote 10","","","","","",""," días",null,0,0]
[11,null,null,null,"","","","","",null,"",null,null,null,null,null,null,null,null,null,null,null,null,null,null,null,null,null,null,null,0,0,0,0,"Lote 11","","","","","",""," días",null,0,0]
[12,null,null,null,"","","","","",null,"",null,null,null,null,null,null,null,null,null,null,null,null,null,null,null,null,null,null,null,0,0,0,0,"Lote 12","","","","","",""," días",null,0,0]
[13,null,null,null,"","","","","",null,"",null,null,null,null,null,null,null,null,null,null,null,null,null,null,null,null,null,null,null,0,0,0,0,"Lote 13","","","","","",""," días",null,0,0]
[14,null,null,null,"","","","","",null,"",null,null,null,null,null,null,null,null,null,null,null,null,null,null,null,null,null,null,null,0,0,0,0,"Lote 14","","","","","",""," días",null,0,0]
[15,null,null,null,"","","","","",null,"",null,null,null,null,null,null,null,null,null,null,null,null,null,null,null,null,null,null,null,0,0,0,0,"Lote 15","","","","","",""," días",null,0,0]
[16,null,null,null,"","","","","",null,"",null,null,null,null,null,null,null,null,null,null,null,null,null,null,null,null,null,null,null,0,0,0,0,"Lote 16","","","","","",""," días",null,0,0]
[17,null,null,null,"","","","","",null,"",null,null,null,null,null,null,null,null,null,null,null,null,null,null,null,null,null,null,null,0,0,0,0,"Lote 17","","","","","",""," días",null,0,0]
[18,null,null,null,"","","","","",null,"",null,null,null,null,null,null,null,null,null,null,null,null,null,null,null,null,null,null,null,0,0,0,0,"Lote 18","","","","","",""," días",null,0,0]
[19,null,null,null,"","","","","",null,"",null,null,null,null,null,null,null,null,null,null,null,null,null,null,null,null,null,null,null,0,0,0,0,"Lote 19","","","","","",""," días",null,0,0]
[20,null,null,null,"","","","","",null,"",null,null,null,null,null,null,null,null,null,null,null,null,null,null,null,null,null,null,null,0,0,0,0,"Lote 20","","","","","",""," días",null,0,0]
[21,null,null,null,"","","","","",null,"",null,null,null,null,null,null,null,null,null,null,null,null,null,null,null,null,null,null,null,0,0,0,0,"Lote 21","","","","","",""," días",null,0,0]
[22,null,null,null,"","","","","",null,"",null,null,null,null,null,null,null,null,null,null,null,null,null,null,null,null,null,null,null,0,0,0,0,"Lote 22","","","","","",""," días",null,0,0]
[23,null,null,null,"","","","","",null,"",null,null,null,null,null,null,null,null,null,null,null,null,null,null,null,null,null,null,null,0,0,0,0,"Lote 23","","","","","",""," días",null,0,0]
[24,null,null,null,"","","","","",null,"",null,null,null,null,null,null,null,null,null,null,null,null,null,null,null,null,null,null,null,0,0,0,0,"Lote 24","","","","","",""," días",null,0,0]
[25,null,null,null,"","","","","",null,"",null,null,null,null,null,null,null,null,null,null,null,null,null,null,null,null,null,null,null,0,0,0,0,"Lote 25","","","","","",""," días",null,0,0]
[26,null,null,null,"","","","","",null,"",null,null,null,null,null,null,null,null,null,null,null,null,null,null,null,null,null,null,null,0,0,0,0,"Lote 26","","","","","",""," días",null,0,0]
[27,null,null,null,"","","","","",null,"",null,null,null,null,null,null,null,null,null,null,null,null,null,null,null,null,null,null,null,0,0,0,0,"Lote 27","","","","","",""," días",null,0,0]
[28,null,null,null,"","","","","",null,"",null,null,null,null,null,null,null,null,null,null,null,null,null,null,null,null,null,null,null,0,0,0,0,"Lote 28","","","","","",""," días",null,0,0]
[29,null,null,null,"","","","","",null,"",null,null,null,null,null,null,null,null,null,null,null,null,null,null,null,null,null,null,null,0,0,0,0,"Lote 29","","","","","",""," días",null,0,0]
[30,null,null,null,"","","","","",null,"",null,null,null,null,null,null,null,null,null,null,null,null,null,null,null,null,null,null,null,0,0,0,0,"Lote 30","","","","","",""," días",null,0,0]
[31,null,null,null,"","","","","",null,"",null,null,null,null,null,null,null,null,null,null,null,null,null,null,null,null,null,null,null,0,0,0,0,"Lote 31","","","","","",""," días",null,0,0]
[32,null,null,null,"","","","","",null,"",null,null,null,null,null,null,null,null,null,null,null,null,null,null,null,null,null,null,null,0,0,0,0,"Lote 32","","","","","",""," días",null,0,0]
[33,null,null,null,"","","",{"$f":"IF(B42=0,\"\",$H$4)","v":""},"",null,{"$f":"IF(H$5=\"sin dato\",\"\",IF(D42=\"\",\"\",D42+$H$5))","v":""},null,null,null,null,null,null,null,null,null,null,null,null,null,null,null,null,null,null,null,{"$f":"B42","v":0},0,0,0,"Lote 33",{"$f":"IF(B42=0,\"\",B42&\" animales\")","v":""},"","","","",""," días",null,0,0]
[34,null,null,null,"","","","","",null,"",null,null,null,null,null,null,null,null,null,null,null,null,null,null,null,null,null,null,null,0,0,0,0,"Lote 34","","","","","",""," días",null,0,0]
[35,null,null,null,"","","","","",null,"",null,null,null,null,null,null,null,null,null,null,null,null,null,null,null,null,null,null,null,0,0,0,0,"Lote 35","","","","","",""," días",null,0,0]
[36,null,null,null,"","","","","",null,"",null,null,null,null,null,null,null,null,null,null,null,null,null,null,null,null,null,null,null,0,0,0,0,"Lote 36","","","","","",""," días",null,0,0]
[37,null,null,null,"","","","","",null,"",null,null,null,null,null,null,null,null,null,null,null,null,null,null,null,null,null,null,null,0,0,0,0,"Lote 37","","","","","",""," días",null,0,0]
[38,null,null,null,"","","","","",null,"",null,null,null,null,null,null,null,null,null,null,null,null,null,null,null,null,null,null,null,0,0,0,0,"Lote 38","","","","","",""," días",null,0,0]
[39,null,null,null,"","","","","",null,"",null,null,null,null,null,null,null,null,null,null,null,null,null,null,null,null,null,null,null,0,0,0,0,"Lote 39","","","","","",""," días",null,0,0]
[40,null,null,null,"","","","","",null,"",null,null,null,null,null,null,null,null,null,null,null,null,null,null,null,null,null,null,null,0,0,0,0,"Lote 40","","","","","",""," días",null,0,0]
[41,null,null,null,"","","","","",null,"",null,null,null,null,null,null,null,null,null,null,null,null,null,null,null,null,null,null,null,0,0,0,0,"Lote 41","","","","","",""," días",null,0,0]
[42,null,null,null,"","","","","",null,"",null,null,null,null,null,null,null,null,null,null,null,null,null,null,null,null,null,null,null,0,0,0,0,"Lote 42","","","","","",""," días",null,0,0]
[43,null,null,null,"","","","","",null,"",null,null,null,null,null,null,null,null,null,null,null,null,null,null,null,null,null,null,null,0,0,0,0,"Lote 43","","","","","",""," días",null,0,0]
[44,null,null,null,"","","","","",null,"",null,null,null,null,null,null,null,null,null,null,null,null,null,null,null,null,null,null,null,0,0,0,0,"Lote 44","","","","","",""," días",null,0,0]
[45,null,null,null,"","","","","",null,"",null,null,null,null,null,null,null,null,null,null,null,null,null,null,null,null,null,null,null,0,0,0,0,"Lote 45","","","","","",""," días",null,0,0]
[46,null,null,null,"","","","","",null,"",null,null,null,null,null,null,null,null,null,null,null,null,null,null,null,null,null,null,null,0,0,0,0,"Lote 46","","","","","",""," días",null,0,0]
[47,null,null,null,"","","","","",null,"",null,null,null,null,null,null,null,null,null,null,null,null,null,null,null,null,null,null,null,0,0,0,0,"Lote 47","","","","","",""," días",null,0,0]
[48,null,null,null,"","","","","",null,"",null,null,null,null,null,null,null,null,null,null,null,null,null,null,null,null,null,null,null,0,0,0,0,"Lote 48","","","","","",""," días",null,0,0]
[49,null,null,null,"","","","","",null,"",null,null,null,null,null,null,null,null,null,null,null,null,null,null,null,null,null,null,null,0,0,0,0,"Lote 49","","","","","",""," días",null,0,0]
[50,null,null,null,"","","","","",null,"",null,null,null,null,null,null,null,null,null,null,null,null,null,null,null,null,null,null,null,0,0,0,0,"Lote 50","","","","","",""," días",null,0,0]
[51,null,null,null,"","","","","",null,"",null,null,null,null,null,null,null,null,null,null,null,null,null,null,null,null,null,null,null,0,0,0,0,"Lote 51","","","","","",""," días",null,0,0]
[52,null,null,null,"","","","","",null,"",null,null,null,null,null,null,null,null,null,null,null,null,null,null,null,null,null,null,null,0,0,0,0,"Lote 52","","","","","",""," días",null,0,0]
[53,null,null,null,"","","","","",null,"",null,null,null,null,null,null,null,null,null,null,null,null,null,null,null,null,null,null,null,0,0,0,0,"Lote 53","","","","","",""," días",null,0,0]
[54,null,null,null,"","","","","",null,"",null,null,null,null,null,null,null,null,null,null,null,null,null,null,null,null,null,null,null,0,0,0,0,"Lote 54","","","","","",""," días",null,0,0]
[55,null,null,null,"","","","","",null,"",null,null,null,null,null,null,null,null,null,null,null,null,null,null,null,null,null,null,null,0,0,0,0,"Lote 55","","","","","",""," días",null,0,0]
[56,null,null,null,"","","","","",null,"",null,null,null,null,null,null,null,null,null,null,null,null,null,null,null,null,null,null,null,0,0,0,0,"Lote 56","","","","","",""," días",null,0,0]
[57,null,null,null,"","","","","",null,"",null,null,null,null,null,null,null,null,null,null,null,null,null,null,null,null,null,null,null,0,0,0,0,"Lote 57","","","","","",""," días",null,0,0]
[58,null,null,null,"","","","","",null,"",null,null,null,null,null,null,null,null,null,null,null,null,null,null,null,null,null,null,null,0,0,0,0,"Lote 58","","","","","",""," días",null,0,0]
[59,null,null,null,"","","","","",null,"",null,null,null,null,null,null,null,null,null,null,null,null,null,null,null,null,null,null,null,0,0,0,0,"Lote 59","","","","","",""," días",null,0,0]
[60,null,null,null,"","","","","",null,"",null,null,null,null,null,null,null,null,null,null,null,null,null,null,null,null,null,null,null,0,0,0,0,"Lote 60","","","","","",""," días",null,0,0]
[61,null,null,null,"","","","","",null,"",null,null,null,null,null,null,null,null,null,null,null,null,null,null,null,null,null,null,null,0,0,0,0,"Lote 61","","","","","",""," días",null,0,0]
[62,null,null,null,"","","","","",null,"",null,null,null,null,null,null,null,null,null,null,null,null,null,null,null,null,null,null,null,0,0,0,0,"Lote 62","","","","","",""," días",null,0,0]
[63,null,null,null,"","","","","",null,"",null,null,null,null,null,null,null,null,null,null,null,null,null,null,null,null,null,null,null,0,0,0,0,"Lote 63","","","","","",""," días",null,0,0]
[64,null,null,null,"","","","","",null,"",null,null,null,null,null,null,null,null,null,null,null,null,null,null,null,null,null,null,null,0,0,0,0,"Lote 64","","","","","",""," días",null,0,0]
[65,null,null,null,{"$f":"IF($D74 =\"\",\"\",IF(YEAR($D74)=$F$1,$D74,\"01/01/2025\"))","v":""},"",{"$f":"IF($F74=\"\",\"\",IF(YEAR($F74)=$F$1,$F74,\"31/12/2025\"))","v":""},{"$f":"IF(B74=0,\"\",$H$4)","v":""},"",null,{"$f":"IF(H$5=\"sin dato\",\"\",IF(D74=\"\",\"\",D74+$H$5))","v":""},null,null,null,null,null,null,null,null,null,null,null,null,null,null,null,null,null,null,null,{"$f":"B74","v":0},0,0,0,{"$f":"\"Lote \"&A74","v":"Lote 65"},{"$f":"IF(B74=0,\"\",B74&\" animales\")","v":""},"",{"$f":"IF(D74=\"\",\"\",D74)","v":""},{"$f":"H74","v":""},{"$f":"IF(F74=\"\",\"\",F74)","v":""},{"$f":"I74","v":""}," días",null,{"$f":"IF(AH74=0,0,AO74*AH74)","v":0},{"$f":"IF(AH74=0,0,AM74*AH74)","v":0}]
[66,null,null,null,"",{"$f":"IF(D75=\"\",\"\",D75+H75)","v":""},"","",{"$f":"IF(G75=\"\",\"\",_xlfn.DAYS(G75,E75))","v":""},null,"",null,null,null,null,null,null,null,null,null,null,null,null,null,null,null,null,null,null,null,0,0,{"$f":"(AE75+AF75)/2","v":0},{"$f":"IF($AG$160=0,0,AG75/$AG$160)","v":0},"Lote 66","","","","","","",{"$f":"IF(AO75=0,\"\",AO75& \" días\")","v":" días"},null,0,0]
[67,null,null,null,"","","","","",null,"",null,null,null,null,null,null,null,null,null,null,null,null,null,null,null,null,null,null,null,0,0,0,0,"Lote 67","","","","","",""," días",null,0,0]
[68,null,null,null,"","","","","",null,"",null,null,null,null,null,null,null,null,null,null,null,null,null,null,null,null,null,null,null,0,0,0,0,"Lote 68","","","","","",""," días",null,0,0]
[69,null,null,null,"","","","","",null,"",null,null,null,null,null,null,null,null,null,null,null,null,null,null,null,null,null,null,null,0,0,0,0,"Lote 69","","","","","",""," días",null,0,0]
[70,null,null,null,"","","","","",null,"",null,null,null,null,null,null,null,null,null,null,null,null,null,null,null,null,null,null,null,0,0,0,0,"Lote 70","","","","","",""," días",null,0,0]
[71,null,null,null,"","","","","",null,"",null,null,null,null,null,null,null,null,null,null,null,null,null,null,null,null,null,null,null,0,0,0,0,"Lote 71","","","","","",""," días",null,0,0]
[72,null,null,null,"","","","","",null,"",null,null,null,null,null,null,null,null,null,null,null,null,null,null,null,null,null,null,null,0,0,0,0,"Lote 72","","","","","",""," días",null,0,0]
[73,null,null,null,"","","","","",null,"",null,null,null,null,null,null,null,null,null,null,null,null,null,null,null,null,null,null,null,0,0,0,0,"Lote 73","","","","","",""," días",null,0,0]
[74,null,null,null,"","","","","",null,"",null,null,null,null,null,null,null,null,null,null,null,null,null,null,null,null,null,null,null,0,0,0,0,"Lote 74","","","","","",""," días",null,0,0]
[75,null,null,null,"","","","","",null,"",null,null,null,null,null,null,null,null,null,null,null,null,null,null,null,null,null,null,null,0,0,0,0,"Lote 75","","","","","",""," días",null,0,0]
[76,null,null,null,"","","","","",null,"",null,null,null,null,null,null,null,null,null,null,null,null,null,null,null,null,null,null,null,0,0,0,0,"Lote 76","","","","","",""," días",null,0,0]
[77,null,null,null,"","","","","",null,"",null,null,null,null,null,null,null,null,null,null,null,null,null,null,null,null,null,null,null,0,0,0,0,"Lote 77","","","","","",""," días",null,0,0]
[78,null,null,null,"","","","","",null,"",null,null,null,null,null,null,null,null,null,null,null,null,null,null,null,null,null,null,null,0,0,0,0,"Lote 78","","","","","",""," días",null,0,0]
[79,null,null,null,"","","","","",null,"",null,null,null,null,null,null,null,null,null,null,null,null,null,null,null,null,null,null,null,0,0,0,0,"Lote 79","","","","","",""," días",null,0,0]
[80,null,null,null,"","","","","",null,"",null,null,null,null,null,null,null,null,null,null,null,null,null,null,null,null,null,null,null,0,0,0,0,"Lote 80","","","","","",""," días",null,0,0]
[81,null,null,null,"","","","","",null,"",null,null,null,null,null,null,null,null,null,null,null,null,null,null,null,null,null,null,null,0,0,0,0,"Lote 81","","","","","",""," días",null,0,0]
[82,null,null,null,"","","","","",null,"",null,null,null,null,null,null,null,null,null,null,null,null,null,null,null,null,null,null,null,0,0,0,0,"Lote 82","","","","","",""," días",null,0,0]
[83,null,null,null,"","","","","",null,"",null,null,null,null,null,null,null,null,null,null,null,null,null,null,null,null,null,null,null,0,0,0,0,"Lote 83","","","","","",""," días",null,0,0]
[84,null,null,null,"","","","","",null,"",null,null,null,null,null,null,null,null,null,null,null,null,null,null,null,null,null,null,null,0,0,0,0,"Lote 84","","","","","",""," días",null,0,0]
[85,null,null,null,"","","","","",null,"",null,null,null,null,null,null,null,null,null,null,null,null,null,null,null,null,null,null,null,0,0,0,0,"Lote 85","","","","","",""," días",null,0,0]
[86,null,null,null,"","","","","",null,"",null,null,null,null,null,null,null,null,null,null,null,null,null,null,null,null,null,null,null,0,0,0,0,"Lote 86","","","","","",""," días",null,0,0]
[87,null,null,null,"","","","","",null,"",null,null,null,null,null,null,null,null,null,null,null,null,null,null,null,null,null,null,null,0,0,0,0,"Lote 87","","","","","",""," días",null,0,0]
[88,null,null,null,"","","","","",null,"",null,null,null,null,null,null,null,null,null,null,null,null,null,null,null,null,null,null,null,0,0,0,0,"Lote 88","","","","","",""," días",null,0,0]
[89,null,null,null,"","","","","",null,"",null,null,null,null,null,null,null,null,null,null,null,null,null,null,null,null,null,null,null,0,0,0,0,"Lote 89","","","","","",""," días",null,0,0]
[90,null,null,null,"","","","","",null,"",null,null,null,null,null,null,null,null,null,null,null,null,null,null,null,null,null,null,null,0,0,0,0,"Lote 90","","","","","",""," días",null,0,0]
[91,null,null,null,"","","","","",null,"",null,null,null,null,null,null,null,null,null,null,null,null,null,null,null,null,null,null,null,0,0,0,0,"Lote 91","","","","","",""," días",null,0,0]
[92,null,null,null,"","","","","",null,"",null,null,null,null,null,null,null,null,null,null,null,null,null,null,null,null,null,null,null,0,0,0,0,"Lote 92","","","","","",""," días",null,0,0]
[93,null,null,null,"","","","","",null,"",null,null,null,null,null,null,null,null,null,null,null,null,null,null,null,null,null,null,null,0,0,0,0,"Lote 93","","","","","",""," días",null,0,0]
[94,null,null,null,"","","","","",null,"",null,null,null,null,null,null,null,null,null,null,null,null,null,null,null,null,null,null,null,0,0,0,0,"Lote 94","","","","","",""," días",null,0,0]
[95,null,null,null,"","","","","",null,"",null,null,null,null,null,null,null,null,null,null,null,null,null,null,null,null,null,null,null,0,0,0,0,"Lote 95","","","","","",""," días",null,0,0]
[96,null,null,null,"","","","","",null,"",null,null,null,null,null,null,null,null,null,null,null,null,null,null,null,null,null,null,null,0,0,0,0,"Lote 96","","","","","",""," días",null,0,0]
[97,null,null,null,"","","",{"$f":"IF(B106=0,\"\",$H$4)","v":""},"",null,{"$f":"IF(H$5=\"sin dato\",\"\",IF(D106=\"\",\"\",D106+$H$5))","v":""},null,null,null,null,null,null,null,null,null,null,null,null,null,null,null,null,null,null,null,{"$f":"B106","v":0},0,0,0,"Lote 97",{"$f":"IF(B106=0,\"\",B106&\" animales\")","v":""},"","","","",""," días",null,0,0]
[98,null,null,null,"","","","","",null,"",null,null,null,null,null,null,null,null,null,null,null,null,null,null,null,null,null,null,null,0,0,0,0,"Lote 98","","","","","",""," días",null,0,0]
[99,null,null,null,"","","","","",null,"",null,null,null,null,null,null,null,null,null,null,null,null,null,null,null,null,null,null,null,0,0,0,0,"Lote 99","","","","","",""," días",null,0,0]
[100,null,null,null,"","","","","",null,"",null,null,null,null,null,null,null,null,null,null,null,null,null,null,null,null,null,null,null,0,0,0,0,"Lote 100","","","","","",""," días",null,0,0]
[101,null,null,null,"","","","","",null,"",null,null,null,null,null,null,null,null,null,null,null,null,null,null,null,null,null,null,null,0,0,0,0,"Lote 101","","","","","",""," días",null,0,0]
[102,null,null,null,"","","","","",null,"",null,null,null,null,null,null,null,null,null,null,null,null,null,null,null,null,null,null,null,0,0,0,0,"Lote 102","","","","","",""," días",null,0,0]
[103,null,null,null,"","","","","",null,"",null,null,null,null,null,null,null,null,null,null,null,null,null,null,null,null,null,null,null,0,0,0,0,"Lote 103","","","","","",""," días",null,0,0]
[104,null,null,null,"","","","","",null,"",null,null,null,null,null,null,null,null,null,null,null,null,null,null,null,null,null,null,null,0,0,0,0,"Lote 104","","","","","",""," días",null,0,0]
[105,null,null,null,"","","","","",null,"",null,null,null,null,null,null,null,null,null,null,null,null,null,null,null,null,null,null,null,0,0,0,0,"Lote 105","","","","","",""," días",null,0,0]
[106,null,null,null,"","","","","",null,"",null,null,null,null,null,null,null,null,null,null,null,null,null,null,null,null,null,null,null,0,0,0,0,"Lote 106","","","","","",""," días",null,0,0]
[107,null,null,null,"","","","","",null,"",null,null,null,null,null,null,null,null,null,null,null,null,null,null,null,null,null,null,null,0,0,0,0,"Lote 107","","","","","",""," días",null,0,0]
[108,null,null,null,"","","","","",null,"",null,null,null,null,null,null,null,null,null,null,null,null,null,null,null,null,null,null,null,0,0,0,0,"Lote 108","","","","","",""," días",null,0,0]
[109,null,null,null,"","","","","",null,"",null,null,null,null,null,null,null,null,null,null,null,null,null,null,null,null,null,null,null,0,0,0,0,"Lote 109","","","","","",""," días",null,0,0]
[110,null,null,null,"","","","","",null,"",null,null,null,null,null,null,null,null,null,null,null,null,null,null,null,null,null,null,null,0,0,0,0,"Lote 110","","","","","",""," días",null,0,0]
[111,null,null,null,"","","","","",null,"",null,null,null,null,null,null,null,null,null,null,null,null,null,null,null,null,null,null,null,0,0,0,0,"Lote 111","","","","","",""," días",null,0,0]
[112,null,null,null,"","","","","",null,"",null,null,null,null,null,null,null,null,null,null,null,null,null,null,null,null,null,null,null,0,0,0,0,"Lote 112","","","","","",""," días",null,0,0]
[113,null,null,null,"","","","","",null,"",null,null,null,null,null,null,null,null,null,null,null,null,null,null,null,null,null,null,null,0,0,0,0,"Lote 113","","","","","",""," días",null,0,0]
[114,null,null,null,"","","","","",null,"",null,null,null,null,null,null,null,null,null,null,null,null,null,null,null,null,null,null,null,0,0,0,0,"Lote 114","","","","","",""," días",null,0,0]
[115,null,null,null,"","","","","",null,"",null,null,null,null,null,null,null,null,null,null,null,null,null,null,null,null,null,null,null,0,0,0,0,"Lote 115","","","","","",""," días",null,0,0]
[116,null,null,null,"","","","","",null,"",null,null,null,null,null,null,null,null,null,null,null,null,null,null,null,null,null,null,null,0,0,0,0,"Lote 116","","","","","",""," días",null,0,0]
[117,null,null,null,"","","","","",null,"",null,null,null,null,null,null,null,null,null,null,null,null,null,null,null,null,null,null,null,0,0,0,0,"Lote 117","","","","","",""," días",null,0,0]
[118,null,null,null,"","","","","",null,"",null,null,null,null,null,null,null,null,null,null,null,null,null,null,null,null,null,null,null,0,0,0,0,"Lote 118","","","","","",""," días",null,0,0]
[119,null,null,null,"","","","","",null,"",null,null,null,null,null,null,null,null,null,null,null,null,null,null,null,null,null,null,null,0,0,0,0,"Lote 119","","","","","",""," días",null,0,0]
[120,null,null,null,"","","","","",null,"",null,null,null,null,null,null,null,null,null,null,null,null,null,null,null,null,null,null,null,0,0,0,0,"Lote 120","","","","","",""," días",null,0,0]
[121,null,null,null,"","","","","",null,"",null,null,null,null,null,null,null,null,null,null,null,null,null,null,null,null,null,null,null,0,0,0,0,"Lote 121","","","","","",""," días",null,0,0]
[122,null,null,null,"","","","","",null,"",null,null,null,null,null,null,null,null,null,null,null,null,null,null,null,null,null,null,null,0,0,0,0,"Lote 122","","","","","",""," días",null,0,0]
[123,null,null,null,"","","","","",null,"",null,null,null,null,null,null,null,null,null,null,null,null,null,null,null,null,null,null,null,0,0,0,0,"Lote 123","","","","","",""," días",null,0,0]
[124,null,null,null,"","","","","",null,"",null,null,null,null,null,null,null,null,null,null,null,null,null,null,null,null,null,null,null,0,0,0,0,"Lote 124","","","","","",""," días",null,0,0]
[125,null,null,null,"","","","","",null,"",null,null,null,null,null,null,null,null,null,null,null,null,null,null,null,null,null,null,null,0,0,0,0,"Lote 125","","","","","",""," días",null,0,0]
[126,null,null,null,"","","","","",null,"",null,null,null,null,null,null,null,null,null,null,null,null,null,null,null,null,null,null,null,0,0,0,0,"Lote 126","","","","","",""," días",null,0,0]
[127,null,null,null,"","","","","",null,"",null,null,null,null,null,null,null,null,null,null,null,null,null,null,null,null,null,null,null,0,0,0,0,"Lote 127","","","","","",""," días",null,0,0]
[128,null,null,null,"","","","","",null,"",null,null,null,null,null,null,null,null,null,null,null,null,null,null,null,null,null,null,null,0,0,0,0,"Lote 128","","","","","",""," días",null,0,0]
[129,null,null,null,{"$f":"IF($D138 =\"\",\"\",IF(YEAR($D138)=$F$1,$D138,\"01/01/2025\"))","v":""},"",{"$f":"IF($F138=\"\",\"\",IF(YEAR($F138)=$F$1,$F138,\"31/12/2025\"))","v":""},{"$f":"IF(B138=0,\"\",$H$4)","v":""},"",null,{"$f":"IF(H$5=\"sin dato\",\"\",IF(D138=\"\",\"\",D138+$H$5))","v":""},null,null,null,null,null,null,null,null,null,null,null,null,null,null,null,null,null,null,null,{"$f":"B138","v":0},0,0,0,{"$f":"\"Lote \"&A138","v":"Lote 129"},{"$f":"IF(B138=0,\"\",B138&\" animales\")","v":""},"",{"$f":"IF(D138=\"\",\"\",D138)","v":""},{"$f":"H138","v":""},{"$f":"IF(F138=\"\",\"\",F138)","v":""},{"$f":"I138","v":""}," días",null,{"$f":"IF(AH138=0,0,AO138*AH138)","v":0},{"$f":"IF(AH138=0,0,AM138*AH138)","v":0}]
[130,null,null,null,"",{"$f":"IF(D139=\"\",\"\",D139+H139)","v":""},"","",{"$f":"IF(G139=\"\",\"\",_xlfn.DAYS(G139,E139))","v":""},null,"",null,null,null,null,null,null,null,null,null,null,null,null,null,null,null,null,null,null,null,0,0,{"$f":"(AE139+AF139)/2","v":0},{"$f":"IF($AG$160=0,0,AG139/$AG$160)","v":0},"Lote 130","","","","","","",{"$f":"IF(AO139=0,\"\",AO139& \" días\")","v":" días"},null,0,0]
[131,null,null,null,"","","","","",null,"",null,null,null,null,null,null,null,null,null,null,null,null,null,null,null,null,null,null,null,0,0,0,0,"Lote 131","","","","","",""," días",null,0,0]
[132,null,null,null,"","","","","",null,"",null,null,null,null,null,null,null,null,null,null,null,null,null,null,null,null,null,null,null,0,0,0,0,"Lote 132","","","","","",""," días",null,0,0]
[133,null,null,null,"","","","","",null,"",null,null,null,null,null,null,null,null,null,null,null,null,null,null,null,null,null,null,null,0,0,0,0,"Lote 133","","","","","",""," días",null,0,0]
[134,null,null,null,"","","","","",null,"",null,null,null,null,null,null,null,null,null,null,null,null,null,null,null,null,null,null,null,0,0,0,0,"Lote 134","","","","","",""," días",null,0,0]
[135,null,null,null,"","","","","",null,"",null,null,null,null,null,null,null,null,null,null,null,null,null,null,null,null,null,null,null,0,0,0,0,"Lote 135","","","","","",""," días",null,0,0]
[136,null,null,null,"","","","","",null,"",null,null,null,null,null,null,null,null,null,null,null,null,null,null,null,null,null,null,null,0,0,0,0,"Lote 136","","","","","",""," días",null,0,0]
[137,null,null,null,"","","","","",null,"",null,null,null,null,null,null,null,null,null,null,null,null,null,null,null,null,null,null,null,0,0,0,0,"Lote 137","","","","","",""," días",null,0,0]
[138,null,null,null,"","","","","",null,"",null,null,null,null,null,null,null,null,null,null,null,null,null,null,null,null,null,null,null,0,0,0,0,"Lote 138","","","","","",""," días",null,0,0]
[139,null,null,null,"","","","","",null,"",null,null,null,null,null,null,null,null,null,null,null,null,null,null,null,null,null,null,null,0,0,0,0,"Lote 139","","","","","",""," días",null,0,0]
[140,null,null,null,"","","","","",null,"",null,null,null,null,null,null,null,null,null,null,null,null,null,null,null,null,null,null,null,0,0,0,0,"Lote 140","","","","","",""," días",null,0,0]
[141,null,null,null,"","","","","",null,"",null,null,null,null,null,null,null,null,null,null,null,null,null,null,null,null,null,null,null,0,0,0,0,"Lote 141","","","","","",""," días",null,0,0]
[142,null,null,null,"","","","","",null,"",null,null,null,null,null,null,null,null,null,null,null,null,null,null,null,null,null,null,null,0,0,0,0,"Lote 142","","","","","",""," días",null,0,0]
[143,null,null,null,"","","","","",null,"",null,null,null,null,null,null,null,null,null,null,null,null,null,null,null,null,null,null,null,0,0,0,0,"Lote 143","","","","","",""," días",null,0,0]
[144,null,null,null,"","","","","",null,"",null,null,null,null,null,null,null,null,null,null,null,null,null,null,null,null,null,null,null,0,0,0,0,"Lote 144","","","","","",""," días",null,0,0]
[145,null,null,null,"","","","","",null,"",null,null,null,null,null,null,null,null,null,null,null,null,null,null,null,null,null,null,null,0,0,0,0,"Lote 145","","","","","",""," días",null,0,0]
[146,null,null,null,"","","","","",null,"",null,null,null,null,null,null,null,null,null,null,null,null,null,null,null,null,null,null,null,0,0,0,0,"Lote 146","","","","","",""," días",null,0,0]
[147,null,null,null,"","","","","",null,"",null,null,null,null,null,null,null,null,null,null,null,null,null,null,null,null,null,null,null,0,0,0,0,"Lote 147","","","","","",""," días",null,0,0]
[148,null,null,null,"","","","","",null,"",null,null,null,null,null,null,null,null,null,null,null,null,null,null,null,null,null,null,null,0,0,0,0,"Lote 148","","","","","",""," días",null,0,0]
[149,null,null,null,"","","","","",null,"",null,null,null,null,null,null,null,null,null,null,null,null,null,null,null,null,null,null,null,0,0,0,0,"Lote 149","","","","","",""," días",null,0,0]
[150,null,null,null,"","","","","",null,"",null,null,null,null,null,null,null,null,null,null,null,null,null,null,null,null,null,null,null,0,0,0,0,"Lote 150","","","","","",""," días",null,0,0]
[null,null,null,null,null,null,null,null,null,null,null,null,null,null,null,null,null,null,null,null,null,null,null,null,null,null,null,null,null,null,{"$f":"SUM(AE10:AE159)","v":0},{"$f":"SUM(AF10:AF159)","v":0},{"$f":"ROUND(SUM(AG10:AG159),0)","v":0},{"$f":"SUM(AH10:AH159)","v":0},null,null,null,null,null,null,null,null,null,{"$f":"ROUND(SUM(AR10:AR159),0)","v":0},{"$f":"ROUND(SUM(AS10:AS159),0)","v":0}]